Workbook

Sheet 0 Úvod
C4: Úvod
C5: Toto je jednoduchý finanční model, který doplňuje stávající výsledky analýz CBA obsažených ve studiích proveditelnosti a ekonomických hodnoceních českých železničních infrastrukturních projektů. Model je založen na analýze výnosů a je plně v souladu se současnou metodikou Evropské komise o CBA. Připravil DG REGIO/F.2, SUDOP PRAHA a.s. Aktualizoval SUDOP PRAHA a.s. 2016
C15: Základní informace
C17: Zdroj dat: | D17: Studie proveditelnosti pro trať Praha Smíchov – Plzeň, doplnění 2016
C19: Cenová úroveň (CÚ) | D19: 2016 | F19: Začátek stavebních prací | G19: 2009 | I19: Doba hodnocení | J19: 30 | M19: Směnný kurz (CZK/EUR) | N19: 25.66
C21: Diskontní sazba | D21: 0.05 | F21: Začátek provozu | G21: 2024 | M21: DPH | N21: 0.21
C25: Hodnocené scénáře
B26: BEZ PROJEKTU | C26: Odpovídá současnému technickému stavu jednotlivých úseků 3. TŽK a jeho očekávanému vývoji po dobu hodnocení projektu. Cílem této varianty je simulovat situaci, jak by se s největší pravděpodobností vyvíjel stav infrastruktury a z něj plynoucí změny v dopravě, aniž by se do infrastruktury vkládaly investiční prostředky.
B31: S PROJEKTEM | C31: Předpokládá aktualizovanou projektovou variantu č. 2 dle Podkladové studie ve zpřesnění dle Provozně ekonomické studie. Rozdíl oproti těmto uvedeným materiálům potom spočívá v harmonogramu výstavby. Nově se předpokládá uvedení celé trati Praha – Plzeň do provozu v roce 2024 (ukončení výstavby posledního úseku v roce 2023). Varianta projektová 2 spočívá v optimalizaci celé tratě Praha – Beroun – Plzeň ve stávající stopě vyjma úseku Ejpovice – Plzeň, který je navržen v nové stopě. V úseku Praha – Beroun spočívá optimalizace ve zvýšení traťové rychlosti na 90 až 140 km/h, úpravě všech železničních stanic a zastávek, náhradě úrovňových přejezdů mimoúrovňovým křížením, instalaci nového zabezpečovacího zařízení 3. kategorie, zajištění prostorové průchodnosti UICGC a traťové třídy zatížení D4. V úseku Rokycany – Ejpovice – Plzeň bude trať přeložena do nové stopy (přeložka Ejpovice). Stávající trať přes žst. Chrást u Plzně bude částečně ponechána pro místní dopravu a částečně zrušena.
C38: Seznam tabulek
C40: List / tabulka | E40: Celk. investiční náklady | F40: Zůstatková hodnota | G40: Prov. náklady železnice | H40: Úspory v sil. dopravě | I40: Úspory z cestovních dob | J40: Externality | K40: Emise ze žel. dopravy | L40: Bezpečnost žel. dopravy | M40: Ostatní příjmy/náklady | N40: Ekonomická analýza
C41: V konstantních cenách | E41: 1.1. | F41: 2.1., 2.2 | G41: 3.1., 3.2., 3.3 | H41: 4.1., 4.2. | I41: 5.1., 5.2., 5.3., 5.4. | J41: 6.1., 6.2., 6.3. | K41: 7.1., 7.2, 7.3. | L41: 8.1., 8.2. | M41: 9.1., 9.2. | N41: 10.1.
C47: Míra inflace
C49: rok | D49: 2006 | E49: 2007 | F49: 2008 | G49: 2009 | H49: 2010 | I49: 2011 | J49: 2012 | K49: 2013 | L49: 2014 | M49: 2015 | N49: 2016 | O49: ***
C50: inflace | D50: 0.025 | E50: 0.028 | F50: 0.063 | G50: 0.01 | H50: 0.015 | I50: 0.019 | J50: 0.033 | K50: 0.014 | L50: 0.004 | M50: 0.003 | N50: 0.01
D51: 1 | E51: 1 | F51: 1 | G51: 1 | H51: 1 | I51: 1 | J51: 1 | K51: =J51*(1+K50) -> 1.014 | L51: =K51*(1+L50) -> 1.018056 | M51: =L51*(1+M50) -> 1.021110168 | N51: =M51*(1+N50) -> 1.03132127
C52: zdroj: Prováděcí pokyny pro hodnocení efektivnosti investic železničních staveb (č. 26/2013-910-IZD/3), MD 2013 - příloha A.2; ČNB (Zpráva o inflaci I/2016)
C54: Index cen stavebních prací
C56: rok | D56: 2006 | E56: 2007 | F56: 2008 | G56: 2009 | H56: 2010 | I56: 2011 | J56: 2012 | K56: 2013 | L56: 2014 | M56: 2015 | N56: 2016
C57: inflace | D57: 0.029 | E57: 0.041 | F57: 0.045 | G57: 0.012 | H57: -0.002 | I57: -0.005 | J57: -0.007 | K57: -0.011 | L57: 0.005 | M57: 0 | N57: 0
D58: 1 | E58: 1 | F58: 1 | G58: 1 | H58: 1 | I58: 1 | J58: 1 | K58: 1 | L58: =K58*(1+L57) -> 1.005 | M58: =L58*(1+M57) -> 1.005 | N58: =M58*(1+N57) -> 1.005
C59: zdroj: aktuálně platné opatření SFDI (č.j. 3029/SFDI/320079/8567/2015); ČSÚ
C61: *** pro další roky platí v souladu s Prováděcími pokyny hodnota 2,00%
C63: HDP na hlavu
C65: rok | D65: 2005 | E65: 2006 | F65: 2007 | G65: 2008 | H65: 2009 | I65: 2010 | J65: 2011 | K65: 2012 | L65: 2013 | M65: 2014 | N65: 2015
C66: HDP na hlavu | D66: 0.062 | E66: 0.065 | F66: 0.05 | G66: 0.017 | H66: -0.054 | I66: 0.02 | J66: 0.022 | K66: -0.01 | L66: -0.005 | M66: 0.018 | N66: 0.047
K67: 1 | L67: =K67*(1+L66) -> 0.995 | M67: =L67*(1+M66) -> 1.01291 | N67: =M67*(1+N66) -> 1.06051677
C68: rok | D68: 2016 | E68: 2017 | F68: 2018 | G68: 2019 | H68: 2020 | I68: 2030 | J68: 2050
C69: HDP na hlavu | D69: 0.028 | E69: 0.029 | F69: 0.03 | G69: 0.03 | H69: 0.02 | I69: 0.01 | J69: 0.01
D70: =N67*(1+D69) -> 1.09021124 | E70: =D70*(1+E69) -> 1.121827366 | F70: =E70*(1+F69) -> 1.155482186 | G70: =F70*(1+G69) -> 1.190146652 | H70: =G70*(1+H69) -> 1.213949585 | I70: =H70*(1+I69)^(I68-H68) -> 1.340955571 | J70: =I70*(1+J69)^(J68-I68) -> 1.636220632
C71: zdroj: Prováděcí pokyny pro hodnocení efektivnosti investic železničních staveb (č. 26/2013-910-IZD/3), MD 2013 - příloha A.2; ČSÚ; ČNB (Zpráva o inflaci I/2016)
C75: Růst reálných mezd
C77: rok | D77: 2012 | E77: 2013 | F77: 2014 | G77: 2015 | H77: 2016 | I77: 2017 | J77: 2018 | K77: 2019 | L77: 2020 | M77: 2030 | N77: 2050
C78: růst mezd | D78: -0.008 | E78: -0.015 | F78: 0.019 | G78: 0.028 | H78: 0.03 | I78: 0.025 | J78: 0.03 | K78: 0.03 | L78: 0.025 | M78: 0.02 | N78: 0.02
D79: 1 | E79: =D79*(1+E78*'3 Provozní náklady železnice'!$D$130) -> 0.985 | F79: =E79*(1+F78*'3 Provozní náklady železnice'!$D$130) -> 1.003715 | G79: =F79*(1+G78*'3 Provozní náklady železnice'!$D$130) -> 1.03181902 | H79: =G79*(1+H78*'3 Provozní náklady železnice'!$D$130) -> 1.062773591 | I79: =H79*(1+I78*'3 Provozní náklady železnice'!$D$130) -> 1.08934293 | J79: =I79*(1+J78*'3 Provozní náklady železnice'!$D$130) -> 1.122023218 | K79: =J79*(1+K78*'3 Provozní náklady železnice'!$D$130) -> 1.155683915 | L79: =K79*(1+L78*'3 Provozní náklady železnice'!$D$130) -> 1.184576013 | M79: =L79*(1+M78*'3 Provozní náklady železnice'!$D$130)^(M77-L77) -> 1.44399155 | N79: =M79*(1+N78*'3 Provozní náklady železnice'!$D$130)^(N77-M77) -> 2.145695483
C80: zdroj: do r. 2016 vč. ČNB (Zpráva o inflaci I/2016); od r. 2017 vč. Prováděcí pokyny pro hodnocení efektivnosti investic železničních staveb (č. 26/2013-910-IZD/3), MD 2013 - příloha A.2
C85: Vyplnit pouze žlutě podbarvené buňky!

Sheet 1 Celkové investiční náklady
B2: 1.1. | C2: Celkové investiční náklady (CZK) | G2: V roce
B3: a | C3: (konstantní ceny) | F3: Celk. projekt. náklady | G3: ='0 Úvod'!G19 -> 2009 | H3: =G3+1 -> 2010 | I3: =H3+1 -> 2011 | J3: 2012 | K3: 2013 | L3: 2014 | M3: 2015 | N3: 2016 | O3: 2017 | P3: 2018 | Q3: 2019 | R3: 2020 | S3: 2021 | T3: 2022 | U3: =T3+1 -> 2023
C4: ='0 Úvod'!D19 -> 2016
C5: Přípravná a projektová dokumentace | F5: =SUM(G5:U5,G20:U20) -> 1565531475 | G5: 570945863.5 | H5: 23589792.82 | I5: 30897155.14 | J5: 31621200.42 | K5: 23553169.94 | L5: 74835585.3 | M5: 59028115.41 | N5: 76031557.91 | O5: 94579432.05 | P5: 60314544.5 | Q5: 98721231.96 | R5: 113293045.7 | S5: 106047592.8 | T5: 112262032.7 | U5: 89811154.48
C6: Zábory a nákupy pozemků | F6: =SUM(G6:U6,G21:U21) -> 283213449.8 | G6: 30688270.77 | H6: 57836241.91 | I6: 19302360.7 | J6: 6720858.572 | K6: 13006784 | L6: 418892 | M6: 6334799 | N6: 27257313.56 | O6: 51241781.74 | P6: 56573701.82 | Q6: 9843795.13 | R6: 868150.6303 | S6: 624000 | T6: 2439500 | U6: 57000
C7: Stavby a konstrukce (stavební náklady) | F7: 2.369562828e+10 | G7: 1163616890 | H7: 2795256572 | I7: 2523812875 | J7: 1437534610 | K7: 590190411.4 | L7: 582670272.6 | M7: 1235619067 | N7: 1087936557 | O7: 2464790415 | P7: 1916961770 | Q7: 2698170995 | R7: 1955691218 | S7: 1116290450 | T7: 1181705608 | U7: 945380573.5
C8: Stroje a zařízení | F8: 0 | G8: 0 | H8: 0 | I8: 0 | J8: 0 | K8: 0 | L8: 0 | M8: 0 | N8: 0 | O8: 0 | P8: 0 | Q8: 0 | R8: 0 | S8: 0 | T8: 0 | U8: 0
C9: Technická asistence, propagace | F9: 254244010.9 | G9: 19511989.05 | H9: 7587465.718 | I9: 9975260.831 | J9: 3757090.305 | K9: 9240705.908 | L9: 10986927.56 | M9: 16201844.09 | N9: 22298217.38 | O9: 46501658.15 | P9: 49399883.89 | Q9: 11846700.99 | R9: 14502500.69 | S9: 11162904.5 | T9: 11817056.08 | U9: 9453805.735
C10: Technický dozor | F10: 581841449.3 | G10: 37037569.23 | H10: 27011137.48 | I10: 26967619.82 | J10: 22419850.28 | K10: 19402944.44 | L10: 26410967.44 | M10: 28588065.93 | N10: 34983562.98 | O10: 53897878.49 | P10: 44805575.56 | Q10: 54496115.32 | R10: 59868213.95 | S10: 50233070.25 | T10: 53176752.34 | U10: 42542125.81
C11: Celkové investiční náklady bez rezervy (konstantní ceny) | F11: 2.638045867e+10 | G11: =SUM(G5:G10) -> 1821800583 | H11: 2911281210 | I11: =SUM(I5:I10) -> 2610955272 | J11: 1502053610 | K11: 655394015.6 | L11: 695322644.9 | M11: 1345771892 | N11: 1248507209 | O11: 2711011166 | P11: 2128055476 | Q11: 2873078838 | R11: 2144223129 | S11: 1284358018 | T11: 1361400949 | U11: =SUM(U5:U10) -> 1087244660
C12: Rezerva | F12: 1752085535 | N12: 39657011.18 | O12: 612635960.8 | P12: 310619909.1 | Q12: 269765223.6 | R12: 195069767.2 | S12: 111629045 | T12: 118170560.8 | U12: 94538057.35
C13: Celkové investiční náklady včetně rezervy (konstantní ceny) | F13: 2.81325442e+10 | G13: =SUM(G11:G12) -> 1821800583 | H13: =SUM(H11:H12) -> 2911281210 | I13: =SUM(I11:I12) -> 2610955272 | J13: 1502053610 | K13: 655394015.6 | L13: 695322644.9 | M13: 1345771892 | N13: 1288164220 | O13: 3323647126 | P13: 2438675385 | Q13: 3142844062 | R13: 2339292896 | S13: 1395987062 | T13: 1479571509 | U13: =SUM(U11:U12) -> 1181782717
C14: ='0 Úvod'!$N$21*1000 -> 210 | F14: 5907834283 | G14: =G13*$C14/1000 -> 382578122.4 | H14: =H13*$C14/1000 -> 611369054.1 | I14: =I13*$C14/1000 -> 548300607.1 | J14: 315431258.1 | K14: 137632743.3 | L14: 146017755.4 | M14: 282612097.2 | N14: 270514486.2 | O14: 697965896.5 | P14: 512121830.9 | Q14: 659997252.9 | R14: 491251508.2 | S14: 293157283.1 | T14: 310710017 | U14: =U13*$C14/1000 -> 248174370.5
C15: Celkové investiční náklady včetně DPH (konstantní ceny) | F15: 3.404037849e+10 | G15: =G14+G13 -> 2204378705 | H15: =H14+H13 -> 3522650264 | I15: =I14+I13 -> 3159255879 | J15: 1817484868 | K15: 793026758.9 | L15: 841340400.3 | M15: 1628383989 | N15: 1558678706 | O15: 4021613023 | P15: 2950797216 | Q15: 3802841315 | R15: 2830544404 | S15: 1689144346 | T15: 1790281526 | U15: =U14+U13 -> 1429957087
B17: 1.1. | C17: Celkové investiční náklady (CZK)
B18: b | C18: (konstatní ceny) | G18: =U3+1 -> 2024 | H18: =G18+1 -> 2025 | I18: =H18+1 -> 2026 | J18: 2027 | K18: 2028 | L18: 2029 | M18: 2030 | N18: 2031 | O18: 2032 | P18: 2033 | Q18: 2034 | R18: 2035 | S18: 2036 | T18: 2037 | U18: =T18+1 -> 2038
C19: ='0 Úvod'!D19 -> 2016
C20: Přípravná a projektová dokumentace
C21: Zábory a nákupy pozemků
C22: Stavby a konstrukce (stavební náklady)
C23: Stroje a zařízení
C24: Technická asistence, propagace
C25: Technický dozor
C26: Celkové investiční náklady bez rezervy (konstantní ceny) | G26: =SUM(G20:G25) -> 0 | H26: 0 | I26: 0 | J26: 0 | K26: 0 | L26: 0 | M26: 0 | N26: 0 | O26: 0 | P26: 0 | Q26: 0 | R26: 0 | S26: 0 | T26: 0 | U26: =SUM(U20:U25) -> 0
C27: Rezerva
C28: Celkové investiční náklady včetně rezervy (konstantní ceny) | G28: =SUM(G26:G27) -> 0 | H28: 0 | I28: 0 | J28: 0 | K28: 0 | L28: 0 | M28: 0 | N28: 0 | O28: 0 | P28: 0 | Q28: 0 | R28: 0 | S28: 0 | T28: 0 | U28: =SUM(U26:U27) -> 0
C29: ='0 Úvod'!$N$21*1000 -> 210 | G29: =G28*$C29/1000 -> 0 | H29: =H28*$C29/1000 -> 0 | I29: =I28*$C29/1000 -> 0 | J29: 0 | K29: 0 | L29: 0 | M29: 0 | N29: 0 | O29: 0 | P29: 0 | Q29: 0 | R29: 0 | S29: 0 | T29: 0 | U29: =U28*$C29/1000 -> 0
C30: Celkové investiční náklady včetně DPH (konstantní ceny) | G30: =G29+G28 -> 0 | H30: 0 | I30: 0 | J30: 0 | K30: 0 | L30: 0 | M30: 0 | N30: 0 | O30: 0 | P30: 0 | Q30: 0 | R30: 0 | S30: 0 | T30: 0 | U30: =U29+U28 -> 0

Sheet 2 Zůstatková hodnota
B2: 2.1. | C2: Životnost investice (roky) | D2: Náklady (CZK) | E2: Vážení | G2: 2.3. | H2: Výpočet zůstatkové hodnoty
C3: Zabezpečovací zařízení | D3: 2340953769 | E3: =D3*D20 -> 4.681907537e+10 | H3: Celková životnost investice | I3: =$E$16 -> 44
C4: Sdělovací zařízení | D4: 714866679.9 | E4: =D4*D21 -> 1.42973336e+10 | H4: Délka provozní fáze hodnotícího období | I4: ='0 Úvod'!$J$19-('0 Úvod'!$G$21-'0 Úvod'!$G$19) -> 15
C5: Silnoproudé rozvody a zařízení | D5: 1134427176 | E5: 2.268854351e+10 | H5: Životnost investice po skončení hodnotícího období | I5: =I3-I4 -> 29
C6: Železniční svršek | D6: 5851400189 | E6: 1.755420057e+11 | H6: Průměrný nákladový peněžní tok (nediskontovaný) | I6: =SUM('10 Ekonomická analýza'!F18:T18,'10 Ekonomická analýza'!F35:T35)/('0 Úvod'!J19-('0 Úvod'!$G$21-'0 Úvod'!G19)) -> 266636532.2
C7: Železniční spodek | D7: 3347452757 | E7: 2.008471654e+11 | H7: Ekonomický přínos v posledním roce (nediskontovaný) | I7: =IF(HLOOKUP(('0 Úvod'!G19+'0 Úvod'!J19-1),'10 Ekonomická analýza'!F19:T26,1,FALSE)=('0 Úvod'!G19+'0 Úvod'!J19-1),(HLOOKUP(('0 Úvod'!G19+'0 Úvod'!J19-1),'10 Ekonomická analýza'!F19:T26,4,FALSE)+HLOOKUP(('0 Úvod'!G19+'0 Úvod'!J19-1),'10 Ekonomická analýza'!F19:T26,5,FALSE)+HLOOKUP(('0 Úvod'!G19+'0 Úvod'!J19-1),'10 Ekonomická analýza'!F19:T26,6,FALSE)+HLOOKUP(('0 Úvod'!G19+'0 Úvod'!J19-1),'10 Ekonomická analýza'!F19:T26,7,FALSE)+HLOOKUP(('0 Úvod'!G19+'0 Úvod'!J19-1),'10 Ekonomická analýza'!F19:T26,8,FALSE)),0) -> 3131781632
C8: Mosty, propustky, zdi | D8: 2692905928 | E8: 2.019679446e+11 | H8: ZŮSTATKOVÁ HODNOTA | I8: =IF(I6*(1/(1+'0 Úvod'!D21))*(((1/(1+'0 Úvod'!D21))^I5-1)/((1/(1+'0 Úvod'!D21))-1))<0,IF(I7*(1/(1+'0 Úvod'!D21))*(((1/(1+'0 Úvod'!D21))^I5-1)/((1/(1+'0 Úvod'!D21))-1))<0,0,I7*(1/(1+'0 Úvod'!D21))*(((1/(1+'0 Úvod'!D21))^I5-1)/((1/(1+'0 Úvod'!D21))-1))),(I6+I7)*(1/(1+'0 Úvod'!D21))*(((1/(1+'0 Úvod'!D21))^I5-1)/((1/(1+'0 Úvod'!D21))-1))) -> 5.145569947e+10
C9: Tunely | D9: 2322301867 | E9: 2.09007168e+11
C10: Komunikace a zpevněné plochy | D10: 463156921.6 | E10: 9263138432
C11: Trakce | D11: 2214598063 | E11: 6.643794189e+10
C12: Inženýrské sítě (trubní vedení, kabelovody) | D12: 271681179.3 | E12: 5433623587
C13: Pozemní stavby, nástupiště a přístřešky | D13: 1055513670 | E13: 4.222054679e+10
C14: Objekty ochrany životního prostředí | D14: 676774677.1 | E14: 2.030324031e+10
C15: CELKEM | D15: =SUM(D3:D14) -> 2.308603288e+10 | E15: =SUM(E3:E14) -> 1.014827727e+12
B16: Celková životnost investice (roky) | E16: =ROUND(E15/D15,0) -> 44
B19: 2.2. | C19: Životnost jednotlivých prvků | D19: roky | G19: 2.4. | H19: Diskont. zůstatková hodnota investic pro FA | I19: =I8*(1/(1+'0 Úvod'!D21)^('0 Úvod'!J19-1)) -> 1.250097289e+10
C20: Zabezpečovací zařízení | D20: =100/5 -> 20 | H20: Diskontovaná zůstatková hodnota investic v EUR | I20: =I19/'0 Úvod'!N19 -> 487177431.3
C21: Sdělovací zařízení | D21: 20
C22: Silnoproudé rozvody a zařízení | D22: 20
C23: Železniční svršek | D23: 30
C24: Železniční spodek | D24: 60
C25: Mosty, propustky, zdi | D25: 75
C26: Tunely | D26: 90
C27: Komunikace a zpevněné plochy | D27: 20
C28: Trakce | D28: 30
C29: Inženýrské sítě (trubní vedení, kabelovody) | D29: 20
C30: Pozemní stavby, nástupiště a přístřešky | D30: 40
C31: Objekty ochrany životního prostředí | D31: 30

Sheet 3 Provozní náklady železnice
B2: 3.1. | C2: Celkové provozní náklady (CZK) | E2: ='1 Celkové investiční náklady'!G3 -> 2009 | F2: =E2+1 -> 2010 | G2: 2011 | H2: 2012 | I2: 2013 | J2: 2014 | K2: 2015 | L2: 2016 | M2: 2017 | N2: 2018 | O2: 2019 | P2: 2020 | Q2: 2021 | R2: 2022 | S2: 2023
B3: a | C3: Scénář s projektem | D3: Celkem
C4: Náklady na údržbu a provoz infrastr. | D4: =SUM(E4:S4,E13:S13) -> 4975016441 | E4: 154438210.2 | F4: 160580374.1 | G4: 194821024.9 | H4: 136047405.6 | I4: 126146188 | J4: 164309269.2 | K4: 159701253.1 | L4: 156577675 | M4: 156577675 | N4: 156577675 | O4: 167443295.1 | P4: 167497623.2 | Q4: 167552223 | R4: 167607095.7 | S4: 167662242.8
C5: Periodické provozní náklady | D5: =SUM(E5:S5,E14:S14) -> 0
C6: Náklady na řízení provozu | D6: 2292207907 | E6: 104197297 | F6: 104394240.5 | G6: 114276447.9 | H6: 92856289.38 | I6: 90865527.88 | J6: 92310934.42 | K6: 99301727.47 | L6: 99743209.22 | M6: 99743209.22 | N6: 99743209.22 | O6: =IF(O2<=('0 Úvod'!$G$19+'0 Úvod'!$J$19-1),SUMPRODUCT(O131:O143,O165:O177)+O179,0) -> 78880018.91 | P6: =IF(P2<=('0 Úvod'!$G$19+'0 Úvod'!$J$19-1),SUMPRODUCT(P131:P143,P165:P177)+P179,0) -> 80852019.38 | Q6: =IF(Q2<=('0 Úvod'!$G$19+'0 Úvod'!$J$19-1),SUMPRODUCT(Q131:Q143,Q165:Q177)+Q179,0) -> 82873319.86 | R6: =IF(R2<=('0 Úvod'!$G$19+'0 Úvod'!$J$19-1),SUMPRODUCT(R131:R143,R165:R177)+R179,0) -> 84945152.86 | S6: =IF(S2<=('0 Úvod'!$G$19+'0 Úvod'!$J$19-1),SUMPRODUCT(S131:S143,S165:S177)+S179,0) -> 94104417.33
C7: Náklady na provoz vlaků - osobní | D7: 1.089187222e+10 | E7: =E80*$D$67+E81*$D$68 -> 325485542.1 | F7: =F80*$D$67+F81*$D$68 -> 318507442 | G7: 315570117.8 | H7: 311290331.1 | I7: 311290331.1 | J7: 316983846.6 | K7: 301756818.1 | L7: 304036230.1 | M7: 311346414.8 | N7: 311346414.8 | O7: 319121922.2 | P7: 322041493.8 | Q7: 320008578.5 | R7: 323436947.5 | S7: 324445291.3
C8: Náklady na provoz vlaků - nákladní | D8: 0
C9: Celkové provozní náklady | D9: 1.815909657e+10 | E9: =SUM(E4:E8) -> 584121049.3 | F9: =SUM(F4:F8) -> 583482056.7 | G9: =SUM(G4:G8) -> 624667590.7 | H9: 540194026.1 | I9: 528302047.1 | J9: 573604050.2 | K9: 560759798.7 | L9: 560357114.4 | M9: 567667299.1 | N9: 567667299.1 | O9: 565445236.2 | P9: 570391136.4 | Q9: 570434121.4 | R9: 575989196 | S9: =SUM(S4:S8) -> 586211951.4
B11: 3.1. | C11: Celkové provozní náklady (CZK) | E11: =S2+1 -> 2024 | F11: =E11+1 -> 2025 | G11: 2026 | H11: 2027 | I11: 2028 | J11: 2029 | K11: 2030 | L11: 2031 | M11: 2032 | N11: 2033 | O11: 2034 | P11: 2035 | Q11: 2036 | R11: 2037 | S11: 2038
B12: b | C12: Scenář s projektem
C13: Náklady na údržbu a provoz infrastr. | E13: 165171195.5 | F13: 165997051.5 | G13: 166827036.7 | H13: 167661171.9 | I13: 168499477.8 | J13: 169341975.1 | K13: 170188685 | L13: 171039628.4 | M13: 171894826.6 | N13: 172754300.7 | O13: 173618072.2 | P13: 174486162.6 | Q13: 176231024.2 | R13: 177993334.5 | S13: 179773267.8
C14: Periodické provozní náklady
C15: Náklady na řízení provozu | E15: =IF(E11<=('0 Úvod'!$G$19+'0 Úvod'!$J$19-1),SUMPRODUCT(E148:E160,E183:E195)+E197,0) -> 49482811.72 | F15: =IF(F11<=('0 Úvod'!$G$19+'0 Úvod'!$J$19-1),SUMPRODUCT(F148:F160,F183:F195)+F197,0) -> 50719882.01 | G15: =IF(G11<=('0 Úvod'!$G$19+'0 Úvod'!$J$19-1),SUMPRODUCT(G148:G160,G183:G195)+G197,0) -> 51987879.06 | H15: =IF(H11<=('0 Úvod'!$G$19+'0 Úvod'!$J$19-1),SUMPRODUCT(H148:H160,H183:H195)+H197,0) -> 53287576.04 | I15: =IF(I11<=('0 Úvod'!$G$19+'0 Úvod'!$J$19-1),SUMPRODUCT(I148:I160,I183:I195)+I197,0) -> 54619765.44 | J15: =IF(J11<=('0 Úvod'!$G$19+'0 Úvod'!$J$19-1),SUMPRODUCT(J148:J160,J183:J195)+J197,0) -> 55985259.58 | K15: =IF(K11<=('0 Úvod'!$G$19+'0 Úvod'!$J$19-1),SUMPRODUCT(K148:K160,K183:K195)+K197,0) -> 57104964.77 | L15: =IF(L11<=('0 Úvod'!$G$19+'0 Úvod'!$J$19-1),SUMPRODUCT(L148:L160,L183:L195)+L197,0) -> 58247064.06 | M15: =IF(M11<=('0 Úvod'!$G$19+'0 Úvod'!$J$19-1),SUMPRODUCT(M148:M160,M183:M195)+M197,0) -> 59412005.34 | N15: =IF(N11<=('0 Úvod'!$G$19+'0 Úvod'!$J$19-1),SUMPRODUCT(N148:N160,N183:N195)+N197,0) -> 60600245.45 | O15: =IF(O11<=('0 Úvod'!$G$19+'0 Úvod'!$J$19-1),SUMPRODUCT(O148:O160,O183:O195)+O197,0) -> 61812250.36 | P15: =IF(P11<=('0 Úvod'!$G$19+'0 Úvod'!$J$19-1),SUMPRODUCT(P148:P160,P183:P195)+P197,0) -> 63048495.37 | Q15: =IF(Q11<=('0 Úvod'!$G$19+'0 Úvod'!$J$19-1),SUMPRODUCT(Q148:Q160,Q183:Q195)+Q197,0) -> 64309465.27 | R15: =IF(R11<=('0 Úvod'!$G$19+'0 Úvod'!$J$19-1),SUMPRODUCT(R148:R160,R183:R195)+R197,0) -> 65595654.58 | S15: =IF(S11<=('0 Úvod'!$G$19+'0 Úvod'!$J$19-1),SUMPRODUCT(S148:S160,S183:S195)+S197,0) -> 66907567.67
C16: Náklady na provoz vlaků - osobní | E16: =E88*$D$67+E89*$D$68 -> 410346966.7 | F16: =F88*$D$67+F89*$D$68 -> 410346966.7 | G16: 410346966.7 | H16: 410346966.7 | I16: 410346966.7 | J16: 410346966.7 | K16: 410346966.7 | L16: 410346966.7 | M16: 410346966.7 | N16: 410346966.7 | O16: 410346966.7 | P16: 410346966.7 | Q16: 410346966.7 | R16: 410346966.7 | S16: 410346966.7
C17: Náklady na provoz vlaků - nákladní
C18: Celkové provozní náklady | E18: =SUM(E13:E17) -> 625000973.9 | F18: =SUM(F13:F17) -> 627063900.2 | G18: =SUM(G13:G17) -> 629161882.5 | H18: 631295714.7 | I18: 633466209.9 | J18: 635674201.4 | K18: 637640616.5 | L18: 639633659.2 | M18: 641653798.7 | N18: 643701512.9 | O18: 645777289.3 | P18: 647881624.7 | Q18: 650887456.2 | R18: 653935955.8 | S18: =SUM(S13:S17) -> 657027802.2
B21: 3.2. | C21: Celkové provozní náklady (CZK) | E21: =E2 -> 2009 | F21: =E21+1 -> 2010 | G21: 2011 | H21: 2012 | I21: 2013 | J21: 2014 | K21: 2015 | L21: 2016 | M21: 2017 | N21: 2018 | O21: 2019 | P21: 2020 | Q21: 2021 | R21: 2022 | S21: 2023
B22: a | C22: Scénář bez projektu | D22: Celkem
C23: Náklady na údržbu a provoz infrastr. | D23: =SUM(E23:S23,E32:S32) -> 7187040033 | E23: 239395425.5 | F23: 240803321.2 | G23: 244319159.1 | H23: 243166068.3 | I23: 239595291.7 | J23: 238470782.2 | K23: 237390498.3 | L23: 237721172.8 | M23: 236624888.9 | N23: 235312243.1 | O23: 236951179 | P23: 233829354.7 | Q23: 233666914.9 | R23: 235156818.5 | S23: 238707884.3
C24: Periodické provozní náklady | D24: =SUM(E24:S24,E33:S33) -> 5858692381 | E24: 171832568.9 | F24: 11104665.95 | G24: 72140932.38 | H24: 1106628635 | I24: 103947705 | J24: 168072131 | K24: 26814883.44 | L24: 88063381.41 | M24: 125076816.5 | N24: 171183165.8 | O24: 286821397.5 | P24: 196790744.1 | Q24: 246906617.5 | R24: 301420894.2 | S24: 37235833.4
C25: Náklady na řízení provozu | D25: 4272964589 | E25: =IF(E21<=('0 Úvod'!$G$19+'0 Úvod'!$J$19-1),SUMPRODUCT(E131:E143,E201:E213)+E215,0) -> 100746101.8 | F25: =IF(F21<=('0 Úvod'!$G$19+'0 Úvod'!$J$19-1),SUMPRODUCT(F131:F143,F201:F213)+F215,0) -> 103191395.5 | G25: =IF(G21<=('0 Úvod'!$G$19+'0 Úvod'!$J$19-1),SUMPRODUCT(G131:G143,G201:G213)+G215,0) -> 102986039.5 | H25: =IF(H21<=('0 Úvod'!$G$19+'0 Úvod'!$J$19-1),SUMPRODUCT(H131:H143,H201:H213)+H215,0) -> 102162151.2 | I25: =IF(I21<=('0 Úvod'!$G$19+'0 Úvod'!$J$19-1),SUMPRODUCT(I131:I143,I201:I213)+I215,0) -> 100629718.9 | J25: =IF(J21<=('0 Úvod'!$G$19+'0 Úvod'!$J$19-1),SUMPRODUCT(J131:J143,J201:J213)+J215,0) -> 102541683.6 | K25: =IF(K21<=('0 Úvod'!$G$19+'0 Úvod'!$J$19-1),SUMPRODUCT(K131:K143,K201:K213)+K215,0) -> 105412850.7 | L25: =IF(L21<=('0 Úvod'!$G$19+'0 Úvod'!$J$19-1),SUMPRODUCT(L131:L143,L201:L213)+L215,0) -> 108575236.2 | M25: =IF(M21<=('0 Úvod'!$G$19+'0 Úvod'!$J$19-1),SUMPRODUCT(M131:M143,M201:M213)+M215,0) -> 111289617.1 | N25: =IF(N21<=('0 Úvod'!$G$19+'0 Úvod'!$J$19-1),SUMPRODUCT(N131:N143,N201:N213)+N215,0) -> 114628305.6 | O25: =IF(O21<=('0 Úvod'!$G$19+'0 Úvod'!$J$19-1),SUMPRODUCT(O131:O143,O201:O213)+O215,0) -> 118067154.8 | P25: =IF(P21<=('0 Úvod'!$G$19+'0 Úvod'!$J$19-1),SUMPRODUCT(P131:P143,P201:P213)+P215,0) -> 121018833.7 | Q25: =IF(Q21<=('0 Úvod'!$G$19+'0 Úvod'!$J$19-1),SUMPRODUCT(Q131:Q143,Q201:Q213)+Q215,0) -> 124044304.5 | R25: =IF(R21<=('0 Úvod'!$G$19+'0 Úvod'!$J$19-1),SUMPRODUCT(R131:R143,R201:R213)+R215,0) -> 129719597.9 | S25: =IF(S21<=('0 Úvod'!$G$19+'0 Úvod'!$J$19-1),SUMPRODUCT(S131:S143,S201:S213)+S215,0) -> 115693054.6
C26: Náklady na provoz vlaků - osobní | D26: 1.010384969e+10 | E26: =E97*$D$71+E98*$D$72 -> 325485542.1 | F26: =F97*$D$71+F98*$D$72 -> 318507442 | G26: 315570117.8 | H26: 311290331.1 | I26: 311290331.1 | J26: 316983846.6 | K26: 317605504.4 | L26: 319884916.5 | M26: 343415346.8 | N26: 343415346.8 | O26: 343415346.8 | P26: 346334918.4 | Q26: 348149937.2 | R26: 352510792.9 | S26: 356733266.9
C27: Náklady na provoz vlaků - nákladní | D27: 0
C28: Celkové provozní náklady | D28: 2.742254669e+10 | E28: =SUM(E23:E27) -> 837459638.3 | F28: =SUM(F23:F27) -> 673606824.7 | G28: =SUM(G23:G27) -> 735016248.8 | H28: 1763247186 | I28: 755463046.7 | J28: 826068443.4 | K28: 687223736.8 | L28: 754244706.9 | M28: 816406669.3 | N28: 864539061.4 | O28: 985255078.1 | P28: 897973850.8 | Q28: 952767774.2 | R28: 1018808104 | S28: =SUM(S23:S27) -> 748370039.2
B30: 3.2. | C30: Celkové provozní náklady (CZK) | E30: =S21+1 -> 2024 | F30: =E30+1 -> 2025 | G30: 2026 | H30: 2027 | I30: 2028 | J30: 2029 | K30: 2030 | L30: 2031 | M30: 2032 | N30: 2033 | O30: 2034 | P30: 2035 | Q30: 2036 | R30: 2037 | S30: 2038
B31: b | C31: Scénář bez projektu | E31: =S22+1 -> 1
C32: Náklady na údržbu a provoz infrastr. | E32: 244292306.1 | F32: 240800779.6 | G32: 238468571 | H32: 238971458 | I32: 240192335.9 | J32: 244280563.5 | K32: 243345016.4 | L32: 245745050.1 | M32: 244406415.5 | N32: 241530792.5 | O32: 240052987.4 | P32: 239127746.9 | Q32: 239017437.3 | R32: 238584535.8 | S32: 237113034.1
C33: Periodické provozní náklady | E33: 858443544.9 | F33: 562159416.5 | G33: 19825221.88 | H33: 34586116.24 | I33: 18903857.4 | J33: 202003760.8 | K33: 47711429.81 | L33: 94409994.11 | M33: 196561991.5 | N33: 120863956.8 | O33: 103988372.1 | P33: 55035324.27 | Q33: 72588270.72 | R33: 160524567.4 | S33: 197046184.4
C34: Náklady na řízení provozu | E34: =IF(E30<=('0 Úvod'!$G$19+'0 Úvod'!$J$19-1),SUMPRODUCT(E148:E160,E219:E231)+E233,0) -> 118585380.9 | F34: =IF(F30<=('0 Úvod'!$G$19+'0 Úvod'!$J$19-1),SUMPRODUCT(F148:F160,F219:F231)+F233,0) -> 121550015.5 | G34: =IF(G30<=('0 Úvod'!$G$19+'0 Úvod'!$J$19-1),SUMPRODUCT(G148:G160,G219:G231)+G233,0) -> 124588765.8 | H34: =IF(H30<=('0 Úvod'!$G$19+'0 Úvod'!$J$19-1),SUMPRODUCT(H148:H160,H219:H231)+H233,0) -> 166126540.8 | I34: =IF(I30<=('0 Úvod'!$G$19+'0 Úvod'!$J$19-1),SUMPRODUCT(I148:I160,I219:I231)+I233,0) -> 170279704.3 | J34: =IF(J30<=('0 Úvod'!$G$19+'0 Úvod'!$J$19-1),SUMPRODUCT(J148:J160,J219:J231)+J233,0) -> 174536697 | K34: =IF(K30<=('0 Úvod'!$G$19+'0 Úvod'!$J$19-1),SUMPRODUCT(K148:K160,K219:K231)+K233,0) -> 178027430.9 | L34: =IF(L30<=('0 Úvod'!$G$19+'0 Úvod'!$J$19-1),SUMPRODUCT(L148:L160,L219:L231)+L233,0) -> 181587979.5 | M34: =IF(M30<=('0 Úvod'!$G$19+'0 Úvod'!$J$19-1),SUMPRODUCT(M148:M160,M219:M231)+M233,0) -> 185219739.1 | N34: =IF(N30<=('0 Úvod'!$G$19+'0 Úvod'!$J$19-1),SUMPRODUCT(N148:N160,N219:N231)+N233,0) -> 188924133.9 | O34: =IF(O30<=('0 Úvod'!$G$19+'0 Úvod'!$J$19-1),SUMPRODUCT(O148:O160,O219:O231)+O233,0) -> 192702616.6 | P34: =IF(P30<=('0 Úvod'!$G$19+'0 Úvod'!$J$19-1),SUMPRODUCT(P148:P160,P219:P231)+P233,0) -> 196556668.9 | Q34: =IF(Q30<=('0 Úvod'!$G$19+'0 Úvod'!$J$19-1),SUMPRODUCT(Q148:Q160,Q219:Q231)+Q233,0) -> 200487802.3 | R34: =IF(R30<=('0 Úvod'!$G$19+'0 Úvod'!$J$19-1),SUMPRODUCT(R148:R160,R219:R231)+R233,0) -> 204497558.3 | S34: =IF(S30<=('0 Úvod'!$G$19+'0 Úvod'!$J$19-1),SUMPRODUCT(S148:S160,S219:S231)+S233,0) -> 208587509.5
C35: Náklady na provoz vlaků - osobní | E35: =E105*$D$71+E106*$D$72 -> 326128364 | F35: =F105*$D$71+F106*$D$72 -> 336807886.3 | G35: 339169468.4 | H35: 333915742 | I35: 336824311.2 | J35: 338489564.8 | K35: 346880151.3 | L35: 346880151.3 | M35: 346880151.3 | N35: 346880151.3 | O35: 346880151.3 | P35: 346880151.3 | Q35: 346880151.3 | R35: 346880151.3 | S35: 346880151.3
C36: Náklady na provoz vlaků - nákladní
C37: Celkové provozní náklady | E37: =SUM(E32:E36) -> 1547449596 | F37: =SUM(F32:F36) -> 1261318098 | G37: =SUM(G32:G36) -> 722052027 | H37: 773599857.1 | I37: 766200208.8 | J37: 959310586 | K37: 815964028.4 | L37: 868623175 | M37: 973068297.5 | N37: 898199034.5 | O37: 883624127.4 | P37: 837599891.3 | Q37: 858973661.6 | R37: 950486812.8 | S37: =SUM(S32:S36) -> 989626879.4
B40: 3.3.a | C40: Přírůstkové celkové provozní náklady (CZK) | E40: =E2 -> 2009 | F40: =E40+1 -> 2010 | G40: 2011 | H40: 2012 | I40: 2013 | J40: 2014 | K40: 2015 | L40: 2016 | M40: 2017 | N40: 2018 | O40: 2019 | P40: 2020 | Q40: 2021 | R40: 2022 | S40: 2023
B41: KF | C41: s aplikací fiskální korekce | D41: Celkem
B42: 0.93 | C42: Náklady na údržbu a provoz infrastr. | D42: =SUM(E42:S42,E51:S51) -> -2057181940 | E42: =(E4-E23)*$B$42 -> -79010210.2 | F42: =(F4-F23)*$B$42 -> -74607340.81 | G42: -46033264.8 | H42: -99620356.3 | I42: -105507666.4 | J42: -68970207.11 | K42: -72250998 | L42: -75463452.91 | M42: -74443908.85 | N42: -73223148.32 | O42: -64642331.99 | P42: -61688510.25 | Q42: -61486663.53 | R42: -62821242.19 | S42: -66072446.56
B43: 0.93 | C43: Periodické provozní náklady | D43: =SUM(E43:S43,E52:S52) -> -5448583915 | E43: =(E5-E24)*$B$43 -> -159804289.1 | F43: =(F5-F24)*$B$43 -> -10327339.33 | G43: -67091067.11 | H43: -1029164631 | I43: -96671365.67 | J43: -156307081.8 | K43: -24937841.6 | L43: -81898944.71 | M43: -116321439.3 | N43: -159200344.2 | O43: -266743899.7 | P43: -183015392 | Q43: -229623154.2 | R43: -280321431.6 | S43: -34629325.06
B44: 0.82 | C44: Náklady na řízení provozu | D44: -1624220479 | E44: =(E6-E25)*$B$44 -> 2829980.094 | F44: =(F6-F25)*$B$44 -> 986332.9209 | G44: 9258134.909 | H44: -7630806.658 | I44: -8006636.63 | J44: -8389214.29 | K44: -5011121.043 | L44: -7242262.132 | M44: -9468054.474 | N44: -12205779.06 | O44: -32133451.43 | P44: -32936787.72 | Q44: -33760207.41 | R44: -36715044.94 | S44: -17702682.54
B45: 0.93 | C45: Náklady na provoz vlaků - osobní | D45: 732860959.3 | E45: =(E7-E26)*$B$45 -> 0 | F45: =(F7-F26)*$B$45 -> 0 | G45: 0 | H45: 0 | I45: 0 | J45: 0 | K45: -14739278.28 | L45: -14739278.28 | M45: -29824106.76 | N45: -29824106.76 | O45: -22592884.87 | P45: -22592884.87 | Q45: -26171463.6 | R45: -27038676.28 | S45: -30027817.36
B46: 0.93 | C46: Náklady na provoz vlaků - nákladní | D46: 0 | E46: =(E8-E27)*$B$46 -> 0 | F46: =(F8-F27)*$B$46 -> 0 | G46: 0 | H46: 0 | I46: 0 | J46: 0 | K46: 0 | L46: 0 | M46: 0 | N46: 0 | O46: 0 | P46: 0 | Q46: 0 | R46: 0 | S46: 0
C47: Přírůstkové celkové provozní náklady | D47: -8397125375 | E47: =SUM(E42:E46) -> -235984519.2 | F47: =SUM(F42:F46) -> -83948347.22 | G47: =SUM(G42:G46) -> -103866197 | H47: -1136415794 | I47: -210185668.7 | J47: -233666503.2 | K47: -116939238.9 | L47: -179343938 | M47: -230057509.4 | N47: -274453378.4 | O47: -386112568 | P47: -300233574.8 | Q47: -351041488.8 | R47: -406896395.1 | S47: -148432271.5
B49: 3.3.b | C49: Přírůstkové celkové provozní náklady (CZK) | E49: =S40+1 -> 2024 | F49: =E49+1 -> 2025 | G49: 2026 | H49: 2027 | I49: 2028 | J49: 2029 | K49: 2030 | L49: 2031 | M49: 2032 | N49: 2033 | O49: 2034 | P49: 2035 | Q49: 2036 | R49: 2037 | S49: 2038
B50: KF | C50: =C41 -> s aplikací fiskální korekce | E50: =S41+1 -> 1
B51: =B42 -> 0.93 | C51: Náklady na údržbu a provoz infrastr. | E51: =(E13-E32)*$B$42 -> -73582632.91 | F51: =(F13-F32)*$B$42 -> -69567467.13 | G51: -66626626.85 | H51: -66318566.12 | I51: -66674358.05 | J51: -69692887.17 | K51: -68035388.15 | L51: -69476042.14 | M51: -67435777.72 | N51: -63962137.37 | O51: -61784471.15 | P51: -60116673.39 | Q51: -58391364.18 | R51: -56349817.25 | S51: -53325982.68
B52: =B43 -> 0.93 | C52: Periodické provozní náklady | E52: =(E14-E33)*$B$43 -> -798352496.8 | F52: =(F14-F33)*$B$43 -> -522808257.4 | G52: -18437456.35 | H52: -32165088.11 | I52: -17580587.38 | J52: -187863497.5 | K52: -44371629.72 | L52: -87801294.52 | M52: -182802652.1 | N52: -112403479.9 | O52: -96709186.09 | P52: -51182851.57 | Q52: -67507091.77 | R52: -149287847.7 | S52: -183252951.5
B53: =B44 -> 0.82 | C53: Náklady na řízení provozu | E53: =(E15-E34)*$B$44 -> -56664106.76 | F53: =(F15-F34)*$B$44 -> -58080709.43 | G53: -59532727.16 | H53: -92527951.13 | I53: -94841149.91 | J53: -97212178.65 | K53: -99156422.23 | L53: -101139550.7 | M53: -103162341.7 | N53: -105225588.5 | O53: -107330100.3 | P53: -109476702.3 | Q53: -111666236.3 | R53: -113899561.1 | S53: -116177552.3
B54: =B45 -> 0.93 | C54: Náklady na provoz vlaků - osobní | E54: =(E16-E35)*$B$45 -> 78323300.52 | F54: =(F16-F35)*$B$45 -> 68391344.82 | G54: 66195073.48 | H54: 71081038.99 | I54: 68376069.62 | J54: 66827383.83 | K54: 59024138.35 | L54: 59024138.35 | M54: 59024138.35 | N54: 59024138.35 | O54: 59024138.35 | P54: 59024138.35 | Q54: 59024138.35 | R54: 59024138.35 | S54: 59024138.35
B55: =B46 -> 0.93 | C55: Náklady na provoz vlaků - nákladní | E55: =(E17-E36)*$B$46 -> 0 | F55: =(F17-F36)*$B$46 -> 0 | G55: 0 | H55: 0 | I55: 0 | J55: 0 | K55: 0 | L55: 0 | M55: 0 | N55: 0 | O55: 0 | P55: 0 | Q55: 0 | R55: 0 | S55: 0
C56: Přírůstkové celkové provozní náklady | E56: =SUM(E51:E55) -> -850275935.9 | F56: -582065089.1 | G56: -78401736.88 | H56: -119930566.4 | I56: -110720025.7 | J56: -287941179.5 | K56: -152539301.7 | L56: -199392749 | M56: -294376633.2 | N56: -222567067.4 | O56: -206799619.2 | P56: -161752088.9 | Q56: -178540553.9 | R56: -260513087.6 | S56: -293732348.2
C59: Scénář s projektem (CZK) | D59: =D9 -> 1.815909657e+10
C60: Scénář bez projektu (CZK) | D60: =D28 -> 2.742254669e+10
C61: Přírůstkové cash-flow (CZK) | D61: =D47 -> -8397125375
B64: 3.4. | C64: Náklady na provoz vlaků
C65: CÚ | D65: ='0 Úvod'!D19 -> 2016
C66: Měrné ohodnocení | D66: Kč/vlhod
B67: PROJEKT | C67: osobní příměstská doprava | D67: 4257.930355
C68: osobní dálková doprava | D68: 6470.087902
C69: nákladní regionální doprava | D69: 2545.781856
C70: nákladní dálková doprava | D70: 2285.542539
B71: BEZ PROJ. | C71: osobní příměstská doprava | D71: 4257.930355
C72: osobní dálková doprava | D72: 6470.087902
C73: nákladní regionální doprava | D73: 2545.781856
C74: nákladní dálková doprava | D74: 2285.542539
C76: Pozn. Měrné ohodnocení - konkrétní hodnoty uvede zpracovatel.
B78: 3.5. | C78: Celkové vlakohodiny | E78: =E40 -> 2009 | F78: =E78+1 -> 2010 | G78: 2011 | H78: 2012 | I78: 2013 | J78: 2014 | K78: 2015 | L78: 2016 | M78: 2017 | N78: 2018 | O78: 2019 | P78: 2020 | Q78: 2021 | R78: 2022 | S78: 2023
B79: a | C79: Scénář s projektem | D79: Celkem
C80: osobní příměstská doprava | D80: =SUM(E80:S80,E88:S88) -> 1384799.137 | E80: 39614.66667 | F80: 39584.25 | G80: 40502.83333 | H80: 40551.5 | I80: 40551.5 | J80: 39614.66667 | K80: 38811.66667 | L80: 39347 | M80: 39067.16667 | N80: 39067.16667 | O80: 44590.83333 | P80: 45276.5119 | Q80: 45298.2381 | R80: 46103.41071 | S80: 46340.22619
C81: osobní dálková doprava | D81: =SUM(E81:S81,E89:S89) -> 772090.5833 | E81: 24236 | F81: 23177.5 | G81: 22119 | H81: 21425.5 | I81: 21425.5 | J81: 22922 | K81: 21097 | L81: 21097 | M81: 22411 | N81: 22411 | O81: 19977.66667 | P81: 19977.66667 | Q81: 19649.16667 | R81: 19649.16667 | S81: 19649.16667
C82: nákladní regionální doprava | D82: 47131.89294 | E82: 1455.233796 | F82: 1455.233796 | G82: 1455.233796 | H82: 1455.233796 | I82: 1455.233796 | J82: 1455.233796 | K82: 1455.233796 | L82: 1478.780221 | M82: 1502.326646 | N82: 1525.873071 | O82: 1474.342335 | P82: 1496.654192 | Q82: 1518.966049 | R82: 1541.277906 | S82: 1563.589763
C83: nákladní dálková doprava | D83: 287841.2033 | E83: 8887.320685 | F83: 8887.320685 | G83: 8887.320685 | H83: 8887.320685 | I83: 8887.320685 | J83: 8887.320685 | K83: 8887.320685 | L83: 9031.122065 | M83: 9174.923446 | N83: 9318.724826 | O83: 9004.019263 | P83: 9140.280961 | Q83: 9276.542659 | R83: 9412.804357 | S83: 9549.066055
C84: Celkem | D84: 2491862.816 | E84: =SUM(E80:E83) -> 74193.22115 | F84: 73104.30448 | G84: 72964.38781 | H84: 72319.55448 | I84: 72319.55448 | J84: 72879.22115 | K84: 70251.22115 | L84: 70953.90229 | M84: 72155.41676 | N84: 72322.76456 | O84: 75046.8616 | P84: 75891.11372 | Q84: 75742.91347 | R84: 76706.65964 | S84: 77102.04868
B86: =B78 -> 3.5. | C86: =C78 -> Celkové vlakohodiny | E86: =S78+1 -> 2024 | F86: =E86+1 -> 2025 | G86: 2026 | H86: 2027 | I86: 2028 | J86: 2029 | K86: 2030 | L86: 2031 | M86: 2032 | N86: 2033 | O86: 2034 | P86: 2035 | Q86: 2036 | R86: 2037 | S86: 2038
B87: b | C87: Scénář s projektem
C88: =C80 -> osobní příměstská doprava | E88: 50698.5 | F88: 50698.5 | G88: 50698.5 | H88: 50698.5 | I88: 50698.5 | J88: 50698.5 | K88: 50698.5 | L88: 50698.5 | M88: 50698.5 | N88: 50698.5 | O88: 50698.5 | P88: 50698.5 | Q88: 50698.5 | R88: 50698.5 | S88: 50698.5
C89: =C81 -> osobní dálková doprava | E89: 30057.75 | F89: 30057.75 | G89: 30057.75 | H89: 30057.75 | I89: 30057.75 | J89: 30057.75 | K89: 30057.75 | L89: 30057.75 | M89: 30057.75 | N89: 30057.75 | O89: 30057.75 | P89: 30057.75 | Q89: 30057.75 | R89: 30057.75 | S89: 30057.75
C90: =C82 -> nákladní regionální doprava | E90: 1585.90162 | F90: 1595.948495 | G90: 1605.99537 | H90: 1616.042245 | I90: 1626.08912 | J90: 1636.135995 | K90: 1646.18287 | L90: 1656.229745 | M90: 1666.27662 | N90: 1676.323495 | O90: 1686.37037 | P90: 1696.417245 | Q90: 1706.46412 | R90: 1716.510995 | S90: 1726.55787
C91: =C83 -> nákladní dálková doprava | E91: 9685.327753 | F91: 9746.685454 | G91: 9808.043155 | H91: 9869.400856 | I91: 9930.758557 | J91: 9992.116257 | K91: 10053.47396 | L91: 10114.83166 | M91: 10176.18936 | N91: 10237.54706 | O91: 10298.90476 | P91: 10360.26246 | Q91: 10421.62016 | R91: 10482.97786 | S91: 10544.33557
C92: =C84 -> Celkem | E92: =SUM(E88:E91) -> 92027.47937 | F92: 92098.88395 | G92: 92170.28853 | H92: 92241.6931 | I92: 92313.09768 | J92: 92384.50225 | K92: 92455.90683 | L92: 92527.3114 | M92: 92598.71598 | N92: 92670.12056 | O92: 92741.52513 | P92: 92812.92971 | Q92: 92884.33428 | R92: 92955.73886 | S92: 93027.14344
B95: 3.6. | C95: =C78 -> Celkové vlakohodiny | E95: =E78 -> 2009 | F95: =E95+1 -> 2010 | G95: 2011 | H95: 2012 | I95: 2013 | J95: 2014 | K95: 2015 | L95: 2016 | M95: 2017 | N95: 2018 | O95: 2019 | P95: 2020 | Q95: 2021 | R95: 2022 | S95: 2023
B96: a | C96: Scénář bez projektu | D96: Celkem
C97: osobní příměstská doprava | D97: =SUM(E97:S97,E105:S105) -> 1101437.47 | E97: 39614.66667 | F97: 39584.25 | G97: 40502.83333 | H97: 40551.5 | I97: 40551.5 | J97: 39614.66667 | K97: 39760.66667 | L97: 40296 | M97: 39943.16667 | N97: 39943.16667 | O97: 39943.16667 | P97: 40628.84524 | Q97: 41055.1131 | R97: 42079.28571 | S97: 42793.64286
C98: osobní dálková doprava | D98: =SUM(E98:S98,E106:S106) -> 836774.6667 | E98: 24236 | F98: 23177.5 | G98: 22119 | H98: 21425.5 | I98: 21425.5 | J98: 22922 | K98: 22922 | L98: 22922 | M98: 26791 | N98: 26791 | O98: 26791 | P98: 26791 | Q98: 26791 | R98: 26791 | S98: 26973.5
C99: nákladní regionální doprava | D99: 46055.17357 | E99: 1455.233796 | F99: 1455.233796 | G99: 1455.233796 | H99: 1455.233796 | I99: 1455.233796 | J99: 1455.233796 | K99: 1455.233796 | L99: 1467.778614 | M99: 1480.323431 | N99: 1492.868248 | O99: 1505.413066 | P99: 1517.957883 | Q99: 1530.502701 | R99: 1543.047518 | S99: 1555.592335
C100: nákladní dálková doprava | D100: 281265.5243 | E100: 8887.320685 | F100: 8887.320685 | G100: 8887.320685 | H100: 8887.320685 | I100: 8887.320685 | J100: 8887.320685 | K100: 8887.320685 | L100: 8963.933676 | M100: 9040.546668 | N100: 9117.15966 | O100: 9193.772652 | P100: 9270.385644 | Q100: 9346.998636 | R100: 9423.611628 | S100: 9500.22462
C101: Celkem | D101: 2265532.835 | E101: =SUM(E97:E100) -> 74193.22115 | F101: 73104.30448 | G101: 72964.38781 | H101: 72319.55448 | I101: 72319.55448 | J101: 72879.22115 | K101: 73025.22115 | L101: 73649.71229 | M101: 77255.03677 | N101: 77344.19458 | O101: 77433.35238 | P101: 78208.18877 | Q101: 78723.61443 | R101: 79836.94486 | S101: 80822.95981
B103: =B95 -> 3.6. | C103: =C95 -> Celkové vlakohodiny | E103: =S95+1 -> 2024 | F103: =E103+1 -> 2025 | G103: 2026 | H103: 2027 | I103: 2028 | J103: 2029 | K103: 2030 | L103: 2031 | M103: 2032 | N103: 2033 | O103: 2034 | P103: 2035 | Q103: 2036 | R103: 2037 | S103: 2038
B104: b | C104: Scénář bez projektu | E104: =S96+1 -> 1
C105: =C97 -> osobní příměstská doprava | E105: 33701.66667 | F105: 34176.16667 | G105: 34176.16667 | H105: 32387.66667 | I105: 32460.66667 | J105: 32241.66667 | K105: 32825.66667 | L105: 32825.66667 | M105: 32825.66667 | N105: 32825.66667 | O105: 32825.66667 | P105: 32825.66667 | Q105: 32825.66667 | R105: 32825.66667 | S105: 32825.66667
C106: =C98 -> osobní dálková doprava | E106: 28226.66667 | F106: 29565 | G106: 29930 | H106: 30295 | I106: 30696.5 | J106: 31098 | K106: 32010.5 | L106: 32010.5 | M106: 32010.5 | N106: 32010.5 | O106: 32010.5 | P106: 32010.5 | Q106: 32010.5 | R106: 32010.5 | S106: 32010.5
C107: =C99 -> nákladní regionální doprava | E107: 1377.815935 | F107: 1393.707183 | G107: 1596.135502 | H107: 1599.388945 | I107: 1602.642388 | J107: 1605.895831 | K107: 1609.149274 | L107: 1612.402717 | M107: 1615.65616 | N107: 1618.909603 | O107: 1622.163046 | P107: 1625.416489 | Q107: 1628.669932 | R107: 1631.923375 | S107: 1635.176818
C108: =C100 -> nákladní dálková doprava | E108: 8414.518747 | F108: 8511.568869 | G108: 9747.827528 | H108: 9767.69677 | I108: 9787.566011 | J108: 9807.435252 | K108: 9827.304493 | L108: 9847.173734 | M108: 9867.042975 | N108: 9886.912217 | O108: 9906.781458 | P108: 9926.650699 | Q108: 9946.51994 | R108: 9966.389181 | S108: 9986.258422
C109: =C101 -> Celkem | E109: =SUM(E105:E108) -> 71720.66802 | F109: 73646.44272 | G109: 75450.1297 | H109: 74049.75238 | I109: 74547.37507 | J109: 74752.99775 | K109: 76272.62043 | L109: 76295.74312 | M109: 76318.8658 | N109: 76341.98849 | O109: 76365.11117 | P109: 76388.23385 | Q109: 76411.35654 | R109: 76434.47922 | S109: 76457.60191
B111: 3.7. | C111: Náklady na řízení provozu | D111: Celk. náklady | E111: Hrubá mzda
C112: CÚ | D112: 2012 | E112: 2012
C113: Měrné ohodnocení | D113: CZK/rok | E113: CZK/rok
B114: 13167 | C114: Dozorčí provozu | D114: 700935 | E114: 515444
B115: 31606 | C115: Výpravčí | D115: 469759 | E115: 343235
B116: 31608 | C116: Dozorčí provozu - vedoucí směny | D116: 537552 | E116: 394011
B117: 41333 | C117: Operátor železniční dopravy | D117: 335996 | E117: 243243
B118: 83135 | C118: Signalista | D118: 371990 | E118: 270199
B119: 83137 | C119: Výhybkář | D119: 308844 | E119: 222345
B120: 83141 | C120: Staniční dozorce | D120: 352233 | E120: 254766
B121: 83142 | C121: Dozorce výhybek | D121: 328384 | E121: 237467
B122: 83143 | C122: Závorář | D122: 288974 | E122: 207450
B123: 83144 | C123: Závorář s prodejem jízdenek | D123: 312352 | E123: 225554
B124: 83145 | C124: Hradlář - hláskař | D124: 305523 | E124: 220391
B125: 83146 | C125: Hradlář - hláskař s prodejem jízdenek | D125: 300697 | E125: 216798
B126: 93398 | C126: Dělník v dopravě - staniční dělník | D126: 226581 | E126: 162461
B128: 3.8. | C128: Růst nákladů na řízení provozu | E128: =E40 -> 2009 | F128: =F40 -> 2010 | G128: 2011 | H128: =H40 -> 2012 | I128: 2013 | J128: 2014 | K128: 2015 | L128: 2016 | M128: 2017 | N128: 2018 | O128: 2019 | P128: 2020 | Q128: 2021 | R128: 2022 | S128: 2023
B129: a | D129: Elasticita
C130: Růst reálné mzdy v dopravě | D130: 1 | E130: 0 | F130: 0.02427184466 | G130: -0.001990049751 | H130: =$D$130*HLOOKUP(H$128,'0 Úvod'!$D$77:$N$79,2,TRUE) -> -0.008 | I130: =$D$130*HLOOKUP(I$128,'0 Úvod'!$D$77:$N$79,2,TRUE) -> -0.015 | J130: =$D$130*HLOOKUP(J$128,'0 Úvod'!$D$77:$N$79,2,TRUE) -> 0.019 | K130: =$D$130*HLOOKUP(K$128,'0 Úvod'!$D$77:$N$79,2,TRUE) -> 0.028 | L130: =$D$130*HLOOKUP(L$128,'0 Úvod'!$D$77:$N$79,2,TRUE) -> 0.03 | M130: =$D$130*HLOOKUP(M$128,'0 Úvod'!$D$77:$N$79,2,TRUE) -> 0.025 | N130: =$D$130*HLOOKUP(N$128,'0 Úvod'!$D$77:$N$79,2,TRUE) -> 0.03 | O130: =$D$130*HLOOKUP(O$128,'0 Úvod'!$D$77:$N$79,2,TRUE) -> 0.03 | P130: =$D$130*HLOOKUP(P$128,'0 Úvod'!$D$77:$N$79,2,TRUE) -> 0.025 | Q130: =$D$130*HLOOKUP(Q$128,'0 Úvod'!$D$77:$N$79,2,TRUE) -> 0.025 | R130: =$D$130*HLOOKUP(R$128,'0 Úvod'!$D$77:$N$79,2,TRUE) -> 0.025 | S130: =$D$130*HLOOKUP(S$128,'0 Úvod'!$D$77:$N$79,2,TRUE) -> 0.025
B131: =B114 -> 13167 | C131: Dozorčí provozu | E131: =F131/(1+F$130) -> 712869.3501 | F131: =G131/(1+G$130) -> 730172.0042 | G131: =H131/(1+H$130) -> 728718.9256 | H131: =D114*(1+'0 Úvod'!$K$50)*(1+'0 Úvod'!$L$50)*(1+'0 Úvod'!$M$50)*(1+'0 Úvod'!$N$50) -> 722889.1742 | I131: =H131*(1+I$130) -> 712045.8366 | J131: 725574.7074 | K131: 745890.7993 | L131: 768267.5232 | M131: 787474.2113 | N131: 811098.4377 | O131: 835431.3908 | P131: 856317.1756 | Q131: 877725.1049 | R131: 899668.2326 | S131: 922159.9384
B132: 31606 | C132: Výpravčí | E132: =F132/(1+F$130) -> 477757.2714 | F132: =G132/(1+G$130) -> 489353.3217 | G132: =H132/(1+H$130) -> 488379.4842 | H132: =D115*(1+'0 Úvod'!$K$50)*(1+'0 Úvod'!$L$50)*(1+'0 Úvod'!$M$50)*(1+'0 Úvod'!$N$50) -> 484472.4483 | I132: =H132*(1+I$130) -> 477205.3616 | J132: 486272.2635 | K132: 499887.8868 | L132: 514884.5235 | M132: 527756.6365 | N132: 543589.3356 | O132: 559897.0157 | P132: 573894.4411 | Q132: 588241.8021 | R132: 602947.8472 | S132: 618021.5434
B133: 31608 | C133: Dozorčí provozu - vedoucí směny | E133: 546704.5373 | F133: 559974.0649 | G133: 558859.6887 | H133: =D116*(1+'0 Úvod'!$K$50)*(1+'0 Úvod'!$L$50)*(1+'0 Úvod'!$M$50)*(1+'0 Úvod'!$N$50) -> 554388.8112 | I133: =H133*(1+I$130) -> 546072.979 | J133: 556448.3656 | K133: 572028.9198 | L133: 589189.7874 | M133: 603919.5321 | N133: 622037.1181 | O133: 640698.2316 | P133: 656715.6874 | Q133: 673133.5796 | R133: 689961.9191 | S133: 707210.9671
B134: 41333 | C134: Operátor železniční dopravy | E134: 341716.7785 | F134: 350010.8751 | G134: 349314.336 | H134: =D117*(1+'0 Úvod'!$K$50)*(1+'0 Úvod'!$L$50)*(1+'0 Úvod'!$M$50)*(1+'0 Úvod'!$N$50) -> 346519.8213 | I134: =H134*(1+I$130) -> 341322.024 | J134: 347807.1425 | K134: 357545.7425 | L134: 368272.1147 | M134: 377478.9176 | N134: 388803.2851 | O134: 400467.3837 | P134: 410479.0683 | Q134: 420741.045 | R134: 431259.5711 | S134: 442041.0604
B135: 83135 | C135: Signalista | E135: 378323.6242 | F135: 387506.2364 | G135: 386735.0797 | H135: =D118*(1+'0 Úvod'!$K$50)*(1+'0 Úvod'!$L$50)*(1+'0 Úvod'!$M$50)*(1+'0 Úvod'!$N$50) -> 383641.1991 | I135: =H135*(1+I$130) -> 377886.5811 | J135: 385066.4262 | K135: 395848.2861 | L135: 407723.7347 | M135: 417916.828 | N135: 430454.3329 | O135: 443367.9629 | P135: 454452.1619 | Q135: 465813.466 | R135: 477458.8026 | S135: 489395.2727
B136: 83137 | C136: Výhybkář | E136: 314102.4796 | F136: 321726.3262 | G136: 321086.0748 | H136: =D119*(1+'0 Úvod'!$K$50)*(1+'0 Úvod'!$L$50)*(1+'0 Úvod'!$M$50)*(1+'0 Úvod'!$N$50) -> 318517.3862 | I136: =H136*(1+I$130) -> 313739.6254 | J136: 319700.6783 | K136: 328652.2973 | L136: 338511.8662 | M136: 346974.6629 | N136: 357383.9028 | O136: 368105.4198 | P136: 377308.0553 | Q136: 386740.7567 | R136: 396409.2756 | S136: 406319.5075
B137: 83141 | C137: Staniční dozorce | E137: 358230.235 | F137: 366925.1436 | G137: 366194.9443 | H137: =D120*(1+'0 Úvod'!$K$50)*(1+'0 Úvod'!$L$50)*(1+'0 Úvod'!$M$50)*(1+'0 Úvod'!$N$50) -> 363265.3848 | I137: =H137*(1+I$130) -> 357816.404 | J137: 364614.9157 | K137: 374824.1333 | L137: 386068.8573 | M137: 395720.5788 | N137: 407592.1961 | O137: 419819.962 | P137: 430315.4611 | Q137: 441073.3476 | R137: 452100.1813 | S137: 463402.6858
B138: 83142 | C138: Dozorce výhybek | E138: 333975.1741 | F138: 342081.3676 | G138: 341400.6087 | H138: =D121*(1+'0 Úvod'!$K$50)*(1+'0 Úvod'!$L$50)*(1+'0 Úvod'!$M$50)*(1+'0 Úvod'!$N$50) -> 338669.4038 | I138: =H138*(1+I$130) -> 333589.3628 | J138: 339927.5607 | K138: 349445.5324 | L138: 359928.8983 | M138: 368927.1208 | N138: 379994.9344 | O138: 391394.7824 | P138: 401179.652 | Q138: 411209.1433 | R138: 421489.3719 | S138: 432026.6062
B139: 83143 | C139: Závorář | E139: 293894.1665 | F139: 301027.52 | G139: 300428.4603 | H139: =D122*(1+'0 Úvod'!$K$50)*(1+'0 Úvod'!$L$50)*(1+'0 Úvod'!$M$50)*(1+'0 Úvod'!$N$50) -> 298025.0326 | I139: =H139*(1+I$130) -> 293554.6571 | J139: 299132.1956 | K139: 307507.8971 | L139: 316733.134 | M139: 324651.4623 | N139: 334391.0062 | O139: 344422.7364 | P139: 353033.3048 | Q139: 361859.1374 | R139: 370905.6158 | S139: 380178.2562
B140: 83144 | C140: Závorář s prodejem jízdenek | E140: 317670.208 | F140: 325380.6499 | G140: 324733.1262 | H140: =D123*(1+'0 Úvod'!$K$50)*(1+'0 Úvod'!$L$50)*(1+'0 Úvod'!$M$50)*(1+'0 Úvod'!$N$50) -> 322135.2612 | I140: =H140*(1+I$130) -> 317303.2323 | J140: 323331.9937 | K140: 332385.2895 | L140: 342356.8482 | M140: 350915.7694 | N140: 361443.2425 | O140: 372286.5398 | P140: 381593.7033 | Q140: 391133.5459 | R140: 400911.8845 | S140: 410934.6816
B141: 83145 | C141: Hradlář - hláskař | E141: 310724.9352 | F141: 318266.8025 | G141: 317633.4358 | H141: =D124*(1+'0 Úvod'!$K$50)*(1+'0 Úvod'!$L$50)*(1+'0 Úvod'!$M$50)*(1+'0 Úvod'!$N$50) -> 315092.3683 | I141: =H141*(1+I$130) -> 310365.9828 | J141: 316262.9364 | K141: 325118.2986 | L141: 334871.8476 | M141: 343243.6438 | N141: 353540.9531 | O141: 364147.1817 | P141: 373250.8612 | Q141: 382582.1328 | R141: 392146.6861 | S141: 401950.3532
B142: 83146 | C142: Hradlář - hláskař s prodejem jízdenek | E142: 305816.7661 | F142: 313239.5032 | G142: 312616.141 | H142: =D125*(1+'0 Úvod'!$K$50)*(1+'0 Úvod'!$L$50)*(1+'0 Úvod'!$M$50)*(1+'0 Úvod'!$N$50) -> 310115.2118 | I142: =H142*(1+I$130) -> 305463.4837 | J142: 311267.2898 | K142: 319982.774 | L142: 329582.2572 | M142: 337821.8136 | N142: 347956.468 | O142: 358395.1621 | P142: 367355.0411 | Q142: 376538.9171 | R142: 385952.3901 | S142: 395601.1998
B143: 93398 | C143: Dělník v dopravě - staniční dělník | E143: 230438.8427 | F143: 236032.0185 | G143: 235562.303 | H143: =D126*(1+'0 Úvod'!$K$50)*(1+'0 Úvod'!$L$50)*(1+'0 Úvod'!$M$50)*(1+'0 Úvod'!$N$50) -> 233677.8046 | I143: =H143*(1+I$130) -> 230172.6375 | J143: 234545.9176 | K143: 241113.2033 | L143: 248346.5994 | M143: 254555.2644 | N143: 262191.9224 | O143: 270057.68 | P143: 276809.122 | Q143: 283729.3501 | R143: 290822.5838 | S143: 298093.1484
B145: =B128 -> 3.8. | C145: =C128 -> Růst nákladů na řízení provozu | E145: =E49 -> 2024 | F145: =F49 -> 2025 | G145: 2026 | H145: 2027 | I145: 2028 | J145: 2029 | K145: 2030 | L145: 2031 | M145: 2032 | N145: 2033 | O145: 2034 | P145: 2035 | Q145: 2036 | R145: 2037 | S145: 2038
B146: b | D146: Elasticita
C147: =C130 -> Růst reálné mzdy v dopravě | D147: =D130 -> 1 | E147: =$D$130*HLOOKUP(E$145,'0 Úvod'!$D$77:$N$79,2,TRUE) -> 0.025 | F147: =$D$130*HLOOKUP(F$145,'0 Úvod'!$D$77:$N$79,2,TRUE) -> 0.025 | G147: =$D$130*HLOOKUP(G$145,'0 Úvod'!$D$77:$N$79,2,TRUE) -> 0.025 | H147: =$D$130*HLOOKUP(H$145,'0 Úvod'!$D$77:$N$79,2,TRUE) -> 0.025 | I147: =$D$130*HLOOKUP(I$145,'0 Úvod'!$D$77:$N$79,2,TRUE) -> 0.025 | J147: =$D$130*HLOOKUP(J$145,'0 Úvod'!$D$77:$N$79,2,TRUE) -> 0.025 | K147: =$D$130*HLOOKUP(K$145,'0 Úvod'!$D$77:$N$79,2,TRUE) -> 0.02 | L147: =$D$130*HLOOKUP(L$145,'0 Úvod'!$D$77:$N$79,2,TRUE) -> 0.02 | M147: =$D$130*HLOOKUP(M$145,'0 Úvod'!$D$77:$N$79,2,TRUE) -> 0.02 | N147: =$D$130*HLOOKUP(N$145,'0 Úvod'!$D$77:$N$79,2,TRUE) -> 0.02 | O147: =$D$130*HLOOKUP(O$145,'0 Úvod'!$D$77:$N$79,2,TRUE) -> 0.02 | P147: =$D$130*HLOOKUP(P$145,'0 Úvod'!$D$77:$N$79,2,TRUE) -> 0.02 | Q147: =$D$130*HLOOKUP(Q$145,'0 Úvod'!$D$77:$N$79,2,TRUE) -> 0.02 | R147: =$D$130*HLOOKUP(R$145,'0 Úvod'!$D$77:$N$79,2,TRUE) -> 0.02 | S147: =$D$130*HLOOKUP(S$145,'0 Úvod'!$D$77:$N$79,2,TRUE) -> 0.02
B148: =B131 -> 13167 | C148: Dozorčí provozu | E148: =S131*(1+E$147) -> 945213.9368 | F148: =E148*(1+F$147) -> 968844.2853 | G148: =F148*(1+G$147) -> 993065.3924 | H148: 1017892.027 | I148: 1043339.328 | J148: 1069422.811 | K148: 1090811.267 | L148: 1112627.493 | M148: 1134880.042 | N148: 1157577.643 | O148: 1180729.196 | P148: 1204343.78 | Q148: 1228430.656 | R148: 1252999.269 | S148: 1278059.254
B149: 31606 | C149: Výpravčí | E149: =S132*(1+E$147) -> 633472.0819 | F149: 649308.884 | G149: =F149*(1+G$147) -> 665541.6061 | H149: 682180.1462 | I149: 699234.6499 | J149: 716715.5161 | K149: 731049.8265 | L149: 745670.823 | M149: 760584.2395 | N149: 775795.9242 | O149: 791311.8427 | P149: 807138.0796 | Q149: 823280.8412 | R149: 839746.458 | S149: 856541.3872
B150: 31608 | C150: Dozorčí provozu - vedoucí směny | E150: 724891.2412 | F150: 743013.5223 | G150: =F150*(1+G$147) -> 761588.8603 | H150: 780628.5818 | I150: 800144.2964 | J150: 820147.9038 | K150: 836550.8619 | L150: 853281.8791 | M150: 870347.5167 | N150: 887754.467 | O150: 905509.5564 | P150: 923619.7475 | Q150: 942092.1424 | R150: 960933.9853 | S150: 980152.665
B151: 41333 | C151: Operátor železniční dopravy | E151: 453092.0869 | F151: 464419.3891 | G151: =F151*(1+G$147) -> 476029.8738 | H151: 487930.6206 | I151: 500128.8861 | J151: 512632.1083 | K151: 522884.7505 | L151: 533342.4455 | M151: 544009.2944 | N151: 554889.4803 | O151: 565987.2699 | P151: 577307.0153 | Q151: 588853.1556 | R151: 600630.2187 | S151: 612642.8231
B152: 83135 | C152: Signalista | E152: 501630.1545 | F152: 514170.9084 | G152: =F152*(1+G$147) -> 527025.1811 | H152: 540200.8106 | I152: 553705.8309 | J152: 567548.4767 | K152: 578899.4462 | L152: 590477.4351 | M152: 602286.9838 | N152: 614332.7235 | O152: 626619.378 | P152: 639151.7655 | Q152: 651934.8008 | R152: 664973.4969 | S152: 678272.9668
B153: 83137 | C153: Výhybkář | E153: 416477.4952 | F153: 426889.4326 | G153: =F153*(1+G$147) -> 437561.6684 | H153: 448500.7101 | I153: 459713.2279 | J153: 471206.0586 | K153: 480630.1797 | L153: 490242.7833 | M153: 500047.639 | N153: 510048.5918 | O153: 520249.5636 | P153: 530654.5549 | Q153: 541267.646 | R153: 552092.9989 | S153: 563134.8589
B154: 83141 | C154: Staniční dozorce | E154: 474987.7529 | F154: 486862.4468 | G154: =F154*(1+G$147) -> 499034.0079 | H154: 511509.8581 | I154: 524297.6046 | J154: 537405.0447 | K154: 548153.1456 | L154: 559116.2085 | M154: 570298.5327 | N154: 581704.5033 | O154: 593338.5934 | P154: 605205.3653 | Q154: 617309.4726 | R154: 629655.662 | S154: 642248.7753
B155: 83142 | C155: Dozorce výhybek | E155: 442827.2713 | F155: 453897.9531 | G155: =F155*(1+G$147) -> 465245.4019 | H155: 476876.537 | I155: 488798.4504 | J155: 501018.4117 | K155: 511038.7799 | L155: 521259.5555 | M155: 531684.7466 | N155: 542318.4416 | O155: 553164.8104 | P155: 564228.1066 | Q155: 575512.6687 | R155: 587022.9221 | S155: 598763.3805
B156: 83143 | C156: Závorář | E156: 389682.7126 | F156: 399424.7805 | G156: =F156*(1+G$147) -> 409410.4 | H156: 419645.66 | I156: 430136.8015 | J156: 440890.2215 | K156: 449708.0259 | L156: 458702.1864 | M156: 467876.2302 | N156: 477233.7548 | O156: 486778.4299 | P156: 496513.9985 | Q156: 506444.2784 | R156: 516573.164 | S156: 526904.6273
B157: 83144 | C157: Závorář s prodejem jízdenek | E157: 421208.0487 | F157: 431738.2499 | G157: =F157*(1+G$147) -> 442531.7061 | H157: 453594.9988 | I157: 464934.8738 | J157: 476558.2456 | K157: 486089.4105 | L157: 495811.1987 | M157: 505727.4227 | N157: 515841.9712 | O157: 526158.8106 | P157: 536681.9868 | Q157: 547415.6265 | R157: 558363.9391 | S157: 569531.2178
B158: 83145 | C158: Hradlář - hláskař | E158: 411999.1121 | F158: 422299.0899 | G158: =F158*(1+G$147) -> 432856.5671 | H158: 443677.9813 | I158: 454769.9308 | J158: 466139.1791 | K158: 475461.9627 | L158: 484971.2019 | M158: 494670.626 | N158: 504564.0385 | O158: 514655.3193 | P158: 524948.4257 | Q158: 535447.3942 | R158: 546156.3421 | S158: 557079.4689
B159: 83146 | C159: Hradlář - hláskař s prodejem jízdenek | E159: 405491.2298 | F159: 415628.5106 | G159: =F159*(1+G$147) -> 426019.2233 | H159: 436669.7039 | I159: 447586.4465 | J159: 458776.1077 | K159: 467951.6298 | L159: 477310.6624 | M159: 486856.8757 | N159: 496594.0132 | O159: 506525.8934 | P159: 516656.4113 | Q159: 526989.5395 | R159: 537529.3303 | S159: 548279.9169
B160: 93398 | C160: Dělník v dopravě - staniční dělník | E160: 305545.4771 | F160: 313184.1141 | G160: =F160*(1+G$147) -> 321013.7169 | H160: 329039.0598 | I160: 337265.0363 | J160: 345696.6623 | K160: 352610.5955 | L160: 359662.8074 | M160: 366856.0636 | N160: 374193.1848 | O160: 381677.0485 | P160: 389310.5895 | Q160: 397096.8013 | R160: 405038.7373 | S160: 413139.5121
B163: 3.9. | C163: Počty zaměstnanců | E163: =E128 -> 2009 | F163: 2010 | G163: 2011 | H163: 2012 | I163: 2013 | J163: 2014 | K163: 2015 | L163: 2016 | M163: 2017 | N163: 2018 | O163: 2019 | P163: 2020 | Q163: 2021 | R163: 2022 | S163: 2023
B164: a | C164: Scénář s projektem
B165: =B148 -> 13167 | C165: Dozorčí provozu
B166: 31606 | C166: Výpravčí | E166: 103.3 | F166: 103.3 | G166: 103.3 | H166: 103.3 | I166: 103.3 | J166: 103.3 | K166: 103.3 | L166: 103.3 | M166: 103.3 | N166: 103.3 | O166: 72.98 | P166: 72.98 | Q166: 72.98 | R166: 72.98 | S166: 72.98
B167: 31608 | C167: Dozorčí provozu - vedoucí směny
B168: 41333 | C168: Operátor železniční dopravy
B169: 83135 | C169: Signalista | E169: 105.95 | F169: 105.95 | G169: 105.95 | H169: 105.95 | I169: 105.95 | J169: 105.95 | K169: 105.95 | L169: 105.95 | M169: 105.95 | N169: 105.95 | O169: 42.55 | P169: 42.55 | Q169: 42.55 | R169: 42.55 | S169: 42.55
B170: 83137 | C170: Výhybkář
B171: 83141 | C171: Staniční dozorce | O171: 14.05 | P171: 14.05 | Q171: 14.05 | R171: 14.05 | S171: 14.05
B172: 83142 | C172: Dozorce výhybek
B173: 83143 | C173: Závorář
B174: 83144 | C174: Závorář s prodejem jízdenek
B175: 83145 | C175: Hradlář - hláskař | E175: 36.4 | F175: 36.4 | G175: 36.4 | H175: 36.4 | I175: 36.4 | J175: 36.4 | K175: 36.4 | L175: 36.4 | M175: 36.4 | N175: 36.4 | O175: 36.4 | P175: 36.4 | Q175: 36.4 | R175: 36.4 | S175: 36.4
B176: 83146 | C176: Hradlář - hláskař s prodejem jízdenek
B177: 93398 | C177: Dělník v dopravě - staniční dělník
C178: Celkem | E178: =SUM(E165:E177) -> 245.65 | F178: 245.65 | G178: 245.65 | H178: 245.65 | I178: 245.65 | J178: 245.65 | K178: 245.65 | L178: 245.65 | M178: 245.65 | N178: 245.65 | O178: 165.98 | P178: 165.98 | Q178: 165.98 | R178: 165.98 | S178: 165.98
C179: Odstupné | E179: =SUMPRODUCT($E$114:$E$126*(E$131/$D$114)/4,E165:E177-F165:F177) -> 0 | F179: =SUMPRODUCT($E$114:$E$126*(F$131/$D$114)/4,F165:F177-G165:G177) -> 0 | G179: 0 | H179: 0 | I179: 0 | J179: 0 | K179: 0 | L179: 0 | M179: 0 | N179: 6930859.64 | O179: 0 | P179: 0 | Q179: 0 | R179: 0 | S179: =SUMPRODUCT($E$114:$E$126*(S$131/$D$114)/4,S165:S177-E183:E195) -> 7035635.649
B181: =B163 -> 3.9. | C181: =C163 -> Počty zaměstnanců | E181: =E145 -> 2024 | F181: 2025 | G181: 2026 | H181: 2027 | I181: 2028 | J181: 2029 | K181: 2030 | L181: 2031 | M181: 2032 | N181: 2033 | O181: 2034 | P181: 2035 | Q181: 2036 | R181: 2037 | S181: 2038
B182: b | C182: Scénář s projektem
B183: =B165 -> 13167 | C183: Dozorčí provozu
B184: 31606 | C184: Výpravčí | E184: 62.36 | F184: 62.36 | G184: 62.36 | H184: 62.36 | I184: 62.36 | J184: 62.36 | K184: 62.36 | L184: 62.36 | M184: 62.36 | N184: 62.36 | O184: 62.36 | P184: 62.36 | Q184: 62.36 | R184: 62.36 | S184: 62.36
B185: 31608 | C185: Dozorčí provozu - vedoucí směny
B186: 41333 | C186: Operátor železniční dopravy
B187: 83135 | C187: Signalista
B188: 83137 | C188: Výhybkář
B189: 83141 | C189: Staniční dozorce | E189: 21.01 | F189: 21.01 | G189: 21.01 | H189: 21.01 | I189: 21.01 | J189: 21.01 | K189: 21.01 | L189: 21.01 | M189: 21.01 | N189: 21.01 | O189: 21.01 | P189: 21.01 | Q189: 21.01 | R189: 21.01 | S189: 21.01
B190: 83142 | C190: Dozorce výhybek
B191: 83143 | C191: Závorář
B192: 83144 | C192: Závorář s prodejem jízdenek
B193: 83145 | C193: Hradlář - hláskař
B194: 83146 | C194: Hradlář - hláskař s prodejem jízdenek
B195: 93398 | C195: Dělník v dopravě - staniční dělník
C196: Celkem | E196: =SUM(E183:E195) -> 83.37 | F196: =SUM(F183:F195) -> 83.37 | G196: 83.37 | H196: 83.37 | I196: 83.37 | J196: 83.37 | K196: 83.37 | L196: 83.37 | M196: 83.37 | N196: 83.37 | O196: 83.37 | P196: 83.37 | Q196: 83.37 | R196: 83.37 | S196: 83.37
C197: Odstupné | E197: =SUMPRODUCT($E$114:$E$126*(E$148/$D$114)/4,E183:E195-F183:F195) -> 0 | F197: =SUMPRODUCT($E$114:$E$126*(F$148/$D$114)/4,F183:F195-G183:G195) -> 0 | G197: 0 | H197: 0 | I197: 0 | J197: 0 | K197: 0 | L197: 0 | M197: 0 | N197: 0 | O197: 0 | P197: 0 | Q197: 0 | R197: 0 | S197: 0
B199: 3.10. | C199: =C181 -> Počty zaměstnanců | E199: =E163 -> 2009 | F199: 2010 | G199: 2011 | H199: 2012 | I199: 2013 | J199: 2014 | K199: 2015 | L199: 2016 | M199: 2017 | N199: 2018 | O199: 2019 | P199: 2020 | Q199: 2021 | R199: 2022 | S199: 2023
B200: a | C200: Scénář bez projektu
B201: =B183 -> 13167 | C201: Dozorčí provozu
B202: 31606 | C202: Výpravčí | E202: 103.3 | F202: 103.3 | G202: 103.3 | H202: 103.3 | I202: 103.3 | J202: 103.3 | K202: 103.3 | L202: 103.3 | M202: 103.3 | N202: 103.3 | O202: 103.3 | P202: 103.3 | Q202: 103.3 | R202: 103.3 | S202: 103.3
B203: 31608 | C203: Dozorčí provozu - vedoucí směny
B204: 41333 | C204: Operátor železniční dopravy
B205: 83135 | C205: Signalista | E205: 105.95 | F205: 105.95 | G205: 105.95 | H205: 105.95 | I205: 105.95 | J205: 105.95 | K205: 105.95 | L205: 105.95 | M205: 105.95 | N205: 105.95 | O205: 105.95 | P205: 105.95 | Q205: 105.95 | R205: 105.95 | S205: 105.95
B206: 83137 | C206: Výhybkář
B207: 83141 | C207: Staniční dozorce
B208: 83142 | C208: Dozorce výhybek
B209: 83143 | C209: Závorář
B210: 83144 | C210: Závorář s prodejem jízdenek
B211: 83145 | C211: Hradlář - hláskař | E211: 36.4 | F211: 36.4 | G211: 36.4 | H211: 36.4 | I211: 36.4 | J211: 36.4 | K211: 36.4 | L211: 36.4 | M211: 36.4 | N211: 36.4 | O211: 36.4 | P211: 36.4 | Q211: 36.4 | R211: 36.4 | S211: 0
B212: 83146 | C212: Hradlář - hláskař s prodejem jízdenek
B213: 93398 | C213: Dělník v dopravě - staniční dělník
C214: Celkem | E214: =SUM(E201:E213) -> 245.65 | F214: =SUM(F201:F213) -> 245.65 | G214: 245.65 | H214: 245.65 | I214: 245.65 | J214: 245.65 | K214: 245.65 | L214: 245.65 | M214: 245.65 | N214: 245.65 | O214: 245.65 | P214: 245.65 | Q214: 245.65 | R214: 245.65 | S214: 209.25
C215: Odstupné | E215: =SUMPRODUCT($E$114:$E$126*(E$131/$D$114)/4,E201:E213-F201:F213) -> 0 | F215: =SUMPRODUCT($E$114:$E$126*(F$131/$D$114)/4,F201:F213-G201:G213) -> 0 | G215: 0 | H215: 0 | I215: 0 | J215: 0 | K215: 0 | L215: 0 | M215: 0 | N215: 0 | O215: 0 | P215: 0 | Q215: 0 | R215: 2574185.782 | S215: =SUMPRODUCT($E$114:$E$126*(S$131/$D$114)/4,S201:S213-E219:E231) -> 0
B217: =B199 -> 3.10. | C217: =C181 -> Počty zaměstnanců | E217: =E181 -> 2024 | F217: 2025 | G217: 2026 | H217: 2027 | I217: 2028 | J217: 2029 | K217: 2030 | L217: 2031 | M217: 2032 | N217: 2033 | O217: 2034 | P217: 2035 | Q217: 2036 | R217: 2037 | S217: 2038
B218: b | C218: Scénář bez projektu | E218: 1 | F218: 2 | G218: 3 | H218: 4 | I218: 5 | J218: 6 | K218: 7 | L218: 8 | M218: 9 | N218: 10 | O218: 11 | P218: 12 | Q218: 13 | R218: 14 | S218: 15
B219: =B201 -> 13167 | C219: Dozorčí provozu
B220: 31606 | C220: Výpravčí | E220: 103.3 | F220: 103.3 | G220: 103.3 | H220: 103.3 | I220: 103.3 | J220: 103.3 | K220: 103.3 | L220: 103.3 | M220: 103.3 | N220: 103.3 | O220: 103.3 | P220: 103.3 | Q220: 103.3 | R220: 103.3 | S220: 103.3
B221: 31608 | C221: Dozorčí provozu - vedoucí směny
B222: 41333 | C222: Operátor železniční dopravy
B223: 83135 | C223: Signalista | E223: 105.95 | F223: 105.95 | G223: 105.95 | H223: 105.95 | I223: 105.95 | J223: 105.95 | K223: 105.95 | L223: 105.95 | M223: 105.95 | N223: 105.95 | O223: 105.95 | P223: 105.95 | Q223: 105.95 | R223: 105.95 | S223: 105.95
B224: 83137 | C224: Výhybkář | H224: 85.67 | I224: 85.67 | J224: 85.67 | K224: 85.67 | L224: 85.67 | M224: 85.67 | N224: 85.67 | O224: 85.67 | P224: 85.67 | Q224: 85.67 | R224: 85.67 | S224: 85.67
B225: 83141 | C225: Staniční dozorce
B226: 83142 | C226: Dozorce výhybek
... 10 more rows

Sheet 4 Úspory v silniční dopravě
B2: 4.1. | C2: Provozní náklady silniční dopravy - úspory (CZK) | E2: ='0 Úvod'!G19 -> 2009 | F2: =E2+1 -> 2010 | G2: 2011 | H2: 2012 | I2: 2013 | J2: 2014 | K2: 2015 | L2: 2016 | M2: 2017 | N2: 2018 | O2: 2019 | P2: 2020 | Q2: 2021 | R2: 2022 | S2: 2023
B3: a | D3: Celkem
B4: * | C4: Náklady na údržbu a provoz - osobní doprava | D4: =SUM(E4:S4,E14:S14) -> 11097459.09 | E4: =$E$54*(E70+E71)/1000 -> 0 | F4: =$E$54*(F70+F71)/1000 -> 0 | G4: 0 | H4: 0 | I4: 0 | J4: 0 | K4: -6365.475323 | L4: -6728.574524 | M4: -34572.69348 | N4: -34705.31724 | O4: -55936.95563 | P4: -52059.45686 | Q4: -50815.86879 | R4: -49048.46929 | S4: -47419.72762
B5: * | C5: Náklady na údržbu a provoz - nákladní doprava | D5: =SUM(E5:S5,E15:S15) -> 174124823.1 | E5: =$F$54*(E83+E84)/1000 -> 0 | F5: =$F$54*(F83+F84)/1000 -> 0 | G5: 0 | H5: 0 | I5: 0 | J5: 0 | K5: 0 | L5: 311448.8453 | M5: 622897.6907 | N5: 934346.536 | O5: 1245795.381 | P5: 1557244.227 | Q5: 1868693.072 | R5: 2180141.917 | S5: 2491590.763
B6: ** | C6: Provozní náklady vozidel - IAD | D6: 4112498722 | E6: =(E70/$D$62)*$E$58 -> 0 | F6: =(F70/$D$62)*$E$58 -> 0 | G6: 0 | H6: 0 | I6: 0 | J6: 0 | K6: -1776403.559 | L6: -1851347.578 | M6: -8272609.976 | N6: -8180848.758 | O6: -560314.6375 | P6: 2001059.041 | Q6: 3029853.813 | R6: 4310383.463 | S6: 5532470.424
B7: ** | C7: Provozní náklady vozidel - BUS | D7: 881465882.7 | E7: =(E71/$D$63)*$F$58 -> 0 | F7: =(F71/$D$63)*$F$58 -> 0 | G7: 0 | H7: 0 | I7: 0 | J7: 0 | K7: -611225.2295 | L7: -650874.7955 | M7: -3569142.056 | N7: -3605225.144 | O7: -8099945.247 | P7: -7995836.405 | Q7: -8000035.608 | R7: -7973076.197 | S7: -7955850.44
B8: ** | C8: Provozní náklady vozidel - LUV | D8: 313241240.9 | E8: =(E83/$D$65)*$G$58 -> 0 | F8: =(F83/$D$65)*$G$58 -> 0 | G8: 0 | H8: 0 | I8: 0 | J8: 0 | K8: 0 | L8: 560279.8099 | M8: 1120559.62 | N8: 1680839.43 | O8: 2241119.24 | P8: 2801399.05 | Q8: 3361678.86 | R8: 3921958.669 | S8: 4482238.479
B9: ** | C9: Provozní náklady vozidel - TUV | D9: 3622569288 | E9: =(E84/$D$66)*$H$58 -> 0 | F9: =(F84/$D$66)*$H$58 -> 0 | G9: 0 | H9: 0 | I9: 0 | J9: 0 | K9: 0 | L9: 6479518.552 | M9: 12959037.1 | N9: 19438555.66 | O9: 25918074.21 | P9: 32397592.76 | Q9: 38877111.31 | R9: 45356629.86 | S9: 51836148.41
C10: Provozní náklady silniční dopravy - úspory | D10: 9114997416 | E10: =SUM(E4:E9) -> 0 | F10: =SUM(F4:F9) -> 0 | G10: =SUM(G4:G9) -> 0 | H10: 0 | I10: 0 | J10: 0 | K10: -2393994.264 | L10: 4842296.259 | M10: 2826169.689 | N10: 10232962.4 | O10: 20688791.99 | P10: 30709399.21 | Q10: 39086485.58 | R10: 47746989.25 | S10: 56339177.91
B12: 4.1. | C12: Provozní náklady silniční dopravy - úspory (CZK) | E12: =S2+1 -> 2024 | F12: =E12+1 -> 2025 | G12: 2026 | H12: 2027 | I12: 2028 | J12: 2029 | K12: 2030 | L12: 2031 | M12: 2032 | N12: 2033 | O12: 2034 | P12: 2035 | Q12: 2036 | R12: 2037 | S12: 2038
B13: b
B14: * | C14: Náklady na údržbu a provoz - osobní doprava | E14: =$E$54*(E76+E77)/1000 -> 503206.437 | F14: =$E$54*(F76+F77)/1000 -> 695430.0336 | G14: 755363.2197 | H14: 761808.366 | I14: 773578.833 | J14: 781505.8996 | K14: 787051.0045 | L14: 791235.483 | M14: 794297.0399 | N14: 796462.0639 | O14: 797751.2818 | P14: 798243.0382 | Q14: 799252.7475 | R14: 799983.8864 | S14: 799942.2955
B15: * | C15: Náklady na údržbu a provoz - nákladní doprava | E15: =$F$54*(E89+E90)/1000 -> 9300824.37 | F15: =$F$54*(F89+F90)/1000 -> 9523684.362 | G15: 9746544.354 | H15: 9969404.345 | I15: 10192264.34 | J15: 10415124.33 | K15: 10637984.32 | L15: 10860844.31 | M15: 11083704.31 | N15: 11306564.3 | O15: 11529424.29 | P15: 11752284.28 | Q15: 11975144.27 | R15: 12198004.26 | S15: 12420864.26
B16: ** | C16: Provozní náklady vozidel - IAD | E16: =(E76/$D$62)*$E$58 -> 197852266.9 | F16: =(F76/$D$62)*$E$58 -> 255547525.5 | G16: 270291864 | H16: 272410020.2 | I16: 277392080.5 | J16: 279881561.5 | K16: 281691417 | L16: 283018221.6 | M16: 284003892.2 | N16: 284782236.2 | O16: 285367922.6 | P16: 285811393.7 | Q16: 286402345 | R16: 286785349.2 | S16: 287028384.4
B17: ** | C17: Provozní náklady vozidel - BUS | E17: =(E77/$D$63)*$F$58 -> 37907190.11 | F17: =(F77/$D$63)*$F$58 -> 55630236.86 | G17: 61744343.87 | H17: 62305285.84 | I17: 63127764.71 | J17: 63838660.88 | K17: 64323537.15 | L17: 64696501.05 | M17: 64966673.5 | N17: 65142986.62 | O17: 65225819.7 | P17: 65217513.81 | Q17: 65258410.43 | R17: 65296166.6 | S17: 65246002.67
B18: ** | C18: Provozní náklady vozidel - LUV | E18: =(E89/$D$65)*$G$58 -> 16731685.44 | F18: =(F89/$D$65)*$G$58 -> 17132598.64 | G18: 17533511.84 | H18: 17934425.04 | I18: 18335338.25 | J18: 18736251.45 | K18: 19137164.65 | L18: 19538077.85 | M18: 19938991.05 | N18: 20339904.26 | O18: 20740817.46 | P18: 21141730.66 | Q18: 21542643.86 | R18: 21943557.07 | S18: 22344470.27
B19: ** | C19: Provozní náklady vozidel - TUV | E19: =(E90/$D$66)*$H$58 -> 193498434.7 | F19: =(F90/$D$66)*$H$58 -> 198134911.8 | G19: 202771388.9 | H19: 207407866.1 | I19: 212044343.2 | J19: 216680820.4 | K19: 221317297.5 | L19: 225953774.7 | M19: 230590251.8 | N19: 235226728.9 | O19: 239863206.1 | P19: 244499683.2 | Q19: 249136160.4 | R19: 253772637.5 | S19: 258409114.6
C20: Provozní náklady silniční dopravy - úspory | E20: =SUM(E14:E19) -> 455793607.9 | F20: 536664387.2 | G20: 562843016.3 | H20: 570788809.9 | I20: 581865369.9 | J20: 590333924.4 | K20: 597894451.6 | L20: 604858654.9 | M20: 611377809.9 | N20: 617594882.4 | O20: 623524941.4 | P20: 629220848.7 | Q20: 635113956.6 | R20: 640795698.5 | S20: 646248778.5
B23: 4.2. | C23: Úspory z provozních nákladů silniční dopravy (CZK) | E23: =E2 -> 2009 | F23: =E23+1 -> 2010 | G23: 2011 | H23: 2012 | I23: 2013 | J23: 2014 | K23: 2015 | L23: 2016 | M23: 2017 | N23: 2018 | O23: 2019 | P23: 2020 | Q23: 2021 | R23: 2022 | S23: 2023
B24: a | D24: Celkem
B25: * | C25: Náklady na údržbu a provoz - osobní doprava | D25: =SUM(E25:S25,E35:S35) -> 11097459.09 | E25: =E4 -> 0 | F25: =F4 -> 0 | G25: 0 | H25: 0 | I25: 0 | J25: 0 | K25: -6365.475323 | L25: -6728.574524 | M25: -34572.69348 | N25: -34705.31724 | O25: -55936.95563 | P25: -52059.45686 | Q25: -50815.86879 | R25: -49048.46929 | S25: -47419.72762
B26: * | C26: Náklady na údržbu a provoz - nákladní doprava | D26: =SUM(E26:S26,E36:S36) -> 174124823.1 | E26: =E5 -> 0 | F26: =F5 -> 0 | G26: 0 | H26: 0 | I26: 0 | J26: 0 | K26: 0 | L26: 311448.8453 | M26: 622897.6907 | N26: 934346.536 | O26: 1245795.381 | P26: 1557244.227 | Q26: 1868693.072 | R26: 2180141.917 | S26: 2491590.763
B27: ** | C27: Provozní náklady vozidel - IAD | D27: 4112498722 | E27: =E6 -> 0 | F27: =F6 -> 0 | G27: 0 | H27: 0 | I27: 0 | J27: 0 | K27: -1776403.559 | L27: -1851347.578 | M27: -8272609.976 | N27: -8180848.758 | O27: -560314.6375 | P27: 2001059.041 | Q27: 3029853.813 | R27: 4310383.463 | S27: 5532470.424
B28: ** | C28: Provozní náklady vozidel - BUS | D28: 881465882.7 | E28: =E7 -> 0 | F28: =F7 -> 0 | G28: 0 | H28: 0 | I28: 0 | J28: 0 | K28: -611225.2295 | L28: -650874.7955 | M28: -3569142.056 | N28: -3605225.144 | O28: -8099945.247 | P28: -7995836.405 | Q28: -8000035.608 | R28: -7973076.197 | S28: -7955850.44
B29: ** | C29: Provozní náklady vozidel - LUV | D29: 313241240.9 | E29: =E8 -> 0 | F29: 0 | G29: 0 | H29: 0 | I29: 0 | J29: 0 | K29: 0 | L29: 560279.8099 | M29: 1120559.62 | N29: 1680839.43 | O29: 2241119.24 | P29: 2801399.05 | Q29: 3361678.86 | R29: 3921958.669 | S29: 4482238.479
B30: ** | C30: Provozní náklady vozidel - TUV | D30: 3622569288 | E30: =E9 -> 0 | F30: 0 | G30: 0 | H30: 0 | I30: 0 | J30: 0 | K30: 0 | L30: 6479518.552 | M30: 12959037.1 | N30: 19438555.66 | O30: 25918074.21 | P30: 32397592.76 | Q30: 38877111.31 | R30: 45356629.86 | S30: 51836148.41
C31: Provozní náklady silniční dopravy - úspory | D31: 9114997416 | E31: =SUM(E25:E30) -> 0 | F31: =SUM(F25:F30) -> 0 | G31: 0 | H31: 0 | I31: 0 | J31: 0 | K31: -2393994.264 | L31: 4842296.259 | M31: 2826169.689 | N31: 10232962.4 | O31: 20688791.99 | P31: 30709399.21 | Q31: 39086485.58 | R31: 47746989.25 | S31: 56339177.91
B33: 4.2. | C33: Úspory z provozních nákladů silniční dopravy (CZK) | E33: =S23+1 -> 2024 | F33: =E33+1 -> 2025 | G33: 2026 | H33: 2027 | I33: 2028 | J33: 2029 | K33: 2030 | L33: 2031 | M33: 2032 | N33: 2033 | O33: 2034 | P33: 2035 | Q33: 2036 | R33: 2037 | S33: 2038
B34: b
B35: * | C35: Náklady na údržbu a provoz - osobní doprava | E35: =E14 -> 503206.437 | F35: =F14 -> 695430.0336 | G35: 755363.2197 | H35: 761808.366 | I35: 773578.833 | J35: 781505.8996 | K35: 787051.0045 | L35: 791235.483 | M35: 794297.0399 | N35: 796462.0639 | O35: 797751.2818 | P35: 798243.0382 | Q35: 799252.7475 | R35: 799983.8864 | S35: 799942.2955
B36: * | C36: Náklady na údržbu a provoz - nákladní doprava | E36: =E15 -> 9300824.37 | F36: 9523684.362 | G36: 9746544.354 | H36: 9969404.345 | I36: 10192264.34 | J36: 10415124.33 | K36: 10637984.32 | L36: 10860844.31 | M36: 11083704.31 | N36: 11306564.3 | O36: 11529424.29 | P36: 11752284.28 | Q36: 11975144.27 | R36: 12198004.26 | S36: 12420864.26
B37: ** | C37: Provozní náklady vozidel - IAD | E37: =E16 -> 197852266.9 | F37: 255547525.5 | G37: 270291864 | H37: 272410020.2 | I37: 277392080.5 | J37: 279881561.5 | K37: 281691417 | L37: 283018221.6 | M37: 284003892.2 | N37: 284782236.2 | O37: 285367922.6 | P37: 285811393.7 | Q37: 286402345 | R37: 286785349.2 | S37: 287028384.4
B38: ** | C38: Provozní náklady vozidel - BUS | E38: =E17 -> 37907190.11 | F38: 55630236.86 | G38: 61744343.87 | H38: 62305285.84 | I38: 63127764.71 | J38: 63838660.88 | K38: 64323537.15 | L38: 64696501.05 | M38: 64966673.5 | N38: 65142986.62 | O38: 65225819.7 | P38: 65217513.81 | Q38: 65258410.43 | R38: 65296166.6 | S38: 65246002.67
B39: ** | C39: Provozní náklady vozidel - LUV | E39: =E18 -> 16731685.44 | F39: 17132598.64 | G39: 17533511.84 | H39: 17934425.04 | I39: 18335338.25 | J39: 18736251.45 | K39: 19137164.65 | L39: 19538077.85 | M39: 19938991.05 | N39: 20339904.26 | O39: 20740817.46 | P39: 21141730.66 | Q39: 21542643.86 | R39: 21943557.07 | S39: 22344470.27
B40: ** | C40: Provozní náklady vozidel - TUV | E40: =E19 -> 193498434.7 | F40: 198134911.8 | G40: 202771388.9 | H40: 207407866.1 | I40: 212044343.2 | J40: 216680820.4 | K40: 221317297.5 | L40: 225953774.7 | M40: 230590251.8 | N40: 235226728.9 | O40: 239863206.1 | P40: 244499683.2 | Q40: 249136160.4 | R40: 253772637.5 | S40: 258409114.6
C41: Provozní náklady silniční dopravy - úspory | E41: =SUM(E35:E40) -> 455793607.9 | F41: 536664387.2 | G41: 562843016.3 | H41: 570788809.9 | I41: 581865369.9 | J41: 590333924.4 | K41: 597894451.6 | L41: 604858654.9 | M41: 611377809.9 | N41: 617594882.4 | O41: 623524941.4 | P41: 629220848.7 | Q41: 635113956.6 | R41: 640795698.5 | S41: 646248778.5
C44: Úspory (CZK) | D44: =D31 -> 9114997416
B46: Komentáře
B48: * | C48: Úspory z nákladů na údržbu a provoz silniční infrastruktury
B49: ** | C49: Úspory z nákladů na údržbu a provoz silničních vozidel
B52: 4.3. | C52: Údržba a opravy silniční infrastruktury | D52: CÚ | E52: Osobní [CZK/1000 oskm] | F52: Nákladní [CZK/ 1000 čisté tkm]
C53: Měrná hodnota | D53: 2012 | E53: 4.39 | F53: 143.77
C54: Měrná hodnota | D54: ='0 Úvod'!D19 -> 2016 | E54: 4.527500374 | F54: 148.2730589
B56: 4.4. | C56: Provoz vozidel | D56: CÚ | E56: IAD [CZK/vozkm] | F56: BUS [CZK/vozkm] | G56: Lehká užitková vozidla [CZK/vozkm] | H56: Těžká užitková vozidla [CZK/vozkm]
C57: Měrná hodnota | D57: 2012 | E57: 5.68 | F57: 19.31 | G57: 8.05 | H57: 25.14
C58: Měrná hodnota | D58: ='0 Úvod'!D19 -> 2016 | E58: 5.857904812 | F58: 19.91481372 | G58: 8.302136221 | H58: 25.92741672
C59: Zdroj: „Metodika hodnocení efektivnosti investic - železniční infrastruktura" MD ČR 2013
C61: Obsazenost | D61: osob/vozidlo
C62: IAD | D62: 1.6
C63: BUS | D63: 30
D64: č.tun/vozidlo
C65: LUV | D65: 1.5
C66: TUV | D66: 8
B68: 4.5. | C68: Celkové oskm | E68: =E2 -> 2009 | F68: =E68+1 -> 2010 | G68: 2011 | H68: 2012 | I68: 2013 | J68: 2014 | K68: 2015 | L68: 2016 | M68: 2017 | N68: 2018 | O68: 2019 | P68: 2020 | Q68: 2021 | R68: 2022 | S68: 2023
B69: a | D69: Celkem
C70: IAD | D70: =SUM(E70:S70,E76:S76) -> 1123268159 | E70: 0 | F70: 0 | G70: 0 | H70: 0 | I70: 0 | J70: 0 | K70: -485198.3407 | L70: -505668.1902 | M70: -2259540.977 | N70: -2234477.758 | O70: -153041.6503 | P70: 546559.6605 | Q70: 827559.7258 | R70: 1177317.447 | S70: 1511112.414
C71: BUS | D71: =SUM(E71:S71,E77:S77) -> 1327854574 | E71: 0 | F71: 0 | G71: 0 | H71: 0 | I71: 0 | J71: 0 | K71: -920759.6489 | L71: -980488.4014 | M71: -5376613.771 | N71: -5430969.923 | O71: -12201889.55 | P71: -12045058.29 | Q71: -12051384.04 | R71: -12010771.95 | S71: -11984822.78
C72: celkové oskm | D72: =SUM(E72:S72,E78:S78) -> 2451122733 | E72: =SUM(E70:E71) -> 0 | F72: 0 | G72: 0 | H72: 0 | I72: 0 | J72: 0 | K72: -1405957.99 | L72: -1486156.592 | M72: -7636154.748 | N72: -7665447.681 | O72: -12354931.2 | P72: -11498498.63 | Q72: -11223824.32 | R72: -10833454.5 | S72: -10473710.37
B74: =B68 -> 4.5. | C74: =C68 -> Celkové oskm | E74: =S68+1 -> 2024 | F74: =E74+1 -> 2025 | G74: 2026 | H74: 2027 | I74: 2028 | J74: 2029 | K74: 2030 | L74: 2031 | M74: 2032 | N74: 2033 | O74: 2034 | P74: 2035 | Q74: 2036 | R74: 2037 | S74: 2038
B75: b
C76: =C70 -> IAD | E76: 54040418.4 | F76: 69799024.38 | G76: 73826222.23 | H76: 74404765.24 | I76: 75765541.28 | J76: 76445506.15 | K76: 76939841.41 | L76: 77302238.44 | M76: 77571459.77 | N76: 77784052.92 | O76: 77944024.5 | P76: 78065152.05 | Q76: 78226561.66 | R76: 78331173.58 | S76: 78397555.06
C77: =C71 -> BUS | E77: 57104009.08 | F77: 83802295.6 | G77: 93012686.06 | H77: 93857698.17 | I77: 95096693.76 | J77: 96167599.33 | K77: 96898024.84 | L77: 97459863.75 | M77: 97866855.93 | N77: 98132456.89 | O77: 98257238 | P77: 98244725.86 | Q77: 98306333.2 | R77: 98363209.71 | S77: 98287641.95
C78: =C72 -> celkové oskm | E78: =SUM(E76:E77) -> 111144427.5 | F78: 153601320 | G78: 166838908.3 | H78: 168262463.4 | I78: 170862235 | J78: 172613105.5 | K78: 173837866.3 | L78: 174762102.2 | M78: 175438315.7 | N78: 175916509.8 | O78: 176201262.5 | P78: 176309877.9 | Q78: 176532894.9 | R78: 176694383.3 | S78: 176685197
B81: 4.6. | C81: Total č.tkm | E81: =E68 -> 2009 | F81: =E81+1 -> 2010 | G81: 2011 | H81: 2012 | I81: 2013 | J81: 2014 | K81: 2015 | L81: 2016 | M81: 2017 | N81: 2018 | O81: 2019 | P81: 2020 | Q81: 2021 | R81: 2022 | S81: 2023
B82: a | D82: Celkem
C83: LUV | D83: =SUM(E83:S83,E89:S89) -> 56595296.55 | E83: 0 | F83: 0 | G83: 0 | H83: 0 | I83: 0 | J83: 0 | K83: 0 | L83: 101229.3333 | M83: 202458.6667 | N83: 303688 | O83: 404917.3333 | P83: 506146.6667 | Q83: 607376 | R83: 708605.3333 | S83: 809834.6667
C84: TUV | D84: =SUM(E84:S84,E90:S90) -> 1117757107 | E84: 0 | F84: 0 | G84: 0 | H84: 0 | I84: 0 | J84: 0 | K84: 0 | L84: 1999279.333 | M84: 3998558.667 | N84: 5997838 | O84: 7997117.333 | P84: 9996396.667 | Q84: 11995676 | R84: 13994955.33 | S84: 15994234.67
C85: celkové č.tkm | D85: 1174352403 | E85: =SUM(E83:E84) -> 0 | F85: 0 | G85: 0 | H85: 0 | I85: 0 | J85: 0 | K85: 0 | L85: 2100508.667 | M85: 4201017.333 | N85: 6301526 | O85: 8402034.667 | P85: 10502543.33 | Q85: 12603052 | R85: 14703560.67 | S85: 16804069.33
B87: =B81 -> 4.6. | C87: =C81 -> Total č.tkm | E87: =S81+1 -> 2024 | F87: =E87+1 -> 2025 | G87: 2026 | H87: 2027 | I87: 2028 | J87: 2029 | K87: 2030 | L87: 2031 | M87: 2032 | N87: 2033 | O87: 2034 | P87: 2035 | Q87: 2036 | R87: 2037 | S87: 2038
B88: b
C89: =C83 -> LUV | E89: 3023020.52 | F89: 3095456.07 | G89: 3167891.62 | H89: 3240327.17 | I89: 3312762.72 | J89: 3385198.27 | K89: 3457633.82 | L89: 3530069.37 | M89: 3602504.92 | N89: 3674940.47 | O89: 3747376.02 | P89: 3819811.57 | Q89: 3892247.12 | R89: 3964682.67 | S89: 4037118.22
C90: =C84 -> TUV | E90: 59704655.27 | F90: 61135257.38 | G90: 62565859.5 | H90: 63996461.61 | I90: 65427063.72 | J90: 66857665.83 | K90: 68288267.94 | L90: 69718870.06 | M90: 71149472.17 | N90: 72580074.28 | O90: 74010676.39 | P90: 75441278.51 | Q90: 76871880.62 | R90: 78302482.73 | S90: 79733084.84
C91: =C85 -> celkové č.tkm | E91: =SUM(E89:E90) -> 62727675.79 | F91: 64230713.45 | G91: 65733751.12 | H91: 67236788.78 | I91: 68739826.44 | J91: 70242864.1 | K91: 71745901.76 | L91: 73248939.43 | M91: 74751977.09 | N91: 76255014.75 | O91: 77758052.41 | P91: 79261090.08 | Q91: 80764127.74 | R91: 82267165.4 | S91: 83770203.06
B94: Komentáře
B96: Zpracovatel uvede konkrétní hodnoty výstupů z dopravního prognózování použité při výpočtu úspor silniční dopravy. Tabulky 4.5. a 4.6. je možné přizpůsobit konkrétnímu projektu.
B97: V tabulce 4.1. uvede zpracovatel konkrétní výpočet pomocí vzorců, s odkazem na tabulky výkonů (tabulka 4.5. a 4.6.) a měrného ohodnocení (tabulka 4.3. a 4.4.).

Sheet 5 Úspory z cestovních dob
B2: 5.1. | C2: Úspory z cestovních dob v železniční dopravě (CZK) | E2: ='0 Úvod'!G19 -> 2009 | F2: =E2+1 -> 2010 | G2: 2011 | H2: 2012 | I2: 2013 | J2: 2014 | K2: 2015 | L2: 2016 | M2: 2017 | N2: 2018 | O2: 2019 | P2: 2020 | Q2: 2021 | R2: 2022 | S2: 2023
B3: a | D3: Celkem
C4: Osobní - příměstská | D4: =SUM(E4:S4,E12:S12) -> 7708149964 | E4: =E95*$K$86*E$138 -> 0 | F4: =F95*$K$86*F$138 -> 0 | G4: 0 | H4: 0 | I4: 0 | J4: 0 | K4: 6902508.14 | L4: 6824406.321 | M4: 7131392.822 | N4: 7446209.759 | O4: 30828521.12 | P4: 31867656.59 | Q4: 49672961.04 | R4: 53803072.88 | S4: 73273995.04
C5: Osobní - dálková | D5: =SUM(E5:S5,E13:S13) -> 1.093113284e+10 | E5: =E96*$L$86*E$138 -> 0 | F5: =F96*$L$86*F$138 -> 0 | G5: 0 | H5: 0 | I5: 0 | J5: 0 | K5: 81072218.66 | L5: 88355336.23 | M5: 93978589.79 | N5: 97199518 | O5: 234032431.4 | P5: 239444665.4 | Q5: 262088811.2 | R5: 268149877 | S5: 283002324.3
C6: Nákladní - místní | D6: 43989259.42 | E6: =E116*$I$88*E$138 -> 0 | F6: =F116*$I$88*F$138 -> 0 | G6: 0 | H6: 0 | I6: 0 | J6: 0 | K6: 0 | L6: 0 | M6: 0 | N6: 0 | O6: 585774.075 | P6: 599024.6456 | Q6: 612531.4205 | R6: 626298.9762 | S6: 640331.9674
C7: Nákladní - dálková | D7: 835795929 | E7: =E117*$I$88*E$138 -> 0 | F7: =F117*$I$88*F$138 -> 0 | G7: 0 | H7: 0 | I7: 0 | J7: 0 | K7: 0 | L7: 0 | M7: 0 | N7: 0 | O7: 11129707.42 | P7: 11381468.27 | Q7: 11638096.99 | R7: 11899680.55 | S7: 12166307.38
C8: Celkové úspory z cestovních dob v železniční dopravě | D8: 1.9519068e+10 | E8: =SUM(E4:E7) -> 0 | F8: =SUM(F4:F7) -> 0 | G8: =SUM(G4:G7) -> 0 | H8: 0 | I8: 0 | J8: 0 | K8: 87974726.8 | L8: 95179742.55 | M8: 101109982.6 | N8: 104645727.8 | O8: 276576434 | P8: 283292814.9 | Q8: 324012400.6 | R8: 334478929.4 | S8: 369082958.7
B10: 5.1. | C10: Úspory z cestovních dob v železniční dopravě (CZK) | E10: =S2+1 -> 2024 | F10: =E10+1 -> 2025 | G10: 2026 | H10: 2027 | I10: 2028 | J10: 2029 | K10: 2030 | L10: 2031 | M10: 2032 | N10: 2033 | O10: 2034 | P10: 2035 | Q10: 2036 | R10: 2037 | S10: 2038
B11: b
C12: Osobní - příměstská | E12: =E105*$K$86*E$143 -> 320036175.1 | F12: =F105*$K$86*F$143 -> 382409112.8 | G12: 405610216.1 | H12: 428841965.7 | I12: 456745096.3 | J12: 485308318.7 | K12: 530419803.2 | L12: 536168520.9 | M12: 541688967.4 | N12: 546975685.9 | O12: 552023140.4 | P12: 556825715.1 | Q12: 561377713.2 | R12: 565819755.3 | S12: 570149054.2
C13: Osobní - dálková | E13: =E106*$L$86*E$143 -> 399327327.8 | F13: =F106*$L$86*F$143 -> 477153587.7 | G13: 506102923.1 | H13: 535090497.7 | I13: 569906819.7 | J13: 605546776 | K13: 661834939.5 | L13: 669007941.4 | M13: 675896116.3 | N13: 682492655.4 | O13: 688790651.4 | P13: 694783096.8 | Q13: 700462883.6 | R13: 706005472 | S13: 711407384.4
C14: Nákladní - místní | E14: =E126*$I$88*E$143 -> 874954.0814 | F14: =F126*$I$88*F$143 -> 1003596.966 | G14: 2794402.891 | H14: 2839248.19 | I14: 2884801.453 | J14: 2931073.715 | K14: 2957517.469 | L14: 2984187.812 | M14: 3011086.621 | N14: 3038215.789 | O14: 3065577.222 | P14: 3093172.842 | Q14: 3121004.588 | R14: 3149074.413 | S14: 3177384.286
C15: Nákladní - dálková | E15: =E127*$I$88*E$143 -> 16624127.55 | F15: =F127*$I$88*F$143 -> 19068342.35 | G15: 53093654.94 | H15: 53945715.6 | I15: 54811227.61 | J15: 55690400.59 | K15: 56192831.9 | L15: 56699568.42 | M15: 57210645.8 | N15: 57726099.99 | O15: 58245967.22 | P15: 58770284 | Q15: 59299087.17 | R15: 59832413.84 | S15: 60370301.43
C16: Celkové úspory z cestovních dob v železniční dopravě | E16: =SUM(E12:E15) -> 736862584.6 | F16: 879634639.8 | G16: 967601197 | H16: 1020717427 | I16: 1084347945 | J16: 1149476569 | K16: 1251405092 | L16: 1264860219 | M16: 1277806816 | N16: 1290232657 | O16: 1302125336 | P16: 1313472269 | Q16: 1324260689 | R16: 1334806716 | S16: 1345104124
B19: 5.2. | C19: Úspory z cestovních dob indukované dopravy (CZK) | E19: =E2 -> 2009 | F19: =E19+1 -> 2010 | G19: 2011 | H19: 2012 | I19: 2013 | J19: 2014 | K19: 2015 | L19: 2016 | M19: 2017 | N19: 2018 | O19: 2019 | P19: 2020 | Q19: 2021 | R19: 2022 | S19: 2023
B20: a | D20: Celkem
C21: Osobní - příměstská | D21: =SUM(E21:S21,E29:S29) -> 14314246.53 | E21: =E97*$K$86*E$138 -> 0 | F21: =F97*$K$86*F$138 -> 0 | G21: 0 | H21: 0 | I21: 0 | J21: 0 | K21: 0 | L21: 0 | M21: 570.5114257 | N21: 1158.630238 | O21: 299375.5622 | P21: 333694.4209 | Q21: 351936.1248 | R21: 370883.1396 | S21: 390907.509
C22: Osobní - dálková | D22: =SUM(E22:S22,E30:S30) -> 104634361.9 | E22: =E98*$L$86*E$138 -> 0 | F22: =F98*$L$86*F$138 -> 0 | G22: 0 | H22: 0 | I22: 0 | J22: 0 | K22: 0 | L22: 0 | M22: 0 | N22: 0 | O22: 0 | P22: 0 | Q22: 0 | R22: 0 | S22: 0
C23: Nákladní - místní | D23: 2156716.709 | E23: =E118*$I$88*E$138/2 -> 0 | F23: =F118*$I$88*F$138/2 -> 0 | G23: 0 | H23: 0 | I23: 0 | J23: 0 | K23: 0 | L23: 3337.968951 | M23: 6811.459441 | N23: 10431.75013 | O23: 13404.28704 | P23: 16989.93382 | Q23: 20673.35148 | R23: 24456.5748 | S23: 28341.67639
C24: Nákladní - dálková | D24: 40977617.47 | E24: =E119*$I$88*E$138/2 -> 0 | F24: =F119*$I$88*F$138/2 -> 0 | G24: 0 | H24: 0 | I24: 0 | J24: 0 | K24: 0 | L24: 63421.41007 | M24: 129417.7294 | N24: 198203.2525 | O24: 254681.4538 | P24: 322808.7426 | Q24: 392793.678 | R24: 464674.9211 | S24: 538491.8515
C25: Celkové úspory z cestovních dob indukované dopravy | D25: 162082942.6 | E25: =SUM(E21:E24) -> 0 | F25: 0 | G25: 0 | H25: 0 | I25: 0 | J25: 0 | K25: 0 | L25: 66759.37902 | M25: 136799.7002 | N25: 209793.6329 | O25: 567461.303 | P25: 673493.0974 | Q25: 765403.1543 | R25: 860014.6355 | S25: 957741.0369
B27: 5.2. | C27: Úspory z cestovních dob indukované dopravy (CZK) | E27: =S19+1 -> 2024 | F27: =E27+1 -> 2025 | G27: 2026 | H27: 2027 | I27: 2028 | J27: 2029 | K27: 2030 | L27: 2031 | M27: 2032 | N27: 2033 | O27: 2034 | P27: 2035 | Q27: 2036 | R27: 2037 | S27: 2038
B28: b
C29: Osobní - příměstská | E29: =E107*$K$86*E$143 -> 671761.2894 | F29: =F107*$K$86*F$143 -> 727644.5116 | G29: 745440.9208 | H29: 765675.2303 | I29: 811365.2049 | J29: 830762.2742 | K29: 847384.553 | L29: 859142.148 | M29: 869804.5119 | N29: 880465.8054 | O29: 891178.0153 | P29: 902169.0446 | Q29: 913280.5835 | R29: 920559.6749 | S29: 929086.8595
C30: Osobní - dálková | E30: =E108*$L$86*E$143 -> 2948539.538 | F30: =F108*$L$86*F$143 -> 4910234.026 | G30: 5696143.867 | H30: 6048096.093 | I30: 6490439.507 | J30: 6968564.201 | K30: 7660196.364 | L30: 7754336.529 | M30: 7838083.45 | N30: 7911207.659 | O30: 7973476.427 | P30: 8024653.729 | Q30: 8081521.592 | R30: 8140541.312 | S30: 8188327.62
C31: Nákladní - místní | E31: =E128*$I$88*E$143/2 -> 106982.4153 | F31: =F128*$I$88*F$143/2 -> 111085.8284 | G31: 115283.1687 | H31: 119576.2616 | I31: 123966.9656 | J31: 128457.1724 | K31: 132130.3245 | L31: 135848.6064 | M31: 139612.4699 | N31: 143422.3708 | O31: 147278.7694 | P31: 151182.1298 | Q31: 155132.9206 | R31: 159131.6146 | S31: 163178.6888
C32: Nákladní - dálková | E32: =E129*$I$88*E$143/2 -> 2032665.89 | F32: =F129*$I$88*F$143/2 -> 2110630.741 | G32: 2190380.205 | H32: 2271948.97 | I32: 2355372.346 | J32: 2440686.275 | K32: 2510476.166 | L32: 2581123.522 | M32: 2652636.927 | N32: 2725025.045 | O32: 2798296.618 | P32: 2872460.466 | Q32: 2947525.492 | R32: 3023500.677 | S32: 3100395.087
C33: Celkové úspory z cestovních dob indukované dopravy | E33: =SUM(E29:E32) -> 5759949.132 | F33: 7859595.107 | G33: 8747248.161 | H33: 9205296.555 | I33: 9781144.024 | J33: 10368469.92 | K33: 11150187.41 | L33: 11330450.81 | M33: 11500137.36 | N33: 11660120.88 | O33: 11810229.83 | P33: 11950465.37 | Q33: 12097460.59 | R33: 12243733.28 | S33: 12380988.25
B36: 5.3. | C36: Úspory z cestovních dob převedené dopravy (CZK) | E36: =E19 -> 2009 | F36: =E36+1 -> 2010 | G36: 2011 | H36: 2012 | I36: 2013 | J36: 2014 | K36: 2015 | L36: 2016 | M36: 2017 | N36: 2018 | O36: 2019 | P36: 2020 | Q36: 2021 | R36: 2022 | S36: 2023
B37: a | D37: Celkem
C38: =C99 -> BUS | D38: =SUM(E38:S38,E46:S46) -> 657390851.8 | E38: =E99*$M$86*E$138 -> 0 | F38: =F99*$M$86*F$138 -> 0 | G38: 0 | H38: 0 | I38: 0 | J38: 0 | K38: 0 | L38: 0 | M38: -1212624.358 | N38: -1278221.959 | O38: -753436.1411 | P38: -387706.3176 | Q38: -268401.0589 | R38: -101343.4738 | S38: 47410.65391
C39: =C100 -> IAD | D39: =SUM(E39:S39,E47:S47) -> 1332227763 | E39: =E100*$N$86*E$138 -> 0 | F39: =F100*$N$86*F$138 -> 0 | G39: 0 | H39: 0 | I39: 0 | J39: 0 | K39: 0 | L39: 0 | M39: -282350.0292 | N39: -267669.3032 | O39: 11132021.46 | P39: 12478222.53 | Q39: 13127099.48 | R39: 13901377.66 | S39: 14677442.52
C40: =C120 -> LUV | D40: 0
C41: =C121 -> TUV | D41: 0
C42: Celkové úspory z cestovních dob převedené dopravy | D42: 1989618615 | E42: =SUM(E38:E41) -> 0 | F42: 0 | G42: 0 | H42: 0 | I42: 0 | J42: 0 | K42: 0 | L42: 0 | M42: -1494974.387 | N42: -1545891.262 | O42: 10378585.32 | P42: 12090516.22 | Q42: 12858698.42 | R42: 13800034.19 | S42: 14724853.17
B44: 5.3. | C44: Úspory z cestovních dob převedené dopravy (CZK) | E44: =S36+1 -> 2024 | F44: =E44+1 -> 2025 | G44: 2026 | H44: 2027 | I44: 2028 | J44: 2029 | K44: 2030 | L44: 2031 | M44: 2032 | N44: 2033 | O44: 2034 | P44: 2035 | Q44: 2036 | R44: 2037 | S44: 2038
B45: b
C46: =C38 -> BUS | E46: =E109*$M$86*E$143 -> 27045818.09 | F46: =F109*$M$86*F$143 -> 36754665.22 | G46: 40827646.61 | H46: 42457570.72 | I46: 44041911.76 | J46: 45087306.62 | K46: 45676920.08 | L46: 46184890.45 | M46: 46624419.71 | N46: 47005396.56 | O46: 47330308.36 | P46: 47436556.95 | Q46: 48034946.29 | R46: 48272786.77 | S46: 48564030.25
C47: =C39 -> IAD | E47: =E110*$N$86*E$143 -> 49882138.81 | F47: =F110*$N$86*F$143 -> 67009270.33 | G47: 72751115.76 | H47: 75774376.04 | I47: 80385938.22 | J47: 84186146.81 | K47: 89304004.01 | L47: 90395669.32 | M47: 91382960 | N47: 92312505.97 | O47: 93185547.35 | P47: 94010767.52 | Q47: 94886391.45 | R47: 95633857.76 | S47: 96360929.31
C48: =C40 -> LUV
C49: =C41 -> TUV
C50: Celkové úspory z cestovních dob převedené dopravy | E50: =SUM(E46:E49) -> 76927956.9 | F50: 103763935.6 | G50: 113578762.4 | H50: 118231946.8 | I50: 124427850 | J50: 129273453.4 | K50: 134980924.1 | L50: 136580559.8 | M50: 138007379.7 | N50: 139317902.5 | O50: 140515855.7 | P50: 141447324.5 | Q50: 142921337.7 | R50: 143906644.5 | S50: 144924959.6
B53: 5.4. | C53: Celkové úspory z cestovních dob (CZK) | E53: =E2 -> 2009 | F53: =E53+1 -> 2010 | G53: 2011 | H53: 2012 | I53: 2013 | J53: 2014 | K53: 2015 | L53: 2016 | M53: 2017 | N53: 2018 | O53: 2019 | P53: 2020 | Q53: 2021 | R53: 2022 | S53: 2023
B54: a | D54: Celkem
C55: Celkové úspory z cestovních dob v železniční dopravě | D55: =SUM(E55:S55,E62:S62) -> 1.9519068e+10 | E55: =E8 -> 0 | F55: =F8 -> 0 | G55: 0 | H55: 0 | I55: 0 | J55: 0 | K55: 87974726.8 | L55: 95179742.55 | M55: 101109982.6 | N55: 104645727.8 | O55: 276576434 | P55: 283292814.9 | Q55: 324012400.6 | R55: 334478929.4 | S55: 369082958.7
C56: Celkové úspory z cestovních dob indukované dopravy | D56: =SUM(E56:S56,E63:S63) -> 162082942.6 | E56: =E25 -> 0 | F56: =F25 -> 0 | G56: 0 | H56: 0 | I56: 0 | J56: 0 | K56: 0 | L56: 66759.37902 | M56: 136799.7002 | N56: 209793.6329 | O56: 567461.303 | P56: 673493.0974 | Q56: 765403.1543 | R56: 860014.6355 | S56: 957741.0369
C57: Celkové úspory z cestovních dob převedené dopravy | D57: 1989618615 | E57: =E42 -> 0 | F57: =F42 -> 0 | G57: 0 | H57: 0 | I57: 0 | J57: 0 | K57: 0 | L57: 0 | M57: -1494974.387 | N57: -1545891.262 | O57: 10378585.32 | P57: 12090516.22 | Q57: 12858698.42 | R57: 13800034.19 | S57: 14724853.17
C58: Celkové úspory z cestovních dob | D58: 2.167076955e+10 | E58: =SUM(E55:E57) -> 0 | F58: =SUM(F55:F57) -> 0 | G58: 0 | H58: 0 | I58: 0 | J58: 0 | K58: 87974726.8 | L58: 95246501.93 | M58: 99751807.92 | N58: 103309630.1 | O58: 287522480.6 | P58: 296056824.2 | Q58: 337636502.2 | R58: 349138978.2 | S58: 384765552.9
B60: 5.4. | C60: Celkové úspory z cestovních dob (CZK) | E60: =S53+1 -> 2024 | F60: =E60+1 -> 2025 | G60: 2026 | H60: 2027 | I60: 2028 | J60: 2029 | K60: 2030 | L60: 2031 | M60: 2032 | N60: 2033 | O60: 2034 | P60: 2035 | Q60: 2036 | R60: 2037 | S60: 2038
B61: b | D61: Celkem
C62: Celkové úspory z cestovních dob v železniční dopravě | E62: =E16 -> 736862584.6 | F62: =F16 -> 879634639.8 | G62: 967601197 | H62: 1020717427 | I62: 1084347945 | J62: 1149476569 | K62: 1251405092 | L62: 1264860219 | M62: 1277806816 | N62: 1290232657 | O62: 1302125336 | P62: 1313472269 | Q62: 1324260689 | R62: 1334806716 | S62: 1345104124
C63: Celkové úspory z cestovních dob indukované dopravy | E63: =E33 -> 5759949.132 | F63: =F33 -> 7859595.107 | G63: 8747248.161 | H63: 9205296.555 | I63: 9781144.024 | J63: 10368469.92 | K63: 11150187.41 | L63: 11330450.81 | M63: 11500137.36 | N63: 11660120.88 | O63: 11810229.83 | P63: 11950465.37 | Q63: 12097460.59 | R63: 12243733.28 | S63: 12380988.25
C64: Celkové úspory z cestovních dob převedené dopravy | E64: =E50 -> 76927956.9 | F64: =F50 -> 103763935.6 | G64: 113578762.4 | H64: 118231946.8 | I64: 124427850 | J64: 129273453.4 | K64: 134980924.1 | L64: 136580559.8 | M64: 138007379.7 | N64: 139317902.5 | O64: 140515855.7 | P64: 141447324.5 | Q64: 142921337.7 | R64: 143906644.5 | S64: 144924959.6
C65: Celkové úspory z cestovních dob | E65: =SUM(E62:E64) -> 819550490.6 | F65: 991258170.5 | G65: 1089927208 | H65: 1148154671 | I65: 1218556939 | J65: 1289118492 | K65: 1397536204 | L65: 1412771229 | M65: 1427314333 | N65: 1441210681 | O65: 1454451422 | P65: 1466870059 | Q65: 1479279487 | R65: 1490957093 | S65: 1502410072
C68: Úspory z cestovních dob v železniční dopravě (CZK) | D68: =D8 -> 1.9519068e+10
C69: Úspory z cestovních dob indukované dopravy (CZK) | D69: =D25 -> 162082942.6
C70: Úspory z cestovních dob převedené dopravy (CZK) | D70: =D42 -> 1989618615
C71: Celkové úspory z cestovních dob (CZK) | D71: =D58 -> 2.167076955e+10
E73: CÚ | K73: Poměr cest
B74: 5.5. | E74: 2002 | F74: 2002 | G74: 2012 | H74: 2012 | I74: ='0 Úvod'!D19 -> 2016
B75: Osobní doprava | E75: EUR/oshod | F75: CZK/oshod | G75: EUR/oshod | H75: CZK/oshod | I75: CZK/oshod | K75: krátké | L75: dlouhé | M75: BUS | N75: IAD
B76: Pracovní čas | D76: Bus | E76: 11.45 | F76: 352.8 | G76: 21.24 | H76: 524.1 | I76: 528.6689108 | M76: 0.05
D77: Auto, vlak | E77: 14.27 | F77: 439.7 | G77: 26.47 | H77: 653.2 | I77: 658.894357 | K77: 0.05 | L77: 0.05 | N77: 0.05
B78: Nepracovní čas | C78: Krátká dojížďka | D78: Bus | E78: 4.13 | F78: 127.2 | G78: 7.66 | H78: 189.1 | I78: 190.7485041 | M78: =95%/4 -> 0.2375
D79: Auto, vlak | E79: 5.75 | F79: 177.2 | G79: 10.67 | H79: 263.2 | I79: 265.4944807 | K79: =95%/2 -> 0.475 | N79: =95%/4 -> 0.2375
C80: Dlouhá dojížďka | D80: Bus | E80: 5.31 | F80: 163.6 | G80: 9.85 | H80: 243.1 | I80: 245.2192563 | M80: =95%/4 -> 0.2375
D81: Auto, vlak | E81: 7.38 | F81: 227.4 | G81: 13.69 | H81: 337.8 | I81: 340.744816 | L81: =95%/2 -> 0.475 | N81: =95%/4 -> 0.2375
C82: Ostatní - krátká vzdálenost | D82: Bus | E82: 3.46 | F82: 106.6 | G82: 6.42 | H82: 158.4 | I82: 159.7808729 | M82: =95%/4 -> 0.2375
D83: Auto, vlak | E83: 4.82 | F83: 148.5 | G83: 8.94 | H83: 220.6 | I83: 222.5231095 | K83: =95%/2 -> 0.475 | N83: =95%/4 -> 0.2375
C84: Ostatní - dlouhá vzdálenost | D84: Bus | E84: 4.45 | F84: 137.1 | G84: 8.26 | H84: 203.7 | I84: 205.4757816 | M84: =95%/4 -> 0.2375
D85: Auto, vlak | E85: 6.18 | F85: 190.4 | G85: 11.46 | H85: 282.9 | I85: 285.366218 | L85: =95%/2 -> 0.475 | N85: =95%/4 -> 0.2375
B86: Nákladní doprava | E86: EUR/thod | F86: CZK/thod | G86: EUR/thod | H86: CZK/thod | I86: CZK/thod | K86: =SUMPRODUCT($I$76:$I$85,K76:K85) -> 264.7530732 | L86: =SUMPRODUCT($I$76:$I$85,L76:L85) -> 330.347459 | M86: =SUMPRODUCT($I$76:$I$85,M76:M85) -> 216.7242441 | N86: =SUMPRODUCT($I$76:$I$85,N76:N85) -> 297.5502661
D87: Silnice | E87: 2.06 | F87: 63.47 | G87: 3.82 | H87: 94.3 | I87: 95.12207267
D88: Železnice | E88: 0.84 | F88: 25.88 | G88: 1.56 | H88: 38.45 | I88: 38.78519294
B89: Zdroj: „HEATCO - Developing Harmonized European Approaches for Transport Costing and Project Assessment“, 2004 – 2006
B90: Pozn. Zpracovatel může použít i jiné ohodnocení času. Hodnota času ale musí být v souladu s materiálem „Metodika hodnocení efektivnosti investic - železniční infrastruktura“ 2013
B93: 5.6. | C93: Celkové oshod | E93: =E2 -> 2009 | F93: =E93+1 -> 2010 | G93: 2011 | H93: 2012 | I93: 2013 | J93: 2014 | K93: 2015 | L93: 2016 | M93: 2017 | N93: 2018 | O93: 2019 | P93: 2020 | Q93: 2021 | R93: 2022 | S93: 2023
B94: a | D94: Celkem
B95: Želez. doprava | C95: Osobní - příměstská | D95: =SUM(E95:S95,E105:S105) -> 21758778.72 | E95: 0 | F95: 0 | G95: 0 | H95: 0 | I95: 0 | J95: 0 | K95: 24466.28618 | L95: 23724.45113 | M95: 24298.4052 | N95: 24849.22992 | O95: 100763.8187 | P95: 102722.1498 | Q95: 157905.0668 | R95: 168672.8339 | S95: 226542.6503
C96: Osobní - dálková | D96: =SUM(E96:S96,E106:S106) -> 25172201.21 | E96: 0 | F96: 0 | G96: 0 | H96: 0 | I96: 0 | J96: 0 | K96: 230304.923 | L96: 246169.4302 | M96: 256627.0158 | N96: 259963.167 | O96: 613052.9834 | P96: 618570.4602 | Q96: 667720.2335 | R96: 673729.7156 | S96: 701229.4515
B97: Indukov. doprava | C97: Osobní - příměstská | D97: 40940.84137 | E97: 0 | F97: 0 | G97: 0 | H97: 0 | I97: 0 | J97: 0 | K97: 0 | L97: 0 | M97: 1.943872416 | N97: 3.866540176 | O97: 978.5167689 | P97: 1075.630026 | Q97: 1118.767557 | R97: 1162.720024 | S97: 1208.576427
C98: Osobní - dálková | D98: 235162.1709 | E98: 0 | F98: 0 | G98: 0 | H98: 0 | I98: 0 | J98: 0 | K98: 0 | L98: 0 | M98: 0 | N98: 0 | O98: 0 | P98: 0 | Q98: 0 | R98: 0 | S98: 0
B99: Převed. doprava | C99: BUS | D99: 2257388.599 | E99: 0 | F99: 0 | G99: 0 | H99: 0 | I99: 0 | J99: 0 | K99: 0 | L99: 0 | M99: -5047.347562 | N99: -5210.956596 | O99: -3008.374427 | P99: -1526.688247 | Q99: -1042.30244 | R99: -388.1211962 | S99: 179.0645291
C100: IAD | D100: 3352121.827 | E100: 0 | F100: 0 | G100: 0 | H100: 0 | I100: 0 | J100: 0 | K100: 0 | L100: 0 | M100: -855.9963532 | N100: -794.7982529 | O100: 32374.76526 | P100: 35788.81879 | Q100: 37130.04364 | R100: 38777.21105 | S100: 40376.73166
C101: Celkové oshod | D101: 52816593.37 | E101: =SUM(E95:E100) -> 0 | F101: 0 | G101: 0 | H101: 0 | I101: 0 | J101: 0 | K101: 254771.2092 | L101: 269893.8813 | M101: 275024.0209 | N101: 278810.5086 | O101: 744161.7097 | P101: 756630.3706 | Q101: 862831.8091 | R101: 881954.3594 | S101: 969536.4745
B103: =B93 -> 5.6. | C103: =C93 -> Celkové oshod | E103: =S93+1 -> 2024 | F103: =E103+1 -> 2025 | G103: 2026 | H103: 2027 | I103: 2028 | J103: 2029 | K103: 2030 | L103: 2031 | M103: 2032 | N103: 2033 | O103: 2034 | P103: 2035 | Q103: 2036 | R103: 2037 | S103: 2038
B104: b
B105: =B95 -> Želez. doprava | C105: =C95 -> Osobní - příměstská | E105: 975800.9188 | F105: 1149879.759 | G105: 1202804.727 | H105: 1254138.685 | I105: 1317298.583 | J105: 1380352.836 | K105: 1498175.311 | L105: 1503885.416 | M105: 1508807.92 | N105: 1512942.824 | O105: 1516290.126 | P105: 1518849.829 | Q105: 1520621.93 | R105: 1522000.231 | S105: 1522984.732
C106: =C96 -> Osobní - dálková | E106: 975800.9188 | F106: 1149879.759 | G106: 1202804.727 | H106: 1254138.685 | I106: 1317298.583 | J106: 1380352.836 | K106: 1498175.311 | L106: 1503885.416 | M106: 1508807.92 | N106: 1512942.824 | O106: 1516290.126 | P106: 1518849.829 | Q106: 1520621.93 | R106: 1522000.231 | S106: 1522984.732
B107: =B97 -> Indukov. doprava | C107: Osobní - příměstská | E107: 2048.222465 | F107: 2187.980536 | G107: 2210.545563 | H107: 2239.199993 | I107: 2340.058478 | J107: 2362.920678 | K107: 2393.444982 | L107: 2409.785909 | M107: 2422.733368 | N107: 2435.381418 | O107: 2447.876414 | P107: 2460.840549 | Q107: 2473.832593 | R107: 2476.216189 | S107: 2481.781021
C108: Osobní - dálková | E108: 7205.085627 | F108: 11833.04258 | G108: 13537.46137 | H108: 14175.45502 | I108: 15002.18364 | J108: 15884.94521 | K108: 17340.14991 | L108: 17431.23346 | M108: 17497.0119 | N108: 17537.48521 | O108: 17552.65342 | P108: 17542.5165 | Q108: 17544.02589 | R108: 17549.30557 | S108: 17529.61555
B109: =B99 -> Převed. doprava | C109: BUS | E109: 100738.5713 | F109: 135011.3192 | G109: 147902.0187 | H109: 151683.0111 | I109: 155170.8028 | J109: 156660.7431 | K109: 157606.1758 | L109: 158251.1469 | M109: 158646.6542 | N109: 158831.1675 | O109: 158817.3228 | P109: 158067.3694 | Q109: 158948.6725 | R109: 158625.3146 | S109: 158473.0351
C110: IAD | E110: 135328.069 | F110: 179283.2648 | G110: 191958.1548 | H110: 197174.7606 | I110: 206286.6311 | J110: 213055.9542 | K110: 224437.0254 | L110: 225601.3671 | M110: 226479.9982 | N110: 227193.3953 | O110: 227747.8318 | P110: 228167.5181 | Q110: 228691.846 | R110: 228891.1251 | S110: 229028.1094
C111: Celkové oshod | E111: =SUM(E105:E110) -> 2196921.786 | F111: 2628075.125 | G111: 2761217.635 | H111: 2873549.798 | I111: 3013396.842 | J111: 3148670.236 | K111: 3398127.418 | L111: 3411464.365 | M111: 3422662.238 | N111: 3431883.076 | O111: 3439145.937 | P111: 3443937.902 | Q111: 3448902.237 | R111: 3451542.424 | S111: 3453482.005
B114: 5.7. | C114: Celkové thod | E114: =E2 -> 2009 | F114: =E114+1 -> 2010 | G114: 2011 | H114: 2012 | I114: 2013 | J114: 2014 | K114: 2015 | L114: 2016 | M114: 2017 | N114: 2018 | O114: 2019 | P114: 2020 | Q114: 2021 | R114: 2022 | S114: 2023
B115: a | D115: Celkem
B116: Želez. doprava | C116: Nákladní - regionální | D116: =SUM(E116:S116,E126:S126) -> 849530.0623 | E116: 0 | F116: 0 | G116: 0 | H116: 0 | I116: 0 | J116: 0 | K116: 0 | L116: 0 | M116: 0 | N116: 0 | O116: 13069.44444 | P116: 13180.55556 | Q116: 13291.66667 | R116: 13402.77778 | S116: 13513.88889
C117: Nákladní - dálková | D117: =SUM(E117:S117,E127:S127) -> 16141071.18 | E117: 0 | F117: 0 | G117: 0 | H117: 0 | I117: 0 | J117: 0 | K117: 0 | L117: 0 | M117: 0 | N117: 0 | O117: 248319.4444 | P117: 250430.5556 | Q117: 252541.6667 | R117: 254652.7778 | S117: 256763.8889
B118: Indukov. doprava | C118: Nákladní - regionální | D118: 83467.16398 | E118: 0 | F118: 0 | G118: 0 | H118: 0 | I118: 0 | J118: 0 | K118: 0 | L118: 158.4231481 | M118: 316.8462963 | N118: 475.2694444 | O118: 598.137037 | P118: 747.6712963 | Q118: 897.2055556 | R118: 1046.739815 | S118: 1196.274074
C119: Nákladní - dálková | D119: 1585876.116 | E119: 0 | F119: 0 | G119: 0 | H119: 0 | I119: 0 | J119: 0 | K119: 0 | L119: 3010.039815 | M119: 6020.07963 | N119: 9030.119444 | O119: 11364.6037 | P119: 14205.75463 | Q119: 17046.90556 | R119: 19888.05648 | S119: 22729.20741
B120: Převed. doprava | C120: LUV | D120: 0
C121: TUV | D121: 0
C122: Celkové thod | D122: 18659944.53 | E122: =SUM(E116:E121) -> 0 | F122: 0 | G122: 0 | H122: 0 | I122: 0 | J122: 0 | K122: 0 | L122: 3168.462963 | M122: 6336.925926 | N122: 9505.388889 | O122: 273351.6296 | P122: 278564.537 | Q122: 283777.4444 | R122: 288990.3519 | S122: 294203.2593
B124: =B114 -> 5.7. | C124: =C114 -> Celkové thod | E124: =S114+1 -> 2024 | F124: =E124+1 -> 2025 | G124: 2026 | H124: 2027 | I124: 2028 | J124: 2029 | K124: 2030 | L124: 2031 | M124: 2032 | N124: 2033 | O124: 2034 | P124: 2035 | Q124: 2036 | R124: 2037 | S124: 2038
B125: b
B126: =B116 -> Želez. doprava | C126: =C116 -> Nákladní - regionální | E126: 18210.525 | F126: 20599.59063 | G126: 56565.32896 | H126: 56679.58969 | I126: 56793.85042 | J126: 56908.11115 | K126: 57022.37188 | L126: 57136.6326 | M126: 57250.89333 | N126: 57365.15406 | O126: 57479.41479 | P126: 57593.67552 | Q126: 57707.93625 | R126: 57822.19698 | S126: 57936.45771
C127: =C117 -> Nákladní - dálková | E127: 345999.975 | F127: 391392.2219 | G127: 1074741.25 | H127: 1076912.204 | I127: 1079083.158 | J127: 1081254.112 | K127: 1083425.066 | L127: 1085596.019 | M127: 1087766.973 | N127: 1089937.927 | O127: 1092108.881 | P127: 1094279.835 | Q127: 1096450.789 | R127: 1098621.743 | S127: 1100792.696
B128: =B118 -> Indukov. doprava | C128: Nákladní - regionální | E128: 4453.275867 | F128: 4560.242146 | G128: 4667.208425 | H128: 4774.174704 | I128: 4881.140983 | J128: 4988.107262 | K128: 5095.073542 | L128: 5202.039821 | M128: 5309.0061 | N128: 5415.972379 | O128: 5522.938658 | P128: 5629.904937 | Q128: 5736.871217 | R128: 5843.837496 | S128: 5950.803775
C129: Nákladní - dálková | E129: 84612.24147 | F129: 86644.60077 | G129: 88676.96008 | H129: 90709.31938 | I129: 92741.67868 | J129: 94774.03799 | K129: 96806.39729 | L129: 98838.7566 | M129: 100871.1159 | N129: 102903.4752 | O129: 104935.8345 | P129: 106968.1938 | Q129: 109000.5531 | R129: 111032.9124 | S129: 113065.2717
B130: =B120 -> Převed. doprava | C130: LUV
C131: TUV
C132: Celkové thod | E132: =SUM(E126:E131) -> 453276.0173 | F132: 503196.6554 | G132: 1224650.748 | H132: 1229075.288 | I132: 1233499.828 | J132: 1237924.368 | K132: 1242348.908 | L132: 1246773.448 | M132: 1251197.989 | N132: 1255622.529 | O132: 1260047.069 | P132: 1264471.609 | Q132: 1268896.149 | R132: 1273320.689 | S132: 1277745.23
B135: 5.8. | C135: Změna měrných hodnot času | E135: =E2 -> 2009 | F135: =E135+1 -> 2010 | G135: 2011 | H135: 2012 | I135: 2013 | J135: 2014 | K135: 2015 | L135: 2016 | M135: 2017 | N135: 2018 | O135: 2019 | P135: 2020 | Q135: 2021 | R135: 2022 | S135: 2023
B136: a | D136: Elasticita
C137: Hodnota růstu HDP na hlavu (resp. prognóza) | D137: 0.7 | E137: 0 | F137: =D137*'0 Úvod'!I66 -> 0.014 | G137: =D137*'0 Úvod'!J66 -> 0.0154 | H137: =$D$137*IF(HLOOKUP(H$135,'0 Úvod'!$K$65:$N$66,1,TRUE)=H$135,HLOOKUP(H$135,'0 Úvod'!$K$65:$N$66,2,TRUE),HLOOKUP(H$135,'0 Úvod'!$D$68:$J$69,2,TRUE)) -> -0.007 | I137: =$D$137*IF(HLOOKUP(I$135,'0 Úvod'!$K$65:$N$66,1,TRUE)=I$135,HLOOKUP(I$135,'0 Úvod'!$K$65:$N$66,2,TRUE),HLOOKUP(I$135,'0 Úvod'!$D$68:$J$69,2,TRUE)) -> -0.0035 | J137: =$D$137*IF(HLOOKUP(J$135,'0 Úvod'!$K$65:$N$66,1,TRUE)=J$135,HLOOKUP(J$135,'0 Úvod'!$K$65:$N$66,2,TRUE),HLOOKUP(J$135,'0 Úvod'!$D$68:$J$69,2,TRUE)) -> 0.0126 | K137: =$D$137*IF(HLOOKUP(K$135,'0 Úvod'!$K$65:$N$66,1,TRUE)=K$135,HLOOKUP(K$135,'0 Úvod'!$K$65:$N$66,2,TRUE),HLOOKUP(K$135,'0 Úvod'!$D$68:$J$69,2,TRUE)) -> 0.0329 | L137: =$D$137*IF(HLOOKUP(L$135,'0 Úvod'!$K$65:$N$66,1,TRUE)=L$135,HLOOKUP(L$135,'0 Úvod'!$K$65:$N$66,2,TRUE),HLOOKUP(L$135,'0 Úvod'!$D$68:$J$69,2,TRUE)) -> 0.0196 | M137: =$D$137*IF(HLOOKUP(M$135,'0 Úvod'!$K$65:$N$66,1,TRUE)=M$135,HLOOKUP(M$135,'0 Úvod'!$K$65:$N$66,2,TRUE),HLOOKUP(M$135,'0 Úvod'!$D$68:$J$69,2,TRUE)) -> 0.0203 | N137: =$D$137*IF(HLOOKUP(N$135,'0 Úvod'!$K$65:$N$66,1,TRUE)=N$135,HLOOKUP(N$135,'0 Úvod'!$K$65:$N$66,2,TRUE),HLOOKUP(N$135,'0 Úvod'!$D$68:$J$69,2,TRUE)) -> 0.021 | O137: =$D$137*IF(HLOOKUP(O$135,'0 Úvod'!$K$65:$N$66,1,TRUE)=O$135,HLOOKUP(O$135,'0 Úvod'!$K$65:$N$66,2,TRUE),HLOOKUP(O$135,'0 Úvod'!$D$68:$J$69,2,TRUE)) -> 0.021 | P137: =$D$137*IF(HLOOKUP(P$135,'0 Úvod'!$K$65:$N$66,1,TRUE)=P$135,HLOOKUP(P$135,'0 Úvod'!$K$65:$N$66,2,TRUE),HLOOKUP(P$135,'0 Úvod'!$D$68:$J$69,2,TRUE)) -> 0.014 | Q137: =$D$137*IF(HLOOKUP(Q$135,'0 Úvod'!$K$65:$N$66,1,TRUE)=Q$135,HLOOKUP(Q$135,'0 Úvod'!$K$65:$N$66,2,TRUE),HLOOKUP(Q$135,'0 Úvod'!$D$68:$J$69,2,TRUE)) -> 0.014 | R137: =$D$137*IF(HLOOKUP(R$135,'0 Úvod'!$K$65:$N$66,1,TRUE)=R$135,HLOOKUP(R$135,'0 Úvod'!$K$65:$N$66,2,TRUE),HLOOKUP(R$135,'0 Úvod'!$D$68:$J$69,2,TRUE)) -> 0.014 | S137: =$D$137*IF(HLOOKUP(S$135,'0 Úvod'!$K$65:$N$66,1,TRUE)=S$135,HLOOKUP(S$135,'0 Úvod'!$K$65:$N$66,2,TRUE),HLOOKUP(S$135,'0 Úvod'!$D$68:$J$69,2,TRUE)) -> 0.014
C138: Výsledný růstový koeficient hodnoty času | E138: 1 | F138: =E138*(1+F137) -> 1.014 | G138: =F138*(1+G137) -> 1.0296156 | H138: 1.022408291 | I138: 1.018829862 | J138: 1.031667118 | K138: 1.065608966 | L138: 1.086494902 | M138: 1.108550748 | N138: 1.131830314 | O138: 1.155598751 | P138: 1.171777133 | Q138: 1.188182013 | R138: 1.204816561 | S138: 1.221683993
B140: =B135 -> 5.8. | C140: =C135 -> Změna měrných hodnot času | E140: =S135+1 -> 2024 | F140: =E140+1 -> 2025 | G140: 2026 | H140: 2027 | I140: 2028 | J140: 2029 | K140: 2030 | L140: 2031 | M140: 2032 | N140: 2033 | O140: 2034 | P140: 2035 | Q140: 2036 | R140: 2037 | S140: 2038
B141: b | D141: Elasticita
C142: =C137 -> Hodnota růstu HDP na hlavu (resp. prognóza) | D142: =D137 -> 0.7 | E142: =$D$142*IF(HLOOKUP(E$140,'0 Úvod'!$K$65:$N$66,1,TRUE)=E$140,HLOOKUP(E$140,'0 Úvod'!$K$65:$N$66,2,TRUE),HLOOKUP(E$140,'0 Úvod'!$D$68:$J$69,2,TRUE)) -> 0.014 | F142: =$D$142*IF(HLOOKUP(F$140,'0 Úvod'!$K$65:$N$66,1,TRUE)=F$140,HLOOKUP(F$140,'0 Úvod'!$K$65:$N$66,2,TRUE),HLOOKUP(F$140,'0 Úvod'!$D$68:$J$69,2,TRUE)) -> 0.014 | G142: =$D$142*IF(HLOOKUP(G$140,'0 Úvod'!$K$65:$N$66,1,TRUE)=G$140,HLOOKUP(G$140,'0 Úvod'!$K$65:$N$66,2,TRUE),HLOOKUP(G$140,'0 Úvod'!$D$68:$J$69,2,TRUE)) -> 0.014 | H142: =$D$142*IF(HLOOKUP(H$140,'0 Úvod'!$K$65:$N$66,1,TRUE)=H$140,HLOOKUP(H$140,'0 Úvod'!$K$65:$N$66,2,TRUE),HLOOKUP(H$140,'0 Úvod'!$D$68:$J$69,2,TRUE)) -> 0.014 | I142: =$D$142*IF(HLOOKUP(I$140,'0 Úvod'!$K$65:$N$66,1,TRUE)=I$140,HLOOKUP(I$140,'0 Úvod'!$K$65:$N$66,2,TRUE),HLOOKUP(I$140,'0 Úvod'!$D$68:$J$69,2,TRUE)) -> 0.014 | J142: =$D$142*IF(HLOOKUP(J$140,'0 Úvod'!$K$65:$N$66,1,TRUE)=J$140,HLOOKUP(J$140,'0 Úvod'!$K$65:$N$66,2,TRUE),HLOOKUP(J$140,'0 Úvod'!$D$68:$J$69,2,TRUE)) -> 0.014 | K142: =$D$142*IF(HLOOKUP(K$140,'0 Úvod'!$K$65:$N$66,1,TRUE)=K$140,HLOOKUP(K$140,'0 Úvod'!$K$65:$N$66,2,TRUE),HLOOKUP(K$140,'0 Úvod'!$D$68:$J$69,2,TRUE)) -> 0.007 | L142: =$D$142*IF(HLOOKUP(L$140,'0 Úvod'!$K$65:$N$66,1,TRUE)=L$140,HLOOKUP(L$140,'0 Úvod'!$K$65:$N$66,2,TRUE),HLOOKUP(L$140,'0 Úvod'!$D$68:$J$69,2,TRUE)) -> 0.007 | M142: =$D$142*IF(HLOOKUP(M$140,'0 Úvod'!$K$65:$N$66,1,TRUE)=M$140,HLOOKUP(M$140,'0 Úvod'!$K$65:$N$66,2,TRUE),HLOOKUP(M$140,'0 Úvod'!$D$68:$J$69,2,TRUE)) -> 0.007 | N142: =$D$142*IF(HLOOKUP(N$140,'0 Úvod'!$K$65:$N$66,1,TRUE)=N$140,HLOOKUP(N$140,'0 Úvod'!$K$65:$N$66,2,TRUE),HLOOKUP(N$140,'0 Úvod'!$D$68:$J$69,2,TRUE)) -> 0.007 | O142: =$D$142*IF(HLOOKUP(O$140,'0 Úvod'!$K$65:$N$66,1,TRUE)=O$140,HLOOKUP(O$140,'0 Úvod'!$K$65:$N$66,2,TRUE),HLOOKUP(O$140,'0 Úvod'!$D$68:$J$69,2,TRUE)) -> 0.007 | P142: =$D$142*IF(HLOOKUP(P$140,'0 Úvod'!$K$65:$N$66,1,TRUE)=P$140,HLOOKUP(P$140,'0 Úvod'!$K$65:$N$66,2,TRUE),HLOOKUP(P$140,'0 Úvod'!$D$68:$J$69,2,TRUE)) -> 0.007 | Q142: =$D$142*IF(HLOOKUP(Q$140,'0 Úvod'!$K$65:$N$66,1,TRUE)=Q$140,HLOOKUP(Q$140,'0 Úvod'!$K$65:$N$66,2,TRUE),HLOOKUP(Q$140,'0 Úvod'!$D$68:$J$69,2,TRUE)) -> 0.007 | R142: =$D$142*IF(HLOOKUP(R$140,'0 Úvod'!$K$65:$N$66,1,TRUE)=R$140,HLOOKUP(R$140,'0 Úvod'!$K$65:$N$66,2,TRUE),HLOOKUP(R$140,'0 Úvod'!$D$68:$J$69,2,TRUE)) -> 0.007 | S142: =$D$142*IF(HLOOKUP(S$140,'0 Úvod'!$K$65:$N$66,1,TRUE)=S$140,HLOOKUP(S$140,'0 Úvod'!$K$65:$N$66,2,TRUE),HLOOKUP(S$140,'0 Úvod'!$D$68:$J$69,2,TRUE)) -> 0.007
C143: =C138 -> Výsledný růstový koeficient hodnoty času | E143: =S138*(1+E142) -> 1.238787569 | F143: =E143*(1+F142) -> 1.256130595 | G143: =F143*(1+G142) -> 1.273716423 | H143: 1.291548453 | I143: 1.309630132 | J143: 1.327964954 | K143: 1.337260708 | L143: 1.346621533 | M143: 1.356047884 | N143: 1.365540219 | O143: 1.375099001 | P143: 1.384724694 | Q143: 1.394417766 | R143: 1.404178691 | S143: 1.414007942
B146: Komentáře
B148: Zpracovatel uvede konkrétní hodnoty výstupů z dopravního prognózování použité při výpočtu úspor času. Tabulky 5.6. a 5.7. je možné přizpůsobit konkrétnímu projektu.
B149: V tabulce 5.1., 5.2. a 5.3. uvede zpracovatel konkrétní výpočet pomocí vzorců, s odkazem na tabulky výkonů (tabulka 5.6. a 5.7.) a měrného ohodnocení (tabulka 5.5.).
B150: a vynásobí hodnoty v tabulce 5.1, 5.2 a 5.3 hodnotou z tabulky 5.8

Sheet 6 Externality
B2: 6.1. | C2: Externí náklady (CZK) | E2: ='1 Celkové investiční náklady'!G3 -> 2009 | F2: =E2+1 -> 2010 | G2: 2011 | H2: 2012 | I2: 2013 | J2: 2014 | K2: 2015 | L2: 2016 | M2: 2017 | N2: 2018 | O2: 2019 | P2: 2020 | Q2: 2021 | R2: 2022 | S2: 2023
B3: a | C3: Scénář s projektem | D3: Celkem
B4: Železniční osobní doprava | C4: Nehody | D4: =SUM(E4:S4,E24:S24) -> 827916298.3 | E4: =E$129/1000*$M114*E$285 -> 15047176.47 | F4: =F$129/1000*$M114*F$285 -> 15272243.49 | G4: 14395393.21 | H4: 15160361.06 | I4: 15187954.06 | J4: 15566593.15 | K4: 16706323.94 | L4: 17658670.12 | M4: 18481940.57 | N4: 19274285.09 | O4: 19807349.28 | P4: 20439165.59 | Q4: 21052766.38 | R4: 21679251.75 | S4: 22318673.96
C5: Hluk | D5: =SUM(E5:S5,E25:S25) -> 3627061878 | E5: 65920963.6 | F5: =F$129/1000*$M115*F$285 -> 66906971.49 | G5: 63065532.15 | H5: 66416819.88 | I5: 66537703.52 | J5: 68196503.34 | K5: 73189609.62 | L5: 77361792.9 | M5: 80968501.54 | N5: 84439725.15 | O5: 86775053.99 | P5: 89543011.17 | Q5: 92231167 | R5: 94975769.57 | S5: 97777047.84
C6: Znečištění ovzduší | D6: 4553539641 | E6: 82759470.6 | F6: =F$129/1000*$M116*F$285 -> 83997339.21 | G6: 79174662.65 | H6: 83381985.83 | I6: 83533747.35 | J6: 85616262.34 | K6: 91884781.64 | L6: 97122685.65 | M6: 101650673.1 | N6: 106008568 | O6: 108940421 | P6: 112415410.8 | Q6: 115790215.1 | R6: 119235884.6 | S6: 122752706.8
C7: Klimatické změny | D7: 4928073204 | E7: 89566526.62 | F7: =F$129/1000*$M117*F$285 -> 90906211.27 | G7: 85686864.34 | H7: 90240244.41 | I7: 90404488.48 | J7: 92658292.58 | K7: 99442404.38 | L7: 105111131.7 | M7: 110011551 | N7: 114727887.4 | O7: 117900888.6 | P7: 121661700 | Q7: 125314085.6 | R7: 129043165.2 | S7: 132849249.8
B8: Železniční nákladní doprava | C8: Nehody | D8: 8334225404 | E8: =E$130/1000*$L120*E$285 -> 193898629.8 | F8: =F$130/1000*$L120*F$285 -> 197776602.4 | G8: 202127687.7 | H8: 200106410.8 | I8: 199105878.7 | J8: 202689784.5 | K8: 210872970.8 | L8: 220248541.1 | M8: 230207538.5 | N8: 240792708 | O8: 238384093.7 | P8: 246792161.7 | Q8: 255441198.8 | R8: 264337480.5 | S8: 273487436.9
C9: Hluk | D9: 2537171940 | E9: =E$130/1000*$L121*E$285 -> 59028180.66 | F9: =F$130/1000*$L121*F$285 -> 60208744.28 | G9: 61533336.65 | H9: 60918003.28 | I9: 60613413.27 | J9: 61704454.71 | K9: 64195646.1 | L9: 67049832.61 | M9: 70081630.71 | N9: 73304053.18 | O9: 72570803.44 | P9: 75130455.13 | Q9: 77763464.57 | R9: 80471742.2 | S9: 83257245.56
C10: Znečištění ovzduší | D10: 2906215132 | E10: 67614097.85 | F10: =F$130/1000*$L122*F$285 -> 68966379.81 | G10: 70483640.16 | H10: 69778803.76 | I10: 69429909.74 | J10: 70679648.12 | K10: 73533194.63 | L10: 76802535.54 | M10: 80275322.45 | N10: 83966460.92 | O10: 83126556.67 | P10: 86058521.33 | Q10: 89074513.96 | R10: 92176722.89 | S10: 95367390.37
C11: Klimatické změny | D11: 3413649520 | E11: 79419733.98 | F11: =F$130/1000*$L123*F$285 -> 81008128.66 | G11: 82790307.49 | H11: 81962404.42 | I11: 81552592.4 | J11: 83020539.06 | K11: 86372323.85 | L11: 90212502.06 | M11: 94291648.6 | N11: 98627271.56 | O11: 97640717.36 | P11: 101084612.4 | Q11: 104627206.9 | R11: 108271071.3 | S11: 112018839.5
B12: Převedená osobní doprava | C12: Nehody | D12: 3194761936 | E12: =E$131/1000*$J114*E$285+E$132/1000*$L114*E$285 -> 0 | F12: =F$131/1000*$J114*F$285+F$132/1000*$L114*F$285 -> 0 | G12: 0 | H12: 0 | I12: 0 | J12: 0 | K12: -1047591.612 | L12: -1125786.228 | M12: -5344512.287 | N12: -5463620.186 | O12: -2505401.688 | P12: -1040472.345 | Q12: -453509.1888 | R12: 318258.9743 | S12: 1082244.762
C13: Hluk | D13: 583577843.7 | E13: =E$131/1000*$J115*E$285+E$132/1000*$L115*E$285 -> 0 | F13: =F$131/1000*$J115*F$285+F$132/1000*$L115*F$285 -> 0 | G13: 0 | H13: 0 | I13: 0 | J13: 0 | K13: -204183.3021 | L13: -220188.1346 | M13: -1082675.694 | N13: -1111072.958 | O13: -964120.91 | P13: -735814.0169 | Q13: -654495.0162 | R13: -541807.7047 | S13: -431244.4519
C14: Znečištění ovzduší | D14: 3276411305 | E14: 0 | F14: =F$131/1000*$J116*F$285+F$132/1000*$L116*F$285 -> 0 | G14: 0 | H14: 0 | I14: 0 | J14: 0 | K14: -1363561.671 | L14: -1482574.605 | M14: -7880983.139 | N14: -8152892.917 | O14: -13991926.37 | P14: -13375619.91 | Q14: -13357782.74 | R14: -13204308.14 | S14: -13074657.94
C15: Klimatické změny | D15: 2136476402 | E15: 0 | F15: =F$131/1000*$J117*F$285+F$132/1000*$L117*F$285 -> 0 | G15: 0 | H15: 0 | I15: 0 | J15: 0 | K15: -820975.8437 | L15: -889430.4785 | M15: -4573287.749 | N15: -4715291.41 | O15: -6431177.595 | P15: -5820423.887 | Q15: -5671094.918 | R15: -5420615.952 | S15: -5181937.62
B16: Převedená nákladní doprava | C16: Nehody | D16: 941460216.6 | E16: =E$133/1000*$J120*E$285+E$134/1000*$K120*E$285 -> 0 | F16: =F$133/1000*$J120*F$285+F$134/1000*$K120*F$285 -> 0 | G16: 0 | H16: 0 | I16: 0 | J16: 0 | K16: 0 | L16: 1258229.699 | M16: 2589436.721 | N16: 4000679.733 | O16: 5494266.834 | P16: 7005190.213 | Q16: 8574352.821 | R16: 10203479.86 | S16: 11894342.23
C17: Hluk | D17: 547004588.2 | E17: =E$133/1000*$J121*E$285+E$134/1000*$K121*E$285 -> 0 | F17: =F$133/1000*$J121*F$285+F$134/1000*$K121*F$285 -> 0 | G17: 0 | H17: 0 | I17: 0 | J17: 0 | K17: 0 | L17: 731053.109 | M17: 1504507.298 | N17: 2324463.776 | O17: 3192263.586 | P17: 4070136.072 | Q17: 4981846.552 | R17: 5928397.397 | S17: 6910817.537
C18: Znečištění ovzduší | D18: 3096030640 | E18: 0 | F18: =F$133/1000*$J122*F$285+F$134/1000*$K122*F$285 -> 0 | G18: 0 | H18: 0 | I18: 0 | J18: 0 | K18: 0 | L18: 4137740.11 | M18: 8515469.146 | N18: 13156399.83 | O18: 18068122.43 | P18: 23036856.1 | Q18: 28197111.87 | R18: 33554563.13 | S18: 39115033.59
C19: Klimatické změny | D19: 1735630314 | E19: 0 | F19: =F$133/1000*$J123*F$285+F$134/1000*$K123*F$285 -> 0 | G19: 0 | H19: 0 | I19: 0 | J19: 0 | K19: 0 | L19: 2319611.142 | M19: 4773759.729 | N19: 7375458.782 | O19: 10128963.39 | P19: 12914428.33 | Q19: 15807260.27 | R19: 18810639.72 | S19: 21927831.45
C20: Celkové externí náklady | D20: 1.561649977e+10 | E20: =SUM(E4:E11)-SUM(E12:E19) -> 653254779.6 | F20: =SUM(F4:F11)-SUM(F12:F19) -> 665042620.6 | G20: 659257424.3 | H20: 667965033.4 | I20: 666365687.5 | J20: 680132077.8 | K20: 719633567.4 | L20: 746839037 | M20: 787467092.5 | N20: 813726834.7 | O20: 812154894.4 | P20: 827070757.5 | Q20: 843870928.6 | R20: 860542480.7 | S20: 877586161.1
B22: 6.1. | C22: Externí náklady (CZK) | E22: =S2+1 -> 2024 | F22: =E22+1 -> 2025 | G22: 2026 | H22: 2027 | I22: 2028 | J22: 2029 | K22: 2030 | L22: 2031 | M22: 2032 | N22: 2033 | O22: 2034 | P22: 2035 | Q22: 2036 | R22: 2037 | S22: 2038
B23: b | C23: Scénář s projektem
B24: Železniční osobní doprava | C24: Nehody | E24: =E$138/1000*$M114*E$290 -> 29396158.53 | F24: =F$138/1000*$M114*F$290 -> 32684954.27 | G24: 34287146.09 | H24: 35185687.47 | I24: 36090485.84 | J24: 37014792.88 | K24: 37548251.34 | L24: 38064364.3 | M24: 38563294.08 | N24: 39044835.22 | O24: 39508662.96 | P24: 39954363.44 | Q24: 40402663.92 | R24: 40846085.34 | S24: 41276404.48
C25: Hluk | E25: =E$138/1000*$M115*E$290 -> 128783170.7 | F25: 143191228.2 | G25: 150210354.3 | H25: 154146821.3 | I25: 158110699.8 | J25: 162160045 | K25: 164497101.1 | L25: 166758167.4 | M25: 168943955 | N25: 171053563.8 | O25: 173085571.1 | P25: 175038163.6 | Q25: 177002146.7 | R25: 178944754.8 | S25: 180829962.5
C26: Znečištění ovzduší | E26: 161678871.9 | F26: 179767248.5 | G26: 188579303.5 | H26: 193521281.1 | I26: 198497672.1 | J26: 203581360.8 | K26: 206515382.4 | L26: 209354003.6 | M26: 212098117.4 | N26: 214746593.7 | O26: 217297646.3 | P26: 219748998.9 | Q26: 222214651.6 | R26: 224653469.4 | S26: 227020224.6
C27: Klimatické změny | E27: 174977134.1 | F27: 194553299.2 | G27: 204090155.3 | H27: 209438615.9 | I27: 214824320.4 | J27: 220326148.1 | K27: 223501496.1 | L27: 226573597 | M27: 229543417.2 | N27: 232409733.4 | O27: 235170612.9 | P27: 237823591.9 | Q27: 240492047.1 | R27: 243131460.4 | S27: 245692883.8
B28: Železniční nákladní doprava | C28: Nehody | E28: =E$139/1000*$L120*E$290 -> 282897656.7 | F28: =F$139/1000*$L120*F$290 -> 290388432.5 | G28: 298065680.4 | H28: 305933862.8 | I28: 313997546.2 | J28: 322261403.4 | K28: 327487762.7 | L28: 332786423.1 | M28: 338158308 | N28: 343604351.9 | O28: 349125500.8 | P28: 354722712.3 | Q28: 360396955.5 | R28: 366149211.3 | S28: 371980472.5
C29: Hluk | E29: =E$139/1000*$L121*E$290 -> 86121980.35 | F29: 88402382.6 | G29: 90739552.14 | H29: 93134847.52 | I29: 95589658.89 | J29: 98105408.77 | K29: 99696459.13 | L29: 101309520 | M29: 102944872.4 | N29: 104602800.9 | O29: 106283593.4 | P29: 107987541.6 | Q29: 109714940.3 | R29: 111466088.3 | S29: 113241287.7
C30: Znečištění ovzduší | E30: 98648813.85 | F30: 101260911 | G30: 103938032.5 | H30: 106681734.4 | I30: 109493609.3 | J30: 112375286.4 | K30: 114197762.3 | L30: 116045450.1 | M30: 117918672 | N30: 119817753.7 | O30: 121743025.2 | P30: 123694820.4 | Q30: 125673477.1 | R30: 127679337.5 | S30: 129712747.8
C31: Klimatické změny | E31: 115873209.9 | F31: 118941387.5 | G31: 122085942.9 | H31: 125308703.9 | I31: 128611541 | J31: 131996368.2 | K31: 134137054.1 | L31: 136307354.1 | M31: 138507646.4 | N31: 140738313.9 | O31: 142999743.9 | P31: 145292328.7 | Q31: 147616465.2 | R31: 149972555.2 | S31: 152361005.3
B32: Převedená osobní doprava | C32: Nehody | E32: =E$140/1000*$J114*E$290+E$141/1000*$L114*E$290 -> 135576801.8 | F32: =F$140/1000*$J114*F$290+F$141/1000*$L114*F$290 -> 180641764.9 | G32: 195786186.5 | H32: 201291264.4 | I32: 208969824 | J32: 215109649.8 | K32: 218689615.3 | L32: 221940365 | M32: 224955659.5 | N32: 227827302.9 | O32: 230561126.2 | P32: 233190310.5 | Q32: 235976039.3 | R32: 238636881.1 | S32: 241189534.8
C33: Hluk | E33: =E$140/1000*$J115*E$290+E$141/1000*$L115*E$290 -> 24420543.86 | F33: =F$140/1000*$J115*F$290+F$141/1000*$L115*F$290 -> 33019694.39 | G33: 35999624.55 | H33: 37017558.32 | I33: 38405726.12 | J33: 39545256.61 | K33: 40208993.02 | L33: 40812183.17 | M33: 41370217.13 | N33: 41898184.48 | O33: 42396806.29 | P33: 42871313.23 | Q33: 43375705.86 | R33: 43860677.39 | S33: 44320961.48
C34: Znečištění ovzduší | E34: 131263701.2 | F34: =F$140/1000*$J116*F$290+F$141/1000*$L116*F$290 -> 185763445.3 | G34: 206111013.7 | H34: 212035032 | I34: 219583888.1 | J34: 226286284 | K34: 230178643.3 | L34: 233724140.3 | M34: 236979758.7 | N34: 240001759.6 | O34: 242788363 | P34: 245354869.1 | Q34: 248111017.9 | R34: 250815580.8 | S34: 253298115
C35: Klimatické změny | E35: 87427742.91 | F35: =F$140/1000*$J117*F$290+F$141/1000*$L117*F$290 -> 121013255.7 | G35: 133146151.2 | H35: 136943482.9 | I35: 141942763.6 | J35: 146217624.3 | K35: 148703673.8 | L35: 150965718.3 | M35: 153050150.1 | N35: 155002587.6 | O35: 156823699.3 | P35: 158527877.3 | Q35: 160348857.9 | R35: 162118168.7 | S35: 163768883.5
B36: Převedená nákladní doprava | C36: Nehody | E36: =E$142/1000*$J120*E$290+E$143/1000*$K120*E$290 -> 45288228.53 | F36: =F$142/1000*$J120*F$290+F$143/1000*$K120*F$290 -> 47300861.97 | G36: 49375885.45 | H36: 51514989.53 | I36: 53719907.42 | J36: 55992416.02 | K36: 57762431.75 | L36: 59562248.54 | M36: 61392285.43 | N36: 63252966.83 | O36: 65144722.63 | P36: 67067988.25 | Q36: 69023204.71 | R36: 71010818.71 | S36: 73031282.66
C37: Hluk | E37: =E$142/1000*$J121*E$290+E$143/1000*$K121*E$290 -> 26313240.18 | F37: =F$142/1000*$J121*F$290+F$143/1000*$K121*F$290 -> 27482614.84 | G37: 28688239.2 | H37: 29931095.48 | I37: 31212190.72 | J37: 32532557.33 | K37: 33560966.92 | L37: 34606691.46 | M37: 35669974.38 | N37: 36751062.3 | O37: 37850204.98 | P37: 38967655.4 | Q37: 40103669.81 | R37: 41258507.75 | S37: 42432432.08
C38: Znečištění ovzduší | E38: 148932202 | F38: =F$142/1000*$J122*F$290+F$143/1000*$K122*F$290 -> 155550829.8 | G38: 162374629.9 | H38: 169409161.6 | I38: 176660124.8 | J38: 184133362.8 | K38: 189954132.3 | L38: 195872903.8 | M38: 201891055.4 | N38: 208009982.7 | O38: 214231099.4 | P38: 220555837.5 | Q38: 226985647.3 | R38: 233521997.6 | S38: 240166376.4
C39: Klimatické změny | E39: 83491177.77 | F39: =F$142/1000*$J123*F$290+F$143/1000*$K123*F$290 -> 87201570.99 | G39: 91026983.47 | H39: 94970531.82 | I39: 99035411.31 | J39: 103224897.8 | K39: 106488012.8 | L39: 109806067.6 | M39: 113179834.6 | N39: 116610096.5 | O39: 120097645.6 | P39: 123643284.6 | Q39: 127247826.7 | R39: 130912095.3 | S39: 134636924.4
C40: Celkové externí náklady | E40: =SUM(E24:E31)-SUM(E32:E39) -> 395663357.8 | F40: 311215805.9 | G40: 289487453.1 | H40: 290238438.3 | I40: 285685697.7 | J40: 284778764.8 | K40: 282034800 | L40: 279908561.6 | M40: 278189347.2 | N40: 276664003.6 | O40: 275320689.1 | P40: 274083384.9 | Q40: 272341378 | R40: 270708234.8 | S40: 269270478.4
B43: 6.2. | C43: Externí náklady (CZK) | E43: =E2 -> 2009 | F43: =E43+1 -> 2010 | G43: 2011 | H43: 2012 | I43: 2013 | J43: 2014 | K43: 2015 | L43: 2016 | M43: 2017 | N43: 2018 | O43: 2019 | P43: 2020 | Q43: 2021 | R43: 2022 | S43: 2023
B44: a | C44: Scénář bez projektu | D44: Celkem
B45: Železniční osobní doprava | C45: Nehody | D45: =SUM(E45:S45,E57:S57) -> 665165039.3 | E45: =E$148/1000*$M114*E$285 -> 15047176.47 | F45: =F$148/1000*$M114*F$285 -> 15272243.49 | G45: 14395393.21 | H45: 15160361.06 | I45: 15187954.06 | J45: 15566593.15 | K45: 16773436.3 | L45: 17731611.77 | M45: 18868364.87 | N45: 19673902.49 | O45: 20479081.68 | P45: 21078579.9 | Q45: 21690142.18 | R45: 22307914.61 | S45: 22939721.26
C46: Hluk | D46: =SUM(E46:S46,E58:S58) -> 2914056362 | E46: =E$148/1000*$M115*E$285 -> 65920963.6 | F46: 66906971.49 | G46: 63065532.15 | H46: 66416819.88 | I46: 66537703.52 | J46: 68196503.34 | K46: 73483625.71 | L46: 77681346.78 | M46: 82661407.99 | N46: 86190429.94 | O46: 89717881.65 | P46: 92344254.81 | Q46: 95023480.01 | R46: 97729911.64 | S46: 100497826.5
C47: Znečištění ovzduší | D47: 3658407716 | E47: 82759470.6 | F47: 83997339.21 | G47: 79174662.65 | H47: 83381985.83 | I47: 83533747.35 | J47: 85616262.34 | K47: 92253899.67 | L47: 97523864.71 | M47: 103776006.8 | N47: 108206463.7 | O47: 112634949.2 | P47: 115932189.5 | Q47: 119295782 | R47: 122693530.4 | S47: 126168466.9
C48: Klimatické změny | D48: 3959315710 | E48: 89566526.62 | F48: 90906211.27 | G48: 85686864.34 | H48: 90240244.41 | I48: 90404488.48 | J48: 92658292.58 | K48: 99841882.76 | L48: 105545308.1 | M48: 112311695.6 | N48: 117106562.4 | O48: 121899295.7 | P48: 125467737.5 | Q48: 129107989.1 | R48: 132785206 | S48: 136545959.9
B49: Železniční nákladní doprava | C49: Nehody | D49: 7508290610 | E49: =E$149/1000*$L120*E$285 -> 193898629.8 | F49: =F$149/1000*$L120*F$285 -> 197776602.4 | G49: 202127687.7 | H49: 200106410.8 | I49: 199105878.7 | J49: 202689784.5 | K49: 212216204.4 | L49: 219996983.3 | M49: 228268943.9 | N49: 237065821.9 | O49: 246185070.4 | P49: 253156191.2 | Q49: 260307682.8 | R49: 267643971.5 | S49: 275169588.8
C50: Hluk | D50: 2285734226 | E50: =E$149/1000*$L121*E$285 -> 59028180.66 | F50: 60208744.28 | G50: 61533336.65 | H50: 60918003.28 | I50: 60613413.27 | J50: 61704454.71 | K50: 64604564.08 | L50: 66973251.37 | M50: 69491468.18 | N50: 72169484.52 | O50: 74945639.52 | P50: 77067844.18 | Q50: 79244958.78 | R50: 81478330.82 | S50: 83769339.76
C51: Znečištění ovzduší | D51: 2618204659 | E51: 67614097.85 | F51: 68966379.81 | G51: 70483640.16 | H51: 69778803.76 | I51: 69429909.74 | J51: 70679648.12 | K51: 74001591.58 | L51: 76714815.2 | M51: 79599318.09 | N51: 82666864.08 | O51: 85846823.45 | P51: 88277712.43 | Q51: 90771498.24 | R51: 93329724.39 | S51: 95953971
C52: Klimatické změny | D52: 3075351505 | E52: 79419733.98 | F52: 81008128.66 | G52: 82790307.49 | H52: 81962404.42 | I52: 81552592.4 | J52: 83020539.06 | K52: 86922504.39 | L52: 90109465.47 | M52: 93497611.73 | N52: 97100760.99 | O52: 100835951.4 | P52: 103691281.3 | Q52: 106620490 | R52: 109625390.6 | S52: 112707838.9
C53: Celkové externí náklady | D53: 2.668452583e+10 | E53: =SUM(E45:E52) -> 653254779.6 | F53: =SUM(F45:F52) -> 665042620.6 | G53: =SUM(G45:G52) -> 659257424.3 | H53: 667965033.4 | I53: 666365687.5 | J53: 680132077.8 | K53: 720097708.9 | L53: 752276646.7 | M53: 788474817.2 | N53: 820180290 | O53: 852544693 | P53: 877015790.8 | Q53: 902062023.1 | R53: 927593980 | S53: =SUM(S45:S52) -> 953752713.1
B55: 6.2. | C55: Externí náklady (CZK) | E55: =S43+1 -> 2024 | F55: =E55+1 -> 2025 | G55: 2026 | H55: 2027 | I55: 2028 | J55: 2029 | K55: 2030 | L55: 2031 | M55: 2032 | N55: 2033 | O55: 2034 | P55: 2035 | Q55: 2036 | R55: 2037 | S55: 2038
B56: b | C56: Scénář bez projektu | E56: =S44+1 -> 1
B57: Železniční osobní doprava | C57: Nehody | E57: =E$153/1000*$M114*E$290 -> 22858834.12 | F57: =F$153/1000*$M114*F$290 -> 23458079.85 | G57: 24059559.88 | H57: 24664375.32 | I57: 25193675.65 | J57: 25785915.13 | K57: 26126501.49 | L57: 26466942.88 | M57: 26804499.93 | N57: 27136105.32 | O57: 27461505.71 | P57: 27779487.81 | Q57: 28090722.6 | R57: 28399791.9 | S57: 28706565.17
C58: Hluk | E58: =E$153/1000*$M115*E$290 -> 100143463.7 | F58: 102768730.8 | G58: 105403786.1 | H58: 108053453.8 | I58: 110372293.3 | J58: 112966866.3 | K58: 114458958.9 | L58: 115950416.4 | M58: 117429237.8 | N58: 118881985.2 | O58: 120307548.8 | P58: 121700613.3 | Q58: 123064118 | R58: 124418136 | S58: 125762095.1
C59: Znečištění ovzduší | E59: 125723587.6 | F59: 129019439.2 | G59: 132327579.3 | H59: 135654064.2 | I59: 138565216.1 | J59: 141822533.2 | K59: 143695758.2 | L59: 145568185.8 | M59: 147424749.6 | N59: 149248579.3 | O59: 151038281.4 | P59: 152787183 | Q59: 154498974.3 | R59: 156198855.5 | S59: 157886108.5
C60: Klimatické změny | E60: 136064488.8 | F60: 139631427.7 | G60: 143211665.9 | H60: 146811757.8 | I60: 149962355.1 | J60: 153487590.1 | K60: 155514889.8 | L60: 157541326.6 | M60: 159550594.8 | N60: 161524436.4 | O60: 163461343.5 | P60: 165354094.1 | Q60: 167206682.1 | R60: 169046380.4 | S60: 170872411.8
B61: Železniční nákladní doprava | C61: Nehody | E61: =E$154/1000*$L120*E$290 -> 241796202.9 | F61: =F$154/1000*$L120*F$290 -> 247147089.4 | G61: 252615293 | H61: 258203365.8 | I61: 263913915.5 | J61: 269749605.8 | K61: 273010087.9 | L61: 276308804.8 | M61: 279646195 | N61: 283022702.1 | O61: 286438774.7 | P61: 289894866.5 | Q61: 293391436.2 | R61: 296928947.9 | S61: 300507870.7
C62: Hluk | E62: =E$154/1000*$L121*E$290 -> 73609545.15 | F62: 75238505.08 | G62: 76903179.6 | H62: 78604345.69 | I62: 80342797.15 | J62: 82119344.93 | K62: 83111927.14 | L62: 84116149.06 | M62: 85132144.22 | N62: 86160047.67 | O62: 87199995.98 | P62: 88252127.25 | Q62: 89316581.14 | R62: 90393498.9 | S62: 91483023.35
C63: Znečištění ovzduší | E63: 84316388.08 | F63: 86182287.64 | G63: 88089096.63 | H63: 90037705.06 | I63: 92029022.19 | J63: 94063976.92 | K63: 95200934.72 | L63: 96351225.28 | M63: 97515001.56 | N63: 98692418.24 | O63: 99883631.76 | P63: 101088800.3 | Q63: 102308083.9 | R63: 103541644.2 | S63: 104789644.9
C64: Klimatické změny | E64: 99038297.11 | F64: 101229988.7 | G64: 103469732.5 | H64: 105758574.2 | I64: 108097581.6 | J64: 110487845.9 | K64: 111823320.2 | L64: 113174455.1 | M64: 114541430.4 | N64: 115924427.8 | O64: 117323631 | P64: 118739225.7 | Q64: 120171400.1 | R64: 121620344 | S64: 123086249.6
C65: Celkové externí náklady | E65: =SUM(E57:E64) -> 883550807.5 | F65: =SUM(F57:F64) -> 904675548.2 | G65: =SUM(G57:G64) -> 926079893 | H65: 947787641.9 | I65: 968476856.6 | J65: 990483678.2 | K65: 1002942378 | L65: 1015477506 | M65: 1028043853 | N65: 1040590702 | O65: 1053114713 | P65: 1065596398 | Q65: 1078047998 | R65: 1090547599 | S65: =SUM(S57:S64) -> 1103093969
B68: 6.3. | C68: Celkem externí efekty - úspory (CZK) | E68: =E2 -> 2009 | F68: =E68+1 -> 2010 | G68: 2011 | H68: 2012 | I68: 2013 | J68: 2014 | K68: 2015 | L68: 2016 | M68: 2017 | N68: 2018 | O68: 2019 | P68: 2020 | Q68: 2021 | R68: 2022 | S68: 2023
B69: a | D69: Celkem
B70: Osobní | C70: Nehody | D70: =SUM(E70:S70,E82:S82) -> 3032010677 | E70: =E45-(E4-E12) -> 0 | F70: =F45-(F4-F12) -> 0 | G70: 0 | H70: 0 | I70: 0 | J70: 0 | K70: -980479.2426 | L70: -1052844.581 | M70: -4958087.99 | N70: -5064002.788 | O70: -1833669.287 | P70: -401058.0366 | Q70: 183866.6053 | R70: 946921.8381 | S70: 1703292.063
C71: Hluk | D71: =SUM(E71:S71,E83:S83) -> -129427672 | E71: 0 | F71: =F46-(F5-F13) -> 0 | G71: 0 | H71: 0 | I71: 0 | J71: 0 | K71: 89832.79175 | L71: 99365.74701 | M71: 610230.7497 | N71: 639631.8325 | O71: 1978706.75 | P71: 2065429.621 | Q71: 2137817.986 | R71: 2212334.365 | S71: 2289534.2
C72: Znečištění ovzduší | D72: 2381279380 | E72: 0 | F72: =F47-(F6-F14) -> 0 | G72: 0 | H72: 0 | I72: 0 | J72: 0 | K72: -994443.6398 | L72: -1081395.547 | M72: -5755649.505 | N72: -5954997.229 | O72: -10297398.17 | P72: -9858841.212 | Q72: -9852215.872 | R72: -9746662.388 | S72: -9658897.788
C73: Klimatické změny | D73: 1167718907 | E73: 0 | F73: =F48-(F7-F15) -> 0 | G73: 0 | H73: 0 | I73: 0 | J73: 0 | K73: -421497.4552 | L73: -455254.0089 | M73: -2273143.123 | N73: -2336616.423 | O73: -2432770.448 | P73: -2014386.337 | Q73: -1877191.382 | R73: -1678575.096 | S73: -1485227.496
B74: Nákladní | C74: Nehody | D74: 115525422.7 | E74: 0 | F74: =F49-(F8-F16) -> 0 | G74: 0 | H74: 0 | I74: 0 | J74: 0 | K74: 1343233.582 | L74: 1006671.915 | M74: 650842.1998 | N74: 273793.5688 | O74: 13295243.52 | P74: 13369219.7 | Q74: 13440836.82 | R74: 13509970.94 | S74: 13576494.09
C75: Hluk | D75: 295566874.2 | E75: 0 | F75: =F50-(F9-F17) -> 0 | G75: 0 | H75: 0 | I75: 0 | J75: 0 | K75: 408917.9724 | L75: 654471.8649 | M75: 914344.7598 | N75: 1189895.11 | O75: 5567099.662 | P75: 6007525.121 | Q75: 6463340.758 | R75: 6934986.011 | S75: 7422911.738
C76: Znečištění ovzduší | D76: 2808020167 | E76: =E51-(E10-E18) -> 0 | F76: 0 | G76: 0 | H76: 0 | I76: 0 | J76: 0 | K76: 468396.9502 | L76: 4050019.776 | M76: 7839464.784 | N76: 11856802.99 | O76: 20788389.21 | P76: 25256047.2 | Q76: 29894096.14 | R76: 34707564.63 | S76: 39701614.22
C77: Klimatické změny | D77: 1397332299 | E77: =E52-(E11-E19) -> 0 | F77: 0 | G77: 0 | H77: 0 | I77: 0 | J77: 0 | K77: 550180.5446 | L77: 2216574.559 | M77: 3979722.859 | N77: 5848948.213 | O77: 13324197.39 | P77: 15521097.23 | Q77: 17800543.39 | R77: 20164958.95 | S77: 22616830.92
C78: Celkem externí efekty - úspory | D78: 1.106802606e+10 | E78: =E53-E20 -> 0 | F78: =F53-F20 -> 0 | G78: 0 | H78: 0 | I78: 0 | J78: 0 | K78: 464141.5033 | L78: 5437609.724 | M78: 1007724.734 | N78: 6453455.278 | O78: 40389798.63 | P78: 49945033.28 | Q78: 58191094.45 | R78: 67051499.25 | S78: 76166551.95
B80: 6.3. | C80: Celkem externí efekty - úspory (CZK) | E80: =S68+1 -> 2024 | F80: =E80+1 -> 2025 | G80: 2026 | H80: 2027 | I80: 2028 | J80: 2029 | K80: 2030 | L80: 2031 | M80: 2032 | N80: 2033 | O80: 2034 | P80: 2035 | Q80: 2036 | R80: 2037 | S80: 2038
B81: b | E81: =S69+1 -> 1
B82: Osobní | C82: Nehody | E82: =E57-(E24-E32) -> 129039477.4 | F82: =F57-(F24-F32) -> 171414890.5 | G82: 185558600.3 | H82: 190769952.3 | I82: 198073013.8 | J82: 203880772.1 | K82: 207267865.5 | L82: 210342943.5 | M82: 213196865.4 | N82: 215918573 | O82: 218513968.9 | P82: 221015434.8 | Q82: 223664098 | R82: 226190587.7 | S82: 228619695.5
C83: Hluk | E83: -4219163.116 | F83: =F58-(F25-F33) -> -7402803.099 | G83: -8806943.638 | H83: -9075809.21 | I83: -9332680.401 | J83: -9647922.094 | K83: -9829149.155 | L83: -9995567.823 | M83: -10144500.12 | N83: -10273394.11 | O83: -10381215.96 | P83: -10466237.12 | Q83: -10562322.79 | R83: -10665941.48 | S83: -10746905.96
C84: Znečištění ovzduší | E84: 95308416.93 | F84: =F59-(F26-F34) -> 135015635.9 | G84: 149859289.5 | H84: 154167815.1 | I84: 159651432 | J84: 164527456.4 | K84: 167359019.2 | L84: 169938322.5 | M84: 172306390.8 | N84: 174503745.2 | O84: 176528998.2 | P84: 178393053.2 | Q84: 180395340.6 | R84: 182360966.9 | S84: 184163998.8
C85: Klimatické změny | E85: 48515097.56 | F85: =F60-(F27-F35) -> 66091384.15 | G85: 72267661.83 | H85: 74316624.82 | I85: 77080798.17 | J85: 79379066.29 | K85: 80717067.53 | L85: 81933447.89 | M85: 83057327.73 | N85: 84117290.57 | O85: 85114429.98 | P85: 86058379.54 | Q85: 87063492.93 | R85: 88033088.71 | S85: 88948411.42
B86: Nákladní | C86: Nehody | E86: 4186774.727 | F86: =F61-(F28-F36) -> 4059518.864 | G86: 3925498.055 | H86: 3784492.607 | I86: 3636276.742 | J86: 3480618.445 | K86: 3284756.959 | L86: 3084630.182 | M86: 2880172.394 | N86: 2671316.986 | O86: 2457996.454 | P86: 2240142.379 | Q86: 2017685.423 | R86: 1790555.313 | S86: 1558680.833
C87: Hluk | E87: 13800804.98 | F87: =F62-(F29-F37) -> 14318737.33 | G87: 14851866.65 | H87: 15400593.65 | I87: 15965328.98 | J87: 16546493.49 | K87: 16976434.93 | L87: 17413320.55 | M87: 17857246.25 | N87: 18308309.12 | O87: 18766607.52 | P87: 19232241.07 | Q87: 19705310.62 | R87: 20185918.34 | S87: 20674167.68
C88: Znečištění ovzduší | E88: =E63-(E30-E38) -> 134599776.2 | F88: 140472206.5 | G88: 146525694.1 | H88: 152765132.2 | I88: 159195537.7 | J88: 165822053.3 | K88: 170957304.7 | L88: 176178679 | M88: 181487385 | N88: 186884647.2 | O88: 192371706 | P88: 197949817.5 | Q88: 203620254 | R88: 209384304.3 | S88: 215243273.6
C89: Klimatické změny | E89: =E64-(E31-E39) -> 66656264.96 | F89: 69490172.16 | G89: 72410773.13 | H89: 75420402.08 | I89: 78521451.88 | J89: 81716375.51 | K89: 84174278.8 | L89: 86673168.52 | M89: 89213618.61 | N89: 91796210.38 | O89: 94421532.62 | P89: 97090181.69 | Q89: 99802761.59 | R89: 102559884.1 | S89: 105362168.7
C90: Celkem externí efekty - úspory | E90: =E65-E40 -> 487887449.7 | F90: =F65-F40 -> 593459742.3 | G90: 636592439.9 | H90: 657549203.6 | I90: 682791158.9 | J90: 705704913.4 | K90: 720907578.5 | L90: 735568944.4 | M90: 749854506.1 | N90: 763926698.4 | O90: 777794023.7 | P90: 791513013.1 | Q90: 805706620.4 | R90: 819839363.8 | S90: 833823490.5
C93: Externí náklady - scénář s projektem (CZK) | D93: =D20 -> 1.561649977e+10
C94: Externí náklady - scénář bez projektu (CZK) | D94: =D53 -> 2.668452583e+10
C95: Celkem externí efekty - úspory (CZK) | D95: =D78 -> 1.106802606e+10
B98: 6.4. a | C98: Osobní doprava [EUR/1000 oskm] - výchozí hodnoty
D99: Automobil | E99: Motocykl | F99: Autobus | G99: Železnice
C100: Nehody | D100: 36 | E100: 250 | F100: 3.1 | G100: 0.9
C101: Hluk | D101: 5.7 | E101: 17 | F101: 1.3 | G101: 3.9
C102: Znečištění ovzduší | D102: 17.3 | E102: 7.9 | F102: 19.6 | G102: 4.9
C103: Klimatické změny | D103: 15.9 | E103: 13.8 | F103: 8.9 | G103: 5.3
C104: Nákladní doprava [EUR/1000 čistých tkm] - výchozí hodnoty
D105: Lehká užitková vozidla | E105: Těžká užitková vozidla | F105: Železnice | G105: Vodní
C106: Nehody | D106: 100 | E106: 6.8 | F106: 11.5
C107: Hluk | D107: 35.7 | E107: 5.1 | F107: 3.5
C108: Znečištění ovzduší | D108: 131 | E108: 32.4 | F108: 4 | G108: 9.7
C109: Klimatické změny | D109: 134 | E109: 15.1 | F109: 4.7 | G109: 4.2
B111: 6.4. b | C111: Metodika hodnocení efektivnosti investic - železniční infrastruktura | I111: CÚ | J111: ='0 Úvod'!D19 -> 2016
C112: Osobní doprava [CZK/1000 oskm] CÚ 2012 | I112: Osobní doprava [CZK/1000 oskm]
D113: Automobil | E113: Motocykl | F113: Autobus | G113: Železnice | J113: Automobil | K113: Motocykl | L113: Autobus | M113: Železnice
C114: Nehody | D114: 1697 | E114: 11787 | F114: 146 | G114: 42 | I114: Nehody | J114: 1695.858274 | K114: 11779.06982 | L114: 145.9017726 | M114: 41.9717428
C115: Hluk | D115: 269 | E115: 801 | F115: 61 | G115: 184 | I115: Hluk | J115: 268.8190193 | K115: 800.4610948 | L115: 60.95895978 | M115: 183.8762065
C116: Znečištění ovzduší | D116: 816 | E116: 372 | F116: 924 | G116: 231 | I116: Znečištění ovzduší | J116: 815.4510029 | K116: 371.7497219 | L116: 923.3783416 | M116: 230.8445854
C117: Klimatické změny | D117: 750 | E117: 654 | F117: 420 | G117: 250 | I117: Klimatické změny | J117: 749.4954071 | K117: 653.559995 | L117: 419.717428 | M117: 249.8318024
C118: Nákladní doprava [CZK/1000 čistých tkm] CÚ 2012 | I118: Nákladní doprava [CZK/1000 čistých tkm]
D119: Lehká užitková vozidla | E119: Těžká užitková vozidla | F119: Železnice | G119: Vodní | J119: Lehká užitková vozidla | K119: Těžká užitková vozidla | L119: Železnice | M119: Vodní
C120: Nehody | D120: 4715 | E120: 321 | F120: 542 | I120: Nehody | J120: 4711.827793 | K120: 320.7840342 | L120: 541.6353475 | M120: 0
C121: Hluk | D121: 1683 | E121: 240 | F121: 165 | I121: Hluk | J121: 1681.867694 | K121: 239.8385303 | L121: 164.8889896 | M121: 0
C122: Znečištění ovzduší | D122: 6176 | E122: 1528 | F122: 189 | G122: 457 | I122: Znečištění ovzduší | J122: 6171.844846 | K122: 1526.971976 | L122: 188.8728426 | M122: 456.6925347
C123: Klimatické změny | D123: 6318 | E123: 712 | F123: 222 | G123: 198 | I123: Klimatické změny | J123: 6313.749309 | K123: 711.5209731 | L123: 221.8506405 | M123: 197.8667875
C124: Zdroj: "INFRAS-IWW" 2004
B127: 6.5. | C127: Celkové oskm / č.tkm | E127: =E2 -> 2009 | F127: =E127+1 -> 2010 | G127: 2011 | H127: 2012 | I127: 2013 | J127: 2014 | K127: 2015 | L127: 2016 | M127: 2017 | N127: 2018 | O127: 2019 | P127: 2020 | Q127: 2021 | R127: 2022 | S127: 2023
B128: a | C128: Scénář s projektem | D128: Celkem
C129: Železniční osobní doprava | D129: =SUM(E129:S129,E138:S138) -> 1.43577467e+10 | E129: 358507306.8 | F129: 356734954 | G129: 329014820.9 | H129: 349998577.8 | I129: 352397589.6 | J129: 354796601.5 | K129: 363680564.7 | L129: 373941851 | M129: 380345493.2 | N129: 385098439.6 | O129: 384222342.7 | P129: 388704211.6 | Q129: 392522976.5 | R129: 396278060.8 | S129: 399966812.2
C130: Železniční nákladní doprava | D130: =SUM(E130:S130,E139:S139) -> 1.148447108e+10 | E130: 357987400 | F130: 357987400 | G130: 357987400 | H130: 357987400 | I130: 357987400 | J130: 357987400 | K130: 355721500 | L130: 361417455.6 | M130: 367113411.1 | N130: 372809366.7 | O130: 358330300 | P130: 363695100 | Q130: 369059900 | R130: 374424700 | S130: 379789500
C131: Převedená osobní doprava - IAD | D131: 1123268159 | E131: ='4 Úspory v silniční dopravě'!E70 -> 0 | F131: ='4 Úspory v silniční dopravě'!F70 -> 0 | G131: ='4 Úspory v silniční dopravě'!G70 -> 0 | H131: ='4 Úspory v silniční dopravě'!H70 -> 0 | I131: ='4 Úspory v silniční dopravě'!I70 -> 0 | J131: ='4 Úspory v silniční dopravě'!J70 -> 0 | K131: ='4 Úspory v silniční dopravě'!K70 -> -485198.3407 | L131: ='4 Úspory v silniční dopravě'!L70 -> -505668.1902 | M131: ='4 Úspory v silniční dopravě'!M70 -> -2259540.977 | N131: ='4 Úspory v silniční dopravě'!N70 -> -2234477.758 | O131: ='4 Úspory v silniční dopravě'!O70 -> -153041.6503 | P131: ='4 Úspory v silniční dopravě'!P70 -> 546559.6605 | Q131: ='4 Úspory v silniční dopravě'!Q70 -> 827559.7258 | R131: ='4 Úspory v silniční dopravě'!R70 -> 1177317.447 | S131: ='4 Úspory v silniční dopravě'!S70 -> 1511112.414
C132: Převedená osobní doprava - BUS | D132: 1327854574 | E132: ='4 Úspory v silniční dopravě'!E71 -> 0 | F132: ='4 Úspory v silniční dopravě'!F71 -> 0 | G132: ='4 Úspory v silniční dopravě'!G71 -> 0 | H132: ='4 Úspory v silniční dopravě'!H71 -> 0 | I132: ='4 Úspory v silniční dopravě'!I71 -> 0 | J132: ='4 Úspory v silniční dopravě'!J71 -> 0 | K132: ='4 Úspory v silniční dopravě'!K71 -> -920759.6489 | L132: ='4 Úspory v silniční dopravě'!L71 -> -980488.4014 | M132: ='4 Úspory v silniční dopravě'!M71 -> -5376613.771 | N132: ='4 Úspory v silniční dopravě'!N71 -> -5430969.923 | O132: ='4 Úspory v silniční dopravě'!O71 -> -12201889.55 | P132: ='4 Úspory v silniční dopravě'!P71 -> -12045058.29 | Q132: ='4 Úspory v silniční dopravě'!Q71 -> -12051384.04 | R132: ='4 Úspory v silniční dopravě'!R71 -> -12010771.95 | S132: ='4 Úspory v silniční dopravě'!S71 -> -11984822.78
C133: Převedená nákladní doprava - LUV | D133: 56595296.55 | E133: ='4 Úspory v silniční dopravě'!E83 -> 0 | F133: ='4 Úspory v silniční dopravě'!F83 -> 0 | G133: ='4 Úspory v silniční dopravě'!G83 -> 0 | H133: ='4 Úspory v silniční dopravě'!H83 -> 0 | I133: ='4 Úspory v silniční dopravě'!I83 -> 0 | J133: ='4 Úspory v silniční dopravě'!J83 -> 0 | K133: ='4 Úspory v silniční dopravě'!K83 -> 0 | L133: ='4 Úspory v silniční dopravě'!L83 -> 101229.3333 | M133: ='4 Úspory v silniční dopravě'!M83 -> 202458.6667 | N133: ='4 Úspory v silniční dopravě'!N83 -> 303688 | O133: ='4 Úspory v silniční dopravě'!O83 -> 404917.3333 | P133: ='4 Úspory v silniční dopravě'!P83 -> 506146.6667 | Q133: ='4 Úspory v silniční dopravě'!Q83 -> 607376 | R133: ='4 Úspory v silniční dopravě'!R83 -> 708605.3333 | S133: ='4 Úspory v silniční dopravě'!S83 -> 809834.6667
C134: Převedená nákladní doprava - TUV | D134: 1117757107 | E134: ='4 Úspory v silniční dopravě'!E84 -> 0 | F134: ='4 Úspory v silniční dopravě'!F84 -> 0 | G134: ='4 Úspory v silniční dopravě'!G84 -> 0 | H134: ='4 Úspory v silniční dopravě'!H84 -> 0 | I134: ='4 Úspory v silniční dopravě'!I84 -> 0 | J134: ='4 Úspory v silniční dopravě'!J84 -> 0 | K134: ='4 Úspory v silniční dopravě'!K84 -> 0 | L134: ='4 Úspory v silniční dopravě'!L84 -> 1999279.333 | M134: ='4 Úspory v silniční dopravě'!M84 -> 3998558.667 | N134: ='4 Úspory v silniční dopravě'!N84 -> 5997838 | O134: ='4 Úspory v silniční dopravě'!O84 -> 7997117.333 | P134: ='4 Úspory v silniční dopravě'!P84 -> 9996396.667 | Q134: ='4 Úspory v silniční dopravě'!Q84 -> 11995676 | R134: ='4 Úspory v silniční dopravě'!R84 -> 13994955.33 | S134: ='4 Úspory v silniční dopravě'!S84 -> 15994234.67
B136: =B127 -> 6.5. | C136: =C127 -> Celkové oskm / č.tkm | E136: =S127+1 -> 2024 | F136: =E136+1 -> 2025 | G136: 2026 | H136: 2027 | I136: 2028 | J136: 2029 | K136: 2030 | L136: 2031 | M136: 2032 | N136: 2033 | O136: 2034 | P136: 2035 | Q136: 2036 | R136: 2037 | S136: 2038
B137: b | C137: Scénář s projektem
C138: =C129 -> Železniční osobní doprava | E138: 516471044 | F138: 562993144.9 | G138: 579010435.8 | H138: 582533522.7 | I138: 585797398 | J138: 589019756.3 | K138: 591592801.1 | L138: 593786571.4 | M138: 595613511.4 | N138: 597080155.5 | O138: 598191175.3 | P138: 598949919.9 | Q138: 599673589.9 | R138: 600252514.8 | S138: 600570552.3
C139: Železniční nákladní doprava | E139: 385154300 | F139: 387600690 | G139: 390047080 | H139: 392493470 | I139: 394939860 | J139: 397386250 | K139: 399832640 | L139: 402279030 | M139: 404725420 | N139: 407171810 | O139: 409618200 | P139: 412064590 | Q139: 414510980 | R139: 416957370 | S139: 419403760
C140: Převedená osobní doprava - IAD | E140: ='4 Úspory v silniční dopravě'!E76 -> 54040418.4 | F140: ='4 Úspory v silniční dopravě'!F76 -> 69799024.38 | G140: ='4 Úspory v silniční dopravě'!G76 -> 73826222.23 | H140: ='4 Úspory v silniční dopravě'!H76 -> 74404765.24 | I140: ='4 Úspory v silniční dopravě'!I76 -> 75765541.28 | J140: ='4 Úspory v silniční dopravě'!J76 -> 76445506.15 | K140: ='4 Úspory v silniční dopravě'!K76 -> 76939841.41 | L140: ='4 Úspory v silniční dopravě'!L76 -> 77302238.44 | M140: ='4 Úspory v silniční dopravě'!M76 -> 77571459.77 | N140: ='4 Úspory v silniční dopravě'!N76 -> 77784052.92 | O140: ='4 Úspory v silniční dopravě'!O76 -> 77944024.5 | P140: ='4 Úspory v silniční dopravě'!P76 -> 78065152.05 | Q140: ='4 Úspory v silniční dopravě'!Q76 -> 78226561.66 | R140: ='4 Úspory v silniční dopravě'!R76 -> 78331173.58 | S140: ='4 Úspory v silniční dopravě'!S76 -> 78397555.06
C141: Převedená osobní doprava - BUS | E141: ='4 Úspory v silniční dopravě'!E77 -> 57104009.08 | F141: ='4 Úspory v silniční dopravě'!F77 -> 83802295.6 | G141: ='4 Úspory v silniční dopravě'!G77 -> 93012686.06 | H141: ='4 Úspory v silniční dopravě'!H77 -> 93857698.17 | I141: ='4 Úspory v silniční dopravě'!I77 -> 95096693.76 | J141: ='4 Úspory v silniční dopravě'!J77 -> 96167599.33 | K141: ='4 Úspory v silniční dopravě'!K77 -> 96898024.84 | L141: ='4 Úspory v silniční dopravě'!L77 -> 97459863.75 | M141: ='4 Úspory v silniční dopravě'!M77 -> 97866855.93 | N141: ='4 Úspory v silniční dopravě'!N77 -> 98132456.89 | O141: ='4 Úspory v silniční dopravě'!O77 -> 98257238 | P141: ='4 Úspory v silniční dopravě'!P77 -> 98244725.86 | Q141: ='4 Úspory v silniční dopravě'!Q77 -> 98306333.2 | R141: ='4 Úspory v silniční dopravě'!R77 -> 98363209.71 | S141: ='4 Úspory v silniční dopravě'!S77 -> 98287641.95
C142: Převedená nákladní doprava - LUV | E142: ='4 Úspory v silniční dopravě'!E89 -> 3023020.52 | F142: ='4 Úspory v silniční dopravě'!F89 -> 3095456.07 | G142: ='4 Úspory v silniční dopravě'!G89 -> 3167891.62 | H142: ='4 Úspory v silniční dopravě'!H89 -> 3240327.17 | I142: ='4 Úspory v silniční dopravě'!I89 -> 3312762.72 | J142: ='4 Úspory v silniční dopravě'!J89 -> 3385198.27 | K142: ='4 Úspory v silniční dopravě'!K89 -> 3457633.82 | L142: ='4 Úspory v silniční dopravě'!L89 -> 3530069.37 | M142: ='4 Úspory v silniční dopravě'!M89 -> 3602504.92 | N142: ='4 Úspory v silniční dopravě'!N89 -> 3674940.47 | O142: ='4 Úspory v silniční dopravě'!O89 -> 3747376.02 | P142: ='4 Úspory v silniční dopravě'!P89 -> 3819811.57 | Q142: ='4 Úspory v silniční dopravě'!Q89 -> 3892247.12 | R142: ='4 Úspory v silniční dopravě'!R89 -> 3964682.67 | S142: ='4 Úspory v silniční dopravě'!S89 -> 4037118.22
C143: Převedená nákladní doprava - TUV | E143: ='4 Úspory v silniční dopravě'!E90 -> 59704655.27 | F143: ='4 Úspory v silniční dopravě'!F90 -> 61135257.38 | G143: ='4 Úspory v silniční dopravě'!G90 -> 62565859.5 | H143: ='4 Úspory v silniční dopravě'!H90 -> 63996461.61 | I143: ='4 Úspory v silniční dopravě'!I90 -> 65427063.72 | J143: ='4 Úspory v silniční dopravě'!J90 -> 66857665.83 | K143: ='4 Úspory v silniční dopravě'!K90 -> 68288267.94 | L143: ='4 Úspory v silniční dopravě'!L90 -> 69718870.06 | M143: ='4 Úspory v silniční dopravě'!M90 -> 71149472.17 | N143: ='4 Úspory v silniční dopravě'!N90 -> 72580074.28 | O143: ='4 Úspory v silniční dopravě'!O90 -> 74010676.39 | P143: ='4 Úspory v silniční dopravě'!P90 -> 75441278.51 | Q143: ='4 Úspory v silniční dopravě'!Q90 -> 76871880.62 | R143: ='4 Úspory v silniční dopravě'!R90 -> 78302482.73 | S143: ='4 Úspory v silniční dopravě'!S90 -> 79733084.84
B146: 6.6. | C146: Celkové oskm / č.tkm | E146: =E127 -> 2009 | F146: =E146+1 -> 2010 | G146: 2011 | H146: 2012 | I146: 2013 | J146: 2014 | K146: 2015 | L146: 2016 | M146: 2017 | N146: 2018 | O146: 2019 | P146: 2020 | Q146: 2021 | R146: 2022 | S146: 2023
B147: a | C147: Scénář bez projektu | D147: Celkem
C148: Železniční osobní doprava | D148: =SUM(E148:S148,E153:S153) -> 1.182209007e+10 | E148: 358507306.8 | F148: 356734954 | G148: 329014820.9 | H148: 349998577.8 | I148: 352397589.6 | J148: 354796601.5 | K148: 365141536.2 | L148: 375486471 | M148: 388297836.7 | N148: 393082758.3 | O148: 397252586.8 | P148: 400864347.6 | Q148: 404406671 | R148: 407769476.8 | S148: 411096429.9
C149: Železniční nákladní doprava | D149: =SUM(E149:S149,E154:S154) -> 10488548359 | E149: 357987400 | F149: 357987400 | G149: 357987400 | H149: 357987400 | I149: 357987400 | J149: 357987400 | K149: 357987400 | L149: 361004661.1 | M149: 364021922.2 | N149: 367039183.3 | O149: 370056444.4 | P149: 373073705.6 | Q149: 376090966.7 | R149: 379108227.8 | S149: 382125488.9
B151: =B146 -> 6.6. | C151: =C146 -> Celkové oskm / č.tkm | E151: =S146+1 -> 2024 | F151: =E151+1 -> 2025 | G151: 2026 | H151: 2027 | I151: 2028 | J151: 2029 | K151: 2030 | L151: 2031 | M151: 2032 | N151: 2033 | O151: 2034 | P151: 2035 | Q151: 2036 | R151: 2037 | S151: 2038
B152: b | C152: Scénář bez projektu | E152: =S147+1 -> 1
C153: =C148 -> Železniční osobní doprava | E153: 401614582 | F153: 404061698.7 | G153: 406296173.2 | H153: 408342893.7 | I153: 408927430.6 | J153: 410333606.2 | K153: 411637017.7 | L153: 412872132.6 | M153: 413997888.4 | N153: 414969864.6 | O153: 415788061.2 | P153: 416438170.2 | Q153: 416934499.6 | R153: 417348354.6 | S153: 417679735.4
C154: =C149 -> Železniční nákladní doprava | E154: 329196248.4 | F154: 329883603 | G154: 330570957.6 | H154: 331258312.2 | I154: 331945666.8 | J154: 332633021.4 | K154: 333320376 | L154: 334007730.6 | M154: 334695085.2 | N154: 335382439.8 | O154: 336069794.4 | P154: 336757149 | Q154: 337444503.6 | R154: 338131858.2 | S154: 338819212.8
B157: 6.7. | C157: Zmírnění změny klimatu - t CO2 / rok | E157: =E127 -> 2009 | F157: =E157+1 -> 2010 | G157: =F157+1 -> 2011 | H157: =G157+1 -> 2012 | I157: =H157+1 -> 2013 | J157: =I157+1 -> 2014 | K157: =J157+1 -> 2015 | L157: =K157+1 -> 2016 | M157: =L157+1 -> 2017 | N157: =M157+1 -> 2018 | O157: =N157+1 -> 2019 | P157: =O157+1 -> 2020 | Q157: =P157+1 -> 2021 | R157: =Q157+1 -> 2022 | S157: =R157+1 -> 2023
B158: a | C158: Scénář s projektem | D158: Celkem
C159: Železniční osobní doprava | D159: =SUM(E159:S159,E168:S168) -> 691516.8019 | E159: 17266.90347 | F159: 17181.54107 | G159: 15846.44732 | H159: 16857.0948 | I159: 16972.63918 | J159: 17088.18357 | K159: 17516.06476 | L159: 18010.28242 | M159: 18318.70311 | N159: 18547.62081 | O159: 18505.42507 | P159: 18721.28677 | Q159: 18905.21118 | R159: 19086.06852 | S159: 19263.73105
C160: Železniční nákladní doprava | D160: =SUM(E160:S160,E169:S169) -> 298596.2482 | E160: 9307.6724 | F160: 9307.6724 | G160: 9307.6724 | H160: 9307.6724 | I160: 9307.6724 | J160: 9307.6724 | K160: 9248.759 | L160: 9396.853844 | M160: 9544.948689 | N160: 9693.043533 | O160: 9316.5878 | P160: 9456.0726 | Q160: 9595.5574 | R160: 9735.0422 | S160: 9874.527
C161: Převedená osobní doprava - IAD | D161: 127771.7531 | E161: 0 | F161: 0 | G161: 0 | H161: 0 | I161: 0 | J161: 0 | K161: -55.19131125 | L161: -57.51975663 | M161: -257.0227861 | N161: -254.171845 | O161: -17.40848773 | P161: 62.17116139 | Q161: 94.13491882 | R161: 133.9198596 | S161: 171.8890371
C162: Převedená osobní doprava - BUS | D162: 53114.18295 | E162: 0 | F162: 0 | G162: 0 | H162: 0 | I162: 0 | J162: 0 | K162: -36.83038595 | L162: -39.21953606 | M162: -215.0645508 | N162: -217.2387969 | O162: -488.0755821 | P162: -481.8023318 | Q162: -482.0553617 | R162: -480.4308779 | S162: -479.3929114
C163: Převedená nákladní doprava - LUV | D163: 14148.82414 | E163: 0 | F163: 0 | G163: 0 | H163: 0 | I163: 0 | J163: 0 | K163: 0 | L163: 25.30733333 | M163: 50.61466667 | N163: 75.922 | O163: 101.2293333 | P163: 126.5366667 | Q163: 151.844 | R163: 177.1513333 | S163: 202.4586667
C164: Převedená nákladní doprava - TUV | D164: 82714.02591 | E164: 0 | F164: 0 | G164: 0 | H164: 0 | I164: 0 | J164: 0 | K164: 0 | L164: 147.9466707 | M164: 295.8933413 | N164: 443.840012 | O164: 591.7866827 | P164: 739.7333533 | Q164: 887.680024 | R164: 1035.626695 | S164: 1183.573365
B166: =B157 -> 6.7. | C166: Zmírnění změny klimatu - t CO2 / rok | E166: =S157+1 -> 2024 | F166: =E166+1 -> 2025 | G166: =F166+1 -> 2026 | H166: =G166+1 -> 2027 | I166: =H166+1 -> 2028 | J166: =I166+1 -> 2029 | K166: =J166+1 -> 2030 | L166: =K166+1 -> 2031 | M166: =L166+1 -> 2032 | N166: =M166+1 -> 2033 | O166: =N166+1 -> 2034 | P166: =O166+1 -> 2035 | Q166: =P166+1 -> 2036 | R166: =Q166+1 -> 2037 | S166: =R166+1 -> 2038
B167: b | C167: Scénář s projektem
C168: =C159 -> Železniční osobní doprava | E168: 24874.96208 | F168: 27115.62109 | G168: 27887.06705 | H168: 28056.75062 | I168: 28213.94971 | J168: 28369.14919 | K168: 28493.07559 | L168: 28598.73485 | M168: 28686.72635 | N168: 28757.36481 | O168: 28810.87521 | P168: 28847.41888 | Q168: 28882.27323 | R168: 28910.15618 | S168: 28925.47392
C169: Železniční nákladní doprava | E169: 10014.0118 | F169: 10077.61794 | G169: 10141.22408 | H169: 10204.83022 | I169: 10268.43636 | J169: 10332.0425 | K169: 10395.64864 | L169: 10459.25478 | M169: 10522.86092 | N169: 10586.46706 | O169: 10650.0732 | P169: 10713.67934 | Q169: 10777.28548 | R169: 10840.89162 | S169: 10904.49776
C170: Převedená osobní doprava - IAD | E170: 6147.097593 | F170: 7939.639024 | G170: 8397.732779 | H170: 8463.542046 | I170: 8618.330321 | J170: 8695.676325 | K170: 8751.90696 | L170: 8793.129623 | M170: 8823.753549 | N170: 8847.93602 | O170: 8866.132786 | P170: 8879.911046 | Q170: 8898.271388 | R170: 8910.170995 | S170: 8917.721888
C171: Převedená osobní doprava - BUS | E171: 2284.160363 | F171: 3352.091824 | G171: 3720.507442 | H171: 3754.307927 | I171: 3803.86775 | J171: 3846.703973 | K171: 3875.920994 | L171: 3898.39455 | M171: 3914.674237 | N171: 3925.298276 | O171: 3930.28952 | P171: 3929.789034 | Q171: 3932.253328 | R171: 3934.528388 | S171: 3931.505678
C172: Převedená nákladní doprava - LUV | E172: 755.75513 | F172: 773.8640175 | G172: 791.972905 | H172: 810.0817925 | I172: 828.19068 | J172: 846.2995675 | K172: 864.408455 | L172: 882.5173425 | M172: 900.62623 | N172: 918.7351175 | O172: 936.844005 | P172: 954.9528925 | Q172: 973.06178 | R172: 991.1706675 | S172: 1009.279555
C173: Převedená nákladní doprava - TUV | E173: 4418.14449 | F173: 4524.009046 | G173: 4629.873603 | H173: 4735.738159 | I173: 4841.602715 | J173: 4947.467272 | K173: 5053.331828 | L173: 5159.196384 | M173: 5265.060941 | N173: 5370.925497 | O173: 5476.790053 | P173: 5582.65461 | Q173: 5688.519166 | R173: 5794.383722 | S173: 5900.248279
B176: 6.8. | C176: Zmírnění změny klimatu - t CO2 / rok | E176: =E157 -> 2009 | F176: =E176+1 -> 2010 | G176: =F176+1 -> 2011 | H176: =G176+1 -> 2012 | I176: =H176+1 -> 2013 | J176: =I176+1 -> 2014 | K176: =J176+1 -> 2015 | L176: =K176+1 -> 2016 | M176: =L176+1 -> 2017 | N176: =M176+1 -> 2018 | O176: =N176+1 -> 2019 | P176: =O176+1 -> 2020 | Q176: =P176+1 -> 2021 | R176: =Q176+1 -> 2022 | S176: =R176+1 -> 2023
B177: a | C177: Scénář bez projektu | D177: Celkem
C178: Železniční osobní doprava | D178: =SUM(E178:S178,E183:S183) -> 569391.1512 | E178: 17266.90347 | F178: 17181.54107 | G178: 15846.44732 | H178: 16857.0948 | I178: 16972.63918 | J178: 17088.18357 | K178: 17586.43001 | L178: 18084.67645 | M178: 18701.7144 | N178: 18932.17214 | O178: 19133.00493 | P178: 19306.95934 | Q178: 19477.5694 | R178: 19639.53331 | S178: 19799.77043
C179: Železniční nákladní doprava | D179: =SUM(E179:S179,E184:S184) -> 272702.2573 | E179: 9307.6724 | F179: 9307.6724 | G179: 9307.6724 | H179: 9307.6724 | I179: 9307.6724 | J179: 9307.6724 | K179: 9307.6724 | L179: 9386.121189 | M179: 9464.569978 | N179: 9543.018767 | O179: 9621.467556 | P179: 9699.916344 | Q179: 9778.365133 | R179: 9856.813922 | S179: 9935.262711
B181: =B176 -> 6.8. | C181: Zmírnění změny klimatu - t CO2 / rok | E181: =S176+1 -> 2024 | F181: =E181+1 -> 2025 | G181: =F181+1 -> 2026 | H181: =G181+1 -> 2027 | I181: =H181+1 -> 2028 | J181: =I181+1 -> 2029 | K181: =J181+1 -> 2030 | L181: =K181+1 -> 2031 | M181: =L181+1 -> 2032 | N181: =M181+1 -> 2033 | O181: =N181+1 -> 2034 | P181: =O181+1 -> 2035 | Q181: =P181+1 -> 2036 | R181: =Q181+1 -> 2037 | S181: =R181+1 -> 2038
B182: b | C182: Scénář bez projektu | E182: =S177+1 -> 1
C183: =C178 -> Železniční osobní doprava | E183: 19343.09312 | F183: 19460.9544 | G183: 19568.57411 | H183: 19667.15097 | I183: 19695.30421 | J183: 19763.03031 | K183: 19825.80694 | L183: 19885.29418 | M183: 19939.51432 | N183: 19986.32792 | O183: 20025.73499 | P183: 20057.0464 | Q183: 20080.95127 | R183: 20100.8839 | S183: 20116.8443
C184: =C179 -> Železniční nákladní doprava | E184: 8559.102458 | F184: 8576.973678 | G184: 8594.844898 | H184: 8612.716117 | I184: 8630.587337 | J184: 8648.458556 | K184: 8666.329776 | L184: 8684.200996 | M184: 8702.072215 | N184: 8719.943435 | O184: 8737.814654 | P184: 8755.685874 | Q184: 8773.557094 | R184: 8791.428313 | S184: 8809.299533
B187: 6.9. | C187: Zmírnění změny klimatu - t CH4 / rok | D187: GWP = 25 | E187: =E157 -> 2009 | F187: =E187+1 -> 2010 | G187: =F187+1 -> 2011 | H187: =G187+1 -> 2012 | I187: =H187+1 -> 2013 | J187: =I187+1 -> 2014 | K187: =J187+1 -> 2015 | L187: =K187+1 -> 2016 | M187: =L187+1 -> 2017 | N187: =M187+1 -> 2018 | O187: =N187+1 -> 2019 | P187: =O187+1 -> 2020 | Q187: =P187+1 -> 2021 | R187: =Q187+1 -> 2022 | S187: =R187+1 -> 2023
B188: a | C188: Scénář s projektem | D188: Celkem
C189: Železniční osobní doprava | D189: =SUM(E189:S189,E198:S198) -> 0
C190: Železniční nákladní doprava | D190: =SUM(E190:S190,E199:S199) -> 0
C191: Převedená osobní doprava - IAD | D191: 0
C192: Převedená osobní doprava - BUS | D192: 0
C193: Převedená nákladní doprava - LUV | D193: 0
C194: Převedená nákladní doprava - TUV | D194: 0
B196: =B187 -> 6.9. | C196: Zmírnění změny klimatu - t CH4 / rok | D196: GWP = 25 | E196: =S187+1 -> 2024 | F196: =E196+1 -> 2025 | G196: =F196+1 -> 2026 | H196: =G196+1 -> 2027 | I196: =H196+1 -> 2028 | J196: =I196+1 -> 2029 | K196: =J196+1 -> 2030 | L196: =K196+1 -> 2031 | M196: =L196+1 -> 2032 | N196: =M196+1 -> 2033 | O196: =N196+1 -> 2034 | P196: =O196+1 -> 2035 | Q196: =P196+1 -> 2036 | R196: =Q196+1 -> 2037 | S196: =R196+1 -> 2038
B197: b | C197: Scénář s projektem
C198: =C189 -> Železniční osobní doprava
C199: Železniční nákladní doprava
C200: Převedená osobní doprava - IAD
C201: Převedená osobní doprava - BUS
C202: Převedená nákladní doprava - LUV
C203: Převedená nákladní doprava - TUV
B206: 6.10. | C206: Zmírnění změny klimatu - t CH4 / rok | D206: GWP = 25 | E206: =E187 -> 2009 | F206: =E206+1 -> 2010 | G206: =F206+1 -> 2011 | H206: =G206+1 -> 2012 | I206: =H206+1 -> 2013 | J206: =I206+1 -> 2014 | K206: =J206+1 -> 2015 | L206: =K206+1 -> 2016 | M206: =L206+1 -> 2017 | N206: =M206+1 -> 2018 | O206: =N206+1 -> 2019 | P206: =O206+1 -> 2020 | Q206: =P206+1 -> 2021 | R206: =Q206+1 -> 2022 | S206: =R206+1 -> 2023
B207: a | C207: Scénář bez projektu | D207: Celkem
C208: Železniční osobní doprava | D208: =SUM(E208:S208,E213:S213) -> 0
C209: Železniční nákladní doprava | D209: =SUM(E209:S209,E214:S214) -> 0
B211: =B206 -> 6.10. | C211: Zmírnění změny klimatu - t CH4 / rok | D211: GWP = 25 | E211: =S206+1 -> 2024 | F211: =E211+1 -> 2025 | G211: =F211+1 -> 2026 | H211: =G211+1 -> 2027 | I211: =H211+1 -> 2028 | J211: =I211+1 -> 2029 | K211: =J211+1 -> 2030 | L211: =K211+1 -> 2031 | M211: =L211+1 -> 2032 | N211: =M211+1 -> 2033 | O211: =N211+1 -> 2034 | P211: =O211+1 -> 2035 | Q211: =P211+1 -> 2036 | R211: =Q211+1 -> 2037 | S211: =R211+1 -> 2038
B212: b | C212: Scénář bez projektu | E212: =S207+1 -> 1
C213: =C208 -> Železniční osobní doprava
C214: =C209 -> Železniční nákladní doprava
B217: 6.11. | C217: Zmírnění změny klimatu - t N2O / rok | D217: GWP = 298 | E217: =E187 -> 2009 | F217: =E217+1 -> 2010 | G217: =F217+1 -> 2011 | H217: =G217+1 -> 2012 | I217: =H217+1 -> 2013 | J217: =I217+1 -> 2014 | K217: =J217+1 -> 2015 | L217: =K217+1 -> 2016 | M217: =L217+1 -> 2017 | N217: =M217+1 -> 2018 | O217: =N217+1 -> 2019 | P217: =O217+1 -> 2020 | Q217: =P217+1 -> 2021 | R217: =Q217+1 -> 2022 | S217: =R217+1 -> 2023
B218: a | C218: Scénář s projektem | D218: Celkem
C219: Železniční osobní doprava | D219: =SUM(E219:S219,E228:S228) -> 0
C220: Železniční nákladní doprava | D220: =SUM(E220:S220,E229:S229) -> 0
C221: Převedená osobní doprava - IAD | D221: 0
C222: Převedená osobní doprava - BUS | D222: 0
C223: Převedená nákladní doprava - LUV | D223: 0
C224: Převedená nákladní doprava - TUV | D224: 0
B226: =B217 -> 6.11. | C226: Zmírnění změny klimatu - t N2O / rok | D226: GWP = 298 | E226: =S217+1 -> 2024 | F226: =E226+1 -> 2025 | G226: =F226+1 -> 2026 | H226: =G226+1 -> 2027 | I226: =H226+1 -> 2028 | J226: =I226+1 -> 2029 | K226: =J226+1 -> 2030 | L226: =K226+1 -> 2031 | M226: =L226+1 -> 2032 | N226: =M226+1 -> 2033 | O226: =N226+1 -> 2034 | P226: =O226+1 -> 2035 | Q226: =P226+1 -> 2036 | R226: =Q226+1 -> 2037 | S226: =R226+1 -> 2038
B227: b | C227: Scénář s projektem
C228: =C219 -> Železniční osobní doprava
C229: Železniční nákladní doprava
C230: Převedená osobní doprava - IAD
C231: Převedená osobní doprava - BUS
C232: Převedená nákladní doprava - LUV
C233: Převedená nákladní doprava - TUV
B236: 6.12. | C236: Zmírnění změny klimatu - t N2O / rok | D236: GWP = 298 | E236: =E217 -> 2009 | F236: =E236+1 -> 2010 | G236: =F236+1 -> 2011 | H236: =G236+1 -> 2012 | I236: =H236+1 -> 2013 | J236: =I236+1 -> 2014 | K236: =J236+1 -> 2015 | L236: =K236+1 -> 2016 | M236: =L236+1 -> 2017 | N236: =M236+1 -> 2018 | O236: =N236+1 -> 2019 | P236: =O236+1 -> 2020 | Q236: =P236+1 -> 2021 | R236: =Q236+1 -> 2022 | S236: =R236+1 -> 2023
... 49 more rows

Sheet 7 Emise ze železniční dopravy (hidden)
B2: 7.1. | C2: Emise ze železniční dopravy (CZK) | E2: ='1 Celkové investiční náklady'!G3 -> 2009 | F2: =E2+1 -> 2010 | G2: 2011 | H2: 2012 | I2: 2013 | J2: 2014 | K2: 2015 | L2: 2016 | M2: 2017 | N2: 2018 | O2: 2019 | P2: 2020 | Q2: 2021 | R2: 2022 | S2: 2023
B3: a | C3: Scénář se projektem | D3: Celkem
B4: Osobní | C4: Dieselová trakce | D4: =SUM(E4:S4,E12:S12) -> 0
C5: Elektrická trakce | D5: =SUM(E5:S5,E13:S13) -> 0
B6: Nákladní | C6: Dieselová trakce | D6: 0
C7: Elektrická trakce | D7: 0
C8: Celkem emise ze železniční dopravy | D8: 0 | E8: =SUM(E4:E7) -> 0 | F8: =SUM(F4:F7) -> 0 | G8: =SUM(G4:G7) -> 0 | H8: 0 | I8: 0 | J8: 0 | K8: 0 | L8: 0 | M8: 0 | N8: 0 | O8: 0 | P8: 0 | Q8: 0 | R8: 0 | S8: =SUM(S4:S7) -> 0
B10: 7.1. | C10: Emise ze železniční dopravy (CZK) | E10: =S2+1 -> 2024 | F10: =E10+1 -> 2025 | G10: 2026 | H10: 2027 | I10: 2028 | J10: 2029 | K10: 2030 | L10: 2031 | M10: 2032 | N10: 2033 | O10: 2034 | P10: 2035 | Q10: 2036 | R10: 2037 | S10: 2038
B11: b | C11: Scénář s projektem
B12: Osobní | C12: Dieselová trakce
C13: Elektrická trakce
B14: Nákladní | C14: Dieselová trakce
C15: Elektrická trakce
C16: Celkem emise ze železniční dopravy | E16: =SUM(E12:E15) -> 0 | F16: =SUM(F12:F15) -> 0 | G16: =SUM(G12:G15) -> 0 | H16: 0 | I16: 0 | J16: 0 | K16: 0 | L16: 0 | M16: 0 | N16: 0 | O16: 0 | P16: 0 | Q16: 0 | R16: 0 | S16: =SUM(S12:S15) -> 0
B19: 7.2. | C19: Emise ze železniční dopravy (CZK) | E19: =E2 -> 2009 | F19: =E19+1 -> 2010 | G19: 2011 | H19: 2012 | I19: 2013 | J19: 2014 | K19: 2015 | L19: 2016 | M19: 2017 | N19: 2018 | O19: 2019 | P19: 2020 | Q19: 2021 | R19: 2022 | S19: 2023
B20: a | C20: Scénář bez projektu | D20: Celkem
B21: Osobní | C21: Dieselová trakce | D21: =SUM(E21:S21,E29:S29) -> 0
C22: Elektrická trakce | D22: =SUM(E22:S22,E30:S30) -> 0
B23: Nákladní | C23: Dieselová trakce | D23: 0
C24: Elektrická trakce | D24: 0
C25: Celkem emise ze železniční dopravy | D25: 0 | E25: =SUM(E21:E24) -> 0 | F25: =SUM(F21:F24) -> 0 | G25: =SUM(G21:G24) -> 0 | H25: 0 | I25: 0 | J25: 0 | K25: 0 | L25: 0 | M25: 0 | N25: 0 | O25: 0 | P25: 0 | Q25: 0 | R25: 0 | S25: =SUM(S21:S24) -> 0
B27: 7.2. | C27: Emise ze železniční dopravy (CZK) | E27: =S19+1 -> 2024 | F27: =E27+1 -> 2025 | G27: 2026 | H27: 2027 | I27: 2028 | J27: 2029 | K27: 2030 | L27: 2031 | M27: 2032 | N27: 2033 | O27: 2034 | P27: 2035 | Q27: 2036 | R27: 2037 | S27: 2038
B28: b | C28: Scénář bez projektu | E28: =S20+1 -> 1
B29: Osobní | C29: Dieselová trakce
C30: Elektrická trakce
B31: Nákladní | C31: Dieselová trakce
C32: Elektrická trakce
C33: Celkem emise ze železniční dopravy | E33: =SUM(E29:E32) -> 0 | F33: =SUM(F29:F32) -> 0 | G33: =SUM(G29:G32) -> 0 | H33: 0 | I33: 0 | J33: 0 | K33: 0 | L33: 0 | M33: 0 | N33: 0 | O33: 0 | P33: 0 | Q33: 0 | R33: 0 | S33: =SUM(S29:S32) -> 0
B36: 7.3. | C36: Redukce emisí ze železniční nákladní dopravy (CZK) | E36: =E2 -> 2009 | F36: =E36+1 -> 2010 | G36: 2011 | H36: 2012 | I36: 2013 | J36: 2014 | K36: 2015 | L36: 2016 | M36: 2017 | N36: 2018 | O36: 2019 | P36: 2020 | Q36: 2021 | R36: 2022 | S36: 2023
B37: a | D37: Celkem
B38: Osobní | C38: Dieselová trakce | D38: =SUM(E38:S38,E46:S46) -> 0 | E38: =E21-E4 -> 0 | F38: =F21-F4 -> 0 | G38: 0 | H38: 0 | I38: 0 | J38: 0 | K38: 0 | L38: 0 | M38: 0 | N38: 0 | O38: 0 | P38: 0 | Q38: 0 | R38: 0 | S38: 0
C39: Elektrická trakce | D39: =SUM(E39:S39,E47:S47) -> 0 | E39: =E22-E5 -> 0 | F39: 0 | G39: 0 | H39: 0 | I39: 0 | J39: 0 | K39: 0 | L39: 0 | M39: 0 | N39: 0 | O39: 0 | P39: 0 | Q39: 0 | R39: 0 | S39: 0
B40: Nákladní | C40: Dieselová trakce | D40: 0 | E40: =E23-E6 -> 0 | F40: 0 | G40: 0 | H40: 0 | I40: 0 | J40: 0 | K40: 0 | L40: 0 | M40: 0 | N40: 0 | O40: 0 | P40: 0 | Q40: 0 | R40: 0 | S40: 0
C41: Elektrická trakce | D41: 0 | E41: =E24-E7 -> 0 | F41: 0 | G41: 0 | H41: 0 | I41: 0 | J41: 0 | K41: 0 | L41: 0 | M41: 0 | N41: 0 | O41: 0 | P41: 0 | Q41: 0 | R41: 0 | S41: 0
C42: Celkem redukce emisí ze železniční dopravy | D42: 0 | E42: =E25-E8 -> 0 | F42: =F25-F8 -> 0 | G42: =G25-G8 -> 0 | H42: 0 | I42: 0 | J42: 0 | K42: 0 | L42: 0 | M42: 0 | N42: 0 | O42: 0 | P42: 0 | Q42: 0 | R42: 0 | S42: 0
B44: 7.3. | C44: Redukce emisí ze železniční nákladní dopravy (CZK) | E44: =S36+1 -> 2024 | F44: =E44+1 -> 2025 | G44: 2026 | H44: 2027 | I44: 2028 | J44: 2029 | K44: 2030 | L44: 2031 | M44: 2032 | N44: 2033 | O44: 2034 | P44: 2035 | Q44: 2036 | R44: 2037 | S44: 2038
B45: b | E45: =S37+1 -> 1
B46: Osobní | C46: Dieselová trakce | E46: =E29-E12 -> 0 | F46: 0 | G46: 0 | H46: 0 | I46: 0 | J46: 0 | K46: 0 | L46: 0 | M46: 0 | N46: 0 | O46: 0 | P46: 0 | Q46: 0 | R46: 0 | S46: 0
C47: Elektrická trakce | E47: =E30-E13 -> 0 | F47: 0 | G47: 0 | H47: 0 | I47: 0 | J47: 0 | K47: 0 | L47: 0 | M47: 0 | N47: 0 | O47: 0 | P47: 0 | Q47: 0 | R47: 0 | S47: 0
B48: Nákladní | C48: Dieselová trakce | E48: =E31-E14 -> 0 | F48: 0 | G48: 0 | H48: 0 | I48: 0 | J48: 0 | K48: 0 | L48: 0 | M48: 0 | N48: 0 | O48: 0 | P48: 0 | Q48: 0 | R48: 0 | S48: 0
C49: Elektrická trakce | E49: =E32-E15 -> 0 | F49: 0 | G49: 0 | H49: 0 | I49: 0 | J49: 0 | K49: 0 | L49: 0 | M49: 0 | N49: 0 | O49: 0 | P49: 0 | Q49: 0 | R49: 0 | S49: 0
C50: Celkem redukce emisí ze železniční dopravy | E50: 0 | F50: 0 | G50: 0 | H50: 0 | I50: 0 | J50: 0 | K50: 0 | L50: 0 | M50: 0 | N50: 0 | O50: 0 | P50: 0 | Q50: 0 | R50: 0 | S50: 0
C53: Scenář s projektem (CZK) | D53: =D8 -> 0
C54: Scenář bez projektu (CZK) | D54: =D25 -> 0
C55: Přírůstkové cash-flow (CZK) | D55: =D42 -> 0
B60: 7.4. | C60: CÚ | D60: 2007 | F60: 2012 | H60: ='0 Úvod'!D19 -> 2016
D61: Dieselová trakce | E61: Elektrická trakce | F61: Dieselová trakce | G61: Elektrická trakce | H61: Dieselová trakce | I61: Elektrická trakce
C62: CZK/1000 oskm | D62: =40.832 -> 40.832 | E62: =3.273 -> 3.273 | F62: 50.56 | G62: 4.053
C63: CZK/1000 č. tkm | D63: 68.565 | E63: 0.775 | F63: 84.9 | G63: 0.96
C64: Zdroj: "INFRAS-IWW" 2004
B67: 7.5. | C67: Celkové oskm / č.tkm | E67: =E2 -> 2009 | F67: =E67+1 -> 2010 | G67: 2011 | H67: 2012 | I67: 2013 | J67: 2014 | K67: 2015 | L67: 2016 | M67: 2017 | N67: 2018 | O67: 2019 | P67: 2020 | Q67: 2021 | R67: 2022 | S67: 2023
B68: a | C68: Scénář s projektem | D68: Celkem
B69: Osobní | C69: Dieselová trakce | D69: =SUM(E69:S69,E77:S77) -> 0
C70: Elektrická trakce | D70: =SUM(E70:S70,E78:S78) -> 0
B71: Nákladní | C71: Dieselová trakce | D71: 0
C72: Elektrická trakce | D72: 0
C73: Celkové oskm / č.tkm | D73: 0 | E73: =SUM(E69:E72) -> 0 | F73: 0 | G73: 0 | H73: 0 | I73: 0 | J73: 0 | K73: 0 | L73: 0 | M73: 0 | N73: 0 | O73: 0 | P73: 0 | Q73: 0 | R73: 0 | S73: 0
B75: =B67 -> 7.5. | C75: =C67 -> Celkové oskm / č.tkm | E75: =S67+1 -> 2024 | F75: =E75+1 -> 2025 | G75: 2026 | H75: 2027 | I75: 2028 | J75: 2029 | K75: 2030 | L75: 2031 | M75: 2032 | N75: 2033 | O75: 2034 | P75: 2035 | Q75: 2036 | R75: 2037 | S75: 2038
B76: b | C76: Scénář s projektem
B77: =B69 -> Osobní | C77: =C69 -> Dieselová trakce
C78: =C70 -> Elektrická trakce
B79: =B71 -> Nákladní | C79: =C71 -> Dieselová trakce
C80: =C72 -> Elektrická trakce
C81: =C73 -> Celkové oskm / č.tkm | E81: =SUM(E77:E80) -> 0 | F81: 0 | G81: 0 | H81: 0 | I81: 0 | J81: 0 | K81: 0 | L81: 0 | M81: 0 | N81: 0 | O81: 0 | P81: 0 | Q81: 0 | R81: 0 | S81: 0
B84: 7.6. | C84: Celkové oskm / č.tkm | E84: =E67 -> 2009 | F84: =E84+1 -> 2010 | G84: 2011 | H84: 2012 | I84: 2013 | J84: 2014 | K84: 2015 | L84: 2016 | M84: 2017 | N84: 2018 | O84: 2019 | P84: 2020 | Q84: 2021 | R84: 2022 | S84: 2023
B85: a | C85: Scénář bez projektu | D85: Celkem
B86: Osobní | C86: Dieselová trakce | D86: =SUM(E86:S86,E94:S94) -> 0
C87: Elektrická trakce | D87: =SUM(E87:S87,E95:S95) -> 0
B88: Nákladní | C88: Dieselová trakce | D88: 0
C89: Elektrická trakce | D89: 0
C90: Celkové oskm / č.tkm | D90: 0 | E90: =SUM(E86:E89) -> 0 | F90: 0 | G90: 0 | H90: 0 | I90: 0 | J90: 0 | K90: 0 | L90: 0 | M90: 0 | N90: 0 | O90: 0 | P90: 0 | Q90: 0 | R90: 0 | S90: 0
B92: =B84 -> 7.6. | C92: =C84 -> Celkové oskm / č.tkm | E92: =S84+1 -> 2024 | F92: =E92+1 -> 2025 | G92: 2026 | H92: 2027 | I92: 2028 | J92: 2029 | K92: 2030 | L92: 2031 | M92: 2032 | N92: 2033 | O92: 2034 | P92: 2035 | Q92: 2036 | R92: 2037 | S92: 2038
B93: b | C93: Scénář bez projektu | E93: =S85+1 -> 1
B94: =B86 -> Osobní | C94: =C86 -> Dieselová trakce
C95: =C87 -> Elektrická trakce
B96: =B88 -> Nákladní | C96: =C88 -> Dieselová trakce
C97: =C89 -> Elektrická trakce
C98: =C90 -> Celkové oskm / č.tkm | E98: =SUM(E94:E97) -> 0 | F98: 0 | G98: 0 | H98: 0 | I98: 0 | J98: 0 | K98: 0 | L98: 0 | M98: 0 | N98: 0 | O98: 0 | P98: 0 | Q98: 0 | R98: 0 | S98: 0
B101: 7.7. | C101: Změna měrných hodnot emisí | E101: =E2 -> 2009 | F101: =E101+1 -> 2010 | G101: 2011 | H101: 2012 | I101: 2013 | J101: 2014 | K101: 2015 | L101: 2016 | M101: 2017 | N101: 2018 | O101: 2019 | P101: 2020 | Q101: 2021 | R101: 2022 | S101: 2023
B102: a | D102: Elasticita
C103: Hodnota růstu HDP na hlavu (resp. prognóza) | D103: 1 | E103: 0 | F103: ='6 Externality'!F284 -> 0.02 | G103: ='6 Externality'!G284 -> 0.022 | H103: ='6 Externality'!H284 -> -0.01 | I103: ='6 Externality'!I284 -> -0.005 | J103: ='6 Externality'!J284 -> 0.018 | K103: ='6 Externality'!K284 -> 0.047 | L103: ='6 Externality'!L284 -> 0.028 | M103: ='6 Externality'!M284 -> 0.029 | N103: ='6 Externality'!N284 -> 0.03 | O103: ='6 Externality'!O284 -> 0.03 | P103: ='6 Externality'!P284 -> 0.02 | Q103: ='6 Externality'!Q284 -> 0.02 | R103: ='6 Externality'!R284 -> 0.02 | S103: ='6 Externality'!S284 -> 0.02
C104: Výsledný růstový koeficient ohodnocení emisí | E104: ='6 Externality'!E285 -> 1 | F104: =E104*(1+F103) -> 1.02 | G104: 1.04244 | H104: 1.0320156 | I104: 1.026855522 | J104: 1.045338921 | K104: 1.094469851 | L104: 1.125115007 | M104: 1.157743342 | N104: 1.192475642 | O104: 1.228249911 | P104: 1.252814909 | Q104: 1.277871208 | R104: 1.303428632 | S104: 1.329497204
B106: =B101 -> 7.7. | C106: =C101 -> Změna měrných hodnot emisí | E106: =S101+1 -> 2024 | F106: =E106+1 -> 2025 | G106: 2026 | H106: 2027 | I106: 2028 | J106: 2029 | K106: 2030 | L106: 2031 | M106: 2032 | N106: 2033 | O106: 2034 | P106: 2035 | Q106: 2036 | R106: 2037 | S106: 2038
B107: b | D107: Elasticita
C108: =C103 -> Hodnota růstu HDP na hlavu (resp. prognóza) | D108: =D103 -> 1 | E108: ='6 Externality'!E289 -> 0.02 | F108: ='6 Externality'!F289 -> 0.02 | G108: ='6 Externality'!G289 -> 0.02 | H108: ='6 Externality'!H289 -> 0.02 | I108: ='6 Externality'!I289 -> 0.02 | J108: ='6 Externality'!J289 -> 0.02 | K108: ='6 Externality'!K289 -> 0.01 | L108: ='6 Externality'!L289 -> 0.01 | M108: ='6 Externality'!M289 -> 0.01 | N108: ='6 Externality'!N289 -> 0.01 | O108: ='6 Externality'!O289 -> 0.01 | P108: ='6 Externality'!P289 -> 0.01 | Q108: ='6 Externality'!Q289 -> 0.01 | R108: ='6 Externality'!R289 -> 0.01 | S108: ='6 Externality'!S289 -> 0.01
C109: =C104 -> Výsledný růstový koeficient ohodnocení emisí | E109: =S104*(1+E108) -> 1.356087149 | F109: =E109*(1+F108) -> 1.383208891 | G109: 1.410873069 | H109: 1.439090531 | I109: 1.467872341 | J109: 1.497229788 | K109: 1.512202086 | L109: 1.527324107 | M109: 1.542597348 | N109: 1.558023321 | O109: 1.573603555 | P109: 1.58933959 | Q109: 1.605232986 | R109: 1.621285316 | S109: 1.637498169
B112: Komentáře
B114: Zpracovatel uvede konkrétní hodnoty výstupů z dopravního prognózování použité při výpočtu emisí železniční dopravy. Tabulky 7.5. a 7.6. je možné přizpůsobit konkrétnímu projektu.
B115: V tabulce 7.1. a 7.2. uvede zpracovatel konkrétní výpočet pomocí vzorců, s odkazem na tabulky výkonů (tabulka 7.5. a 7.6.) a měrného ohodnocení (tabulka 7.4.).
B116: a vynásobí hodnoty v tabulce 7.1 a 7.2 hodnotou z tabulky 7.7

Sheet 8 Bezpečnost železniční dopravy (hidden)
B2: 8.1. | C2: Celkové zvýšení bezpečnosti železniční dopravy (CZK) | E2: ='0 Úvod'!G19 -> 2009 | F2: =E2+1 -> 2010 | G2: 2011 | H2: 2012 | I2: 2013 | J2: 2014 | K2: 2015 | L2: 2016 | M2: 2017 | N2: 2018 | O2: 2019 | P2: 2020 | Q2: 2021 | R2: 2022 | S2: 2023
B3: a | D3: Celkem
C4: Zamezení úmrtí | D4: =SUM(E4:S4,E12:S12) -> 0
C5: Zamezení zranění | D5: =SUM(E5:S5,E13:S13) -> 0
C6: Škody na infrastruktuře | D6: 0
C7: Škody na vozidlech | D7: 0
C8: CELKEM | D8: 0 | E8: =SUM(E4:E7) -> 0 | F8: =SUM(F4:F7) -> 0 | G8: =SUM(G4:G7) -> 0 | H8: 0 | I8: 0 | J8: 0 | K8: 0 | L8: 0 | M8: 0 | N8: 0 | O8: 0 | P8: 0 | Q8: 0 | R8: 0 | S8: 0
B10: 8.1. | C10: Celkové zvýšení bezpečnosti železniční dopravy (CZK) | E10: =S2+1 -> 2024 | F10: =E10+1 -> 2025 | G10: 2026 | H10: 2027 | I10: 2028 | J10: 2029 | K10: 2030 | L10: 2031 | M10: 2032 | N10: 2033 | O10: 2034 | P10: 2035 | Q10: 2036 | R10: 2037 | S10: 2038
B11: b
C12: =IF(C4="","",C4) -> Zamezení úmrtí
C13: =IF(C5="","",C5) -> Zamezení zranění
C14: =IF(C6="","",C6) -> Škody na infrastruktuře
C15: =IF(C7="","",C7) -> Škody na vozidlech
C16: =IF(C8="","",C8) -> CELKEM | E16: =SUM(E12:E15) -> 0 | F16: 0 | G16: 0 | H16: 0 | I16: 0 | J16: 0 | K16: 0 | L16: 0 | M16: 0 | N16: 0 | O16: 0 | P16: 0 | Q16: 0 | R16: 0 | S16: 0
B19: 8.2. | C19: Celkové zvýšení bezpečnosti železniční dopravy (CZK) | E19: =E2 -> 2009 | F19: =E19+1 -> 2010 | G19: 2011 | H19: 2012 | I19: 2013 | J19: 2014 | K19: 2015 | L19: 2016 | M19: 2017 | N19: 2018 | O19: 2019 | P19: 2020 | Q19: 2021 | R19: 2022 | S19: 2023
B20: a | D20: Celkem
C21: =IF(C4="","",C4) -> Zamezení úmrtí | D21: =SUM(E21:S21,E29:S29) -> 0 | E21: =E4 -> 0 | F21: 0 | G21: 0 | H21: 0 | I21: 0 | J21: 0 | K21: 0 | L21: 0 | M21: 0 | N21: 0 | O21: 0 | P21: 0 | Q21: 0 | R21: 0 | S21: 0
C22: =IF(C5="","",C5) -> Zamezení zranění | D22: =SUM(E22:S22,E30:S30) -> 0 | E22: =E5 -> 0 | F22: 0 | G22: 0 | H22: 0 | I22: 0 | J22: 0 | K22: 0 | L22: 0 | M22: 0 | N22: 0 | O22: 0 | P22: 0 | Q22: 0 | R22: 0 | S22: 0
C23: =IF(C6="","",C6) -> Škody na infrastruktuře | D23: 0 | E23: =E6 -> 0 | F23: 0 | G23: 0 | H23: 0 | I23: 0 | J23: 0 | K23: 0 | L23: 0 | M23: 0 | N23: 0 | O23: 0 | P23: 0 | Q23: 0 | R23: 0 | S23: 0
C24: =IF(C7="","",C7) -> Škody na vozidlech | D24: 0 | E24: 0 | F24: 0 | G24: 0 | H24: 0 | I24: 0 | J24: 0 | K24: 0 | L24: 0 | M24: 0 | N24: 0 | O24: 0 | P24: 0 | Q24: 0 | R24: 0 | S24: 0
C25: =IF(C8="","",C8) -> CELKEM | D25: 0 | E25: =SUM(E21:E24) -> 0 | F25: =SUM(F21:F24) -> 0 | G25: 0 | H25: 0 | I25: 0 | J25: 0 | K25: 0 | L25: 0 | M25: 0 | N25: 0 | O25: 0 | P25: 0 | Q25: 0 | R25: 0 | S25: 0
B27: 8.2. | C27: Celkové zvýšení bezpečnosti železniční dopravy (CZK) | E27: =S19+1 -> 2024 | F27: =E27+1 -> 2025 | G27: 2026 | H27: 2027 | I27: 2028 | J27: 2029 | K27: 2030 | L27: 2031 | M27: 2032 | N27: 2033 | O27: 2034 | P27: 2035 | Q27: 2036 | R27: 2037 | S27: 2038
B28: b
C29: =IF(C12="","",C12) -> Zamezení úmrtí | E29: =E12 -> 0 | F29: =F12 -> 0 | G29: 0 | H29: 0 | I29: 0 | J29: 0 | K29: 0 | L29: 0 | M29: 0 | N29: 0 | O29: 0 | P29: 0 | Q29: 0 | R29: 0 | S29: 0
C30: =IF(C13="","",C13) -> Zamezení zranění | E30: =E13 -> 0 | F30: =F13 -> 0 | G30: 0 | H30: 0 | I30: 0 | J30: 0 | K30: 0 | L30: 0 | M30: 0 | N30: 0 | O30: 0 | P30: 0 | Q30: 0 | R30: 0 | S30: 0
C31: =IF(C14="","",C14) -> Škody na infrastruktuře | E31: =E14 -> 0 | F31: 0 | G31: 0 | H31: 0 | I31: 0 | J31: 0 | K31: 0 | L31: 0 | M31: 0 | N31: 0 | O31: 0 | P31: 0 | Q31: 0 | R31: 0 | S31: 0
C32: =IF(C15="","",C15) -> Škody na vozidlech | E32: 0 | F32: 0 | G32: 0 | H32: 0 | I32: 0 | J32: 0 | K32: 0 | L32: 0 | M32: 0 | N32: 0 | O32: 0 | P32: 0 | Q32: 0 | R32: 0 | S32: 0
C33: =IF(C16="","",C16) -> CELKEM | E33: =SUM(E29:E32) -> 0 | F33: 0 | G33: 0 | H33: 0 | I33: 0 | J33: 0 | K33: 0 | L33: 0 | M33: 0 | N33: 0 | O33: 0 | P33: 0 | Q33: 0 | R33: 0 | S33: 0
C36: Úspory (CZK) | D36: =D25 -> 0
B38: 8.3. | C38: Hodnota zamezení úmrtí a zranění | D38: CÚ | E38: úmrtí | F38: vážné zranění | G38: lehké zranění
C39: Měrná hodnota | D39: 2012 | E39: 23337530 | F39: 3163532 | G39: 226303 | J39: ='6 Externality'!I107 -> 0
C40: Měrná hodnota | D40: ='0 Úvod'!D19 -> 2016 | E40: =E39/(1+'6 Externality'!$H$284)/(1+'6 Externality'!$G$284)/(1+'6 Externality'!$F$284)*(1+'0 Úvod'!$K$50)*(1+'0 Úvod'!$L$50)*(1+'0 Úvod'!$M$50)*(1+'0 Úvod'!$N$50) -> 23321828.73 | F40: =F39/(1+'6 Externality'!$H$284)/(1+'6 Externality'!$G$284)/(1+'6 Externality'!$F$284)*(1+'0 Úvod'!$K$50)*(1+'0 Úvod'!$L$50)*(1+'0 Úvod'!$M$50)*(1+'0 Úvod'!$N$50) -> 3161403.606 | G40: =G39/(1+'6 Externality'!$H$284)/(1+'6 Externality'!$G$284)/(1+'6 Externality'!$F$284)*(1+'0 Úvod'!$K$50)*(1+'0 Úvod'!$L$50)*(1+'0 Úvod'!$M$50)*(1+'0 Úvod'!$N$50) -> 226150.7455
C41: Zdroj: Metodiky hodnocení efektivnosti investice - železniční infrastruktura (příloha C7), MD ČR 2013
B44: Příklad:
C45: Zdroj: Drážní úřad - výskyty mimořádných událostí
C46: Datum | D46: Druh mimořádné události | E46: Popis | F46: Místo | G46: Místo MU | H46: upřesnění | I46: Usmrcených | J46: Zraněných | K46: Škoda - Drážní vozidla | L46: Škoda - Infrastruktura | M46: Škoda - Ost. účastníci | N46: Škoda - 3. strany | O46: Škoda - Neurčeno
C55: Mimořádná událost | D55: Výskyt za 1 ROK | E55: Hodnota výskytu | F55: pst.

Sheet 9 Ostatní příjmy či náklady
B2: 9.1. | C2: Úspory času zrušením přejezdů | E2: ='0 Úvod'!G19 -> 2009 | F2: =E2+1 -> 2010 | G2: 2011 | H2: 2012 | I2: 2013 | J2: 2014 | K2: 2015 | L2: 2016 | M2: 2017 | N2: 2018 | O2: 2019 | P2: 2020 | Q2: 2021 | R2: 2022 | S2: 2023
B3: a | D3: Celkem
C4: Úspory aut čekajících na přejezdu | D4: =SUM(E4:S4,E12:S12) -> 1127991905
C5: Úspory zraněných a mrtvých | D5: =SUM(E5:S5,E13:S13) -> 969225185.5
D6: 0
D7: 0
D8: 2097217091 | E8: =SUM(E4:E7) -> 0 | F8: =SUM(F4:F7) -> 0 | G8: =SUM(G4:G7) -> 0 | H8: 0 | I8: 0 | J8: 0 | K8: 0 | L8: 0 | M8: 0 | N8: 0 | O8: 0 | P8: 0 | Q8: 0 | R8: 0 | S8: 0
B10: 9.1. | E10: =S2+1 -> 2024 | F10: =E10+1 -> 2025 | G10: 2026 | H10: 2027 | I10: 2028 | J10: 2029 | K10: 2030 | L10: 2031 | M10: 2032 | N10: 2033 | O10: 2034 | P10: 2035 | Q10: 2036 | R10: 2037 | S10: 2038
B11: b
C12: =IF(C4="","",C4) -> Úspory aut čekajících na přejezdu | E12: =$C$52*'5 Úspory z cestovních dob'!$N$86*'5 Úspory z cestovních dob'!E143 -> 69603748.89 | F12: =$C$52*'5 Úspory z cestovních dob'!$N$86*'5 Úspory z cestovních dob'!F143 -> 70578201.38 | G12: =$C$52*'5 Úspory z cestovních dob'!$N$86*'5 Úspory z cestovních dob'!G143 -> 71566296.2 | H12: =$C$52*'5 Úspory z cestovních dob'!$N$86*'5 Úspory z cestovních dob'!H143 -> 72568224.34 | I12: =$C$52*'5 Úspory z cestovních dob'!$N$86*'5 Úspory z cestovních dob'!I143 -> 73584179.48 | J12: =$C$52*'5 Úspory z cestovních dob'!$N$86*'5 Úspory z cestovních dob'!J143 -> 74614358 | K12: =$C$52*'5 Úspory z cestovních dob'!$N$86*'5 Úspory z cestovních dob'!K143 -> 75136658.5 | L12: =$C$52*'5 Úspory z cestovních dob'!$N$86*'5 Úspory z cestovních dob'!L143 -> 75662615.11 | M12: =$C$52*'5 Úspory z cestovních dob'!$N$86*'5 Úspory z cestovních dob'!M143 -> 76192253.42 | N12: =$C$52*'5 Úspory z cestovních dob'!$N$86*'5 Úspory z cestovních dob'!N143 -> 76725599.19 | O12: =$C$52*'5 Úspory z cestovních dob'!$N$86*'5 Úspory z cestovních dob'!O143 -> 77262678.39 | P12: =$C$52*'5 Úspory z cestovních dob'!$N$86*'5 Úspory z cestovních dob'!P143 -> 77803517.14 | Q12: =$C$52*'5 Úspory z cestovních dob'!$N$86*'5 Úspory z cestovních dob'!Q143 -> 78348141.76 | R12: =$C$52*'5 Úspory z cestovních dob'!$N$86*'5 Úspory z cestovních dob'!R143 -> 78896578.75 | S12: =$C$52*'5 Úspory z cestovních dob'!$N$86*'5 Úspory z cestovních dob'!S143 -> 79448854.8
C13: =IF(C5="","",C5) -> Úspory zraněných a mrtvých | E13: =(($E$71+$E$83+$E$89+$E$95+$E$125)*'8 Bezpečnost železniční dopravy'!$E$40*'6 Externality'!E290+($F$83+$F$125)*(('8 Bezpečnost železniční dopravy'!$G$40+'8 Bezpečnost železniční dopravy'!$F$40)/2)*'6 Externality'!E290)/5 -> 57846341.78 | F13: =(($E$71+$E$83+$E$89+$E$95+$E$125)*'8 Bezpečnost železniční dopravy'!$E$40*'6 Externality'!F290+($F$83+$F$125)*(('8 Bezpečnost železniční dopravy'!$G$40+'8 Bezpečnost železniční dopravy'!$F$40)/2)*'6 Externality'!F290)/5 -> 59003268.62 | G13: =(($E$71+$E$83+$E$89+$E$95+$E$125)*'8 Bezpečnost železniční dopravy'!$E$40*'6 Externality'!G290+($F$83+$F$125)*(('8 Bezpečnost železniční dopravy'!$G$40+'8 Bezpečnost železniční dopravy'!$F$40)/2)*'6 Externality'!G290)/5 -> 60183333.99 | H13: =(($E$71+$E$83+$E$89+$E$95+$E$125)*'8 Bezpečnost železniční dopravy'!$E$40*'6 Externality'!H290+($F$83+$F$125)*(('8 Bezpečnost železniční dopravy'!$G$40+'8 Bezpečnost železniční dopravy'!$F$40)/2)*'6 Externality'!H290)/5 -> 61387000.67 | I13: =(($E$71+$E$83+$E$89+$E$95+$E$125)*'8 Bezpečnost železniční dopravy'!$E$40*'6 Externality'!I290+($F$83+$F$125)*(('8 Bezpečnost železniční dopravy'!$G$40+'8 Bezpečnost železniční dopravy'!$F$40)/2)*'6 Externality'!I290)/5 -> 62614740.68 | J13: =(($E$71+$E$83+$E$89+$E$95+$E$125)*'8 Bezpečnost železniční dopravy'!$E$40*'6 Externality'!J290+($F$83+$F$125)*(('8 Bezpečnost železniční dopravy'!$G$40+'8 Bezpečnost železniční dopravy'!$F$40)/2)*'6 Externality'!J290)/5 -> 63867035.5 | K13: =(($E$71+$E$83+$E$89+$E$95+$E$125)*'8 Bezpečnost železniční dopravy'!$E$40*'6 Externality'!K290+($F$83+$F$125)*(('8 Bezpečnost železniční dopravy'!$G$40+'8 Bezpečnost železniční dopravy'!$F$40)/2)*'6 Externality'!K290)/5 -> 64505705.85 | L13: =(($E$71+$E$83+$E$89+$E$95+$E$125)*'8 Bezpečnost železniční dopravy'!$E$40*'6 Externality'!L290+($F$83+$F$125)*(('8 Bezpečnost železniční dopravy'!$G$40+'8 Bezpečnost železniční dopravy'!$F$40)/2)*'6 Externality'!L290)/5 -> 65150762.91 | M13: =(($E$71+$E$83+$E$89+$E$95+$E$125)*'8 Bezpečnost železniční dopravy'!$E$40*'6 Externality'!M290+($F$83+$F$125)*(('8 Bezpečnost železniční dopravy'!$G$40+'8 Bezpečnost železniční dopravy'!$F$40)/2)*'6 Externality'!M290)/5 -> 65802270.54 | N13: =(($E$71+$E$83+$E$89+$E$95+$E$125)*'8 Bezpečnost železniční dopravy'!$E$40*'6 Externality'!N290+($F$83+$F$125)*(('8 Bezpečnost železniční dopravy'!$G$40+'8 Bezpečnost železniční dopravy'!$F$40)/2)*'6 Externality'!N290)/5 -> 66460293.25 | O13: =(($E$71+$E$83+$E$89+$E$95+$E$125)*'8 Bezpečnost železniční dopravy'!$E$40*'6 Externality'!O290+($F$83+$F$125)*(('8 Bezpečnost železniční dopravy'!$G$40+'8 Bezpečnost železniční dopravy'!$F$40)/2)*'6 Externality'!O290)/5 -> 67124896.18 | P13: =(($E$71+$E$83+$E$89+$E$95+$E$125)*'8 Bezpečnost železniční dopravy'!$E$40*'6 Externality'!P290+($F$83+$F$125)*(('8 Bezpečnost železniční dopravy'!$G$40+'8 Bezpečnost železniční dopravy'!$F$40)/2)*'6 Externality'!P290)/5 -> 67796145.14 | Q13: =(($E$71+$E$83+$E$89+$E$95+$E$125)*'8 Bezpečnost železniční dopravy'!$E$40*'6 Externality'!Q290+($F$83+$F$125)*(('8 Bezpečnost železniční dopravy'!$G$40+'8 Bezpečnost železniční dopravy'!$F$40)/2)*'6 Externality'!Q290)/5 -> 68474106.59 | R13: =(($E$71+$E$83+$E$89+$E$95+$E$125)*'8 Bezpečnost železniční dopravy'!$E$40*'6 Externality'!R290+($F$83+$F$125)*(('8 Bezpečnost železniční dopravy'!$G$40+'8 Bezpečnost železniční dopravy'!$F$40)/2)*'6 Externality'!R290)/5 -> 69158847.66 | S13: =(($E$71+$E$83+$E$89+$E$95+$E$125)*'8 Bezpečnost železniční dopravy'!$E$40*'6 Externality'!S290+($F$83+$F$125)*(('8 Bezpečnost železniční dopravy'!$G$40+'8 Bezpečnost železniční dopravy'!$F$40)/2)*'6 Externality'!S290)/5 -> 69850436.13
C14: =IF(C6="","",C6) -> 
C15: =IF(C7="","",C7) -> 
C16: =IF(C8="","",C8) ->  | E16: =SUM(E12:E15) -> 127450090.7 | F16: 129581470 | G16: 131749630.2 | H16: 133955225 | I16: 136198920.2 | J16: 138481393.5 | K16: 139642364.4 | L16: 140813378 | M16: 141994524 | N16: 143185892.4 | O16: 144387574.6 | P16: 145599662.3 | Q16: 146822248.3 | R16: 148055426.4 | S16: 149299290.9
B19: 9.2. | E19: =E2 -> 2009 | F19: =E19+1 -> 2010 | G19: 2011 | H19: 2012 | I19: 2013 | J19: 2014 | K19: 2015 | L19: 2016 | M19: 2017 | N19: 2018 | O19: 2019 | P19: 2020 | Q19: 2021 | R19: 2022 | S19: 2023
B20: a | D20: Celkem
C21: =IF(C4="","",C4) -> Úspory aut čekajících na přejezdu | D21: =SUM(E21:S21,E29:S29) -> 1127991905 | E21: =E4 -> 0 | F21: 0 | G21: 0 | H21: 0 | I21: 0 | J21: 0 | K21: 0 | L21: 0 | M21: 0 | N21: 0 | O21: 0 | P21: 0 | Q21: 0 | R21: 0 | S21: 0
C22: =IF(C5="","",C5) -> Úspory zraněných a mrtvých | D22: =SUM(E22:S22,E30:S30) -> 969225185.5 | E22: 0 | F22: 0 | G22: 0 | H22: 0 | I22: 0 | J22: 0 | K22: 0 | L22: 0 | M22: 0 | N22: 0 | O22: 0 | P22: 0 | Q22: 0 | R22: 0 | S22: 0
C23: =IF(C6="","",C6) ->  | D23: 0 | E23: 0 | F23: 0 | G23: 0 | H23: 0 | I23: 0 | J23: 0 | K23: 0 | L23: 0 | M23: 0 | N23: 0 | O23: 0 | P23: 0 | Q23: 0 | R23: 0 | S23: 0
C24: =IF(C7="","",C7) ->  | D24: 0 | E24: 0 | F24: 0 | G24: 0 | H24: 0 | I24: 0 | J24: 0 | K24: 0 | L24: 0 | M24: 0 | N24: 0 | O24: 0 | P24: 0 | Q24: 0 | R24: 0 | S24: 0
C25: =IF(C8="","",C8) ->  | D25: 2097217091 | E25: =SUM(E21:E24) -> 0 | F25: =SUM(F21:F24) -> 0 | G25: 0 | H25: 0 | I25: 0 | J25: 0 | K25: 0 | L25: 0 | M25: 0 | N25: 0 | O25: 0 | P25: 0 | Q25: 0 | R25: 0 | S25: 0
B27: 9.2. | E27: =S19+1 -> 2024 | F27: =E27+1 -> 2025 | G27: 2026 | H27: 2027 | I27: 2028 | J27: 2029 | K27: 2030 | L27: 2031 | M27: 2032 | N27: 2033 | O27: 2034 | P27: 2035 | Q27: 2036 | R27: 2037 | S27: 2038
B28: b
C29: =IF(C12="","",C12) -> Úspory aut čekajících na přejezdu | E29: =E12 -> 69603748.89 | F29: =F12 -> 70578201.38 | G29: 71566296.2 | H29: 72568224.34 | I29: 73584179.48 | J29: 74614358 | K29: 75136658.5 | L29: 75662615.11 | M29: 76192253.42 | N29: 76725599.19 | O29: 77262678.39 | P29: 77803517.14 | Q29: 78348141.76 | R29: 78896578.75 | S29: 79448854.8
C30: =IF(C13="","",C13) -> Úspory zraněných a mrtvých | E30: =E13 -> 57846341.78 | F30: 59003268.62 | G30: 60183333.99 | H30: 61387000.67 | I30: 62614740.68 | J30: 63867035.5 | K30: 64505705.85 | L30: 65150762.91 | M30: 65802270.54 | N30: 66460293.25 | O30: 67124896.18 | P30: 67796145.14 | Q30: 68474106.59 | R30: 69158847.66 | S30: 69850436.13
C31: =IF(C14="","",C14) ->  | E31: =E14 -> 0 | F31: 0 | G31: 0 | H31: 0 | I31: 0 | J31: 0 | K31: 0 | L31: 0 | M31: 0 | N31: 0 | O31: 0 | P31: 0 | Q31: 0 | R31: 0 | S31: 0
C32: =IF(C15="","",C15) ->  | E32: 0 | F32: 0 | G32: 0 | H32: 0 | I32: 0 | J32: 0 | K32: 0 | L32: 0 | M32: 0 | N32: 0 | O32: 0 | P32: 0 | Q32: 0 | R32: 0 | S32: 0
C33: =IF(C16="","",C16) ->  | E33: =SUM(E29:E32) -> 127450090.7 | F33: 129581470 | G33: 131749630.2 | H33: 133955225 | I33: 136198920.2 | J33: 138481393.5 | K33: 139642364.4 | L33: 140813378 | M33: 141994524 | N33: 143185892.4 | O33: 144387574.6 | P33: 145599662.3 | Q33: 146822248.3 | R33: 148055426.4 | S33: 149299290.9
C36: Výnosy/náklady (CZK) | D36: =D25 -> 2097217091
B39: Komentáře
B41: Mohou být zahrnuty i jiné přínosy a náklady dle konkrétního projektu. Zpracovatel uvede konkrétní vstupní hodnoty použité při výpočtu.
B45: Úspora času silniční dopravy zrušení úrovňového křížení
B49: Rok | C49: objem [oshod/rok] | D49: Úspory [Kč/rok] (CÚ 2008)
B52: 2024 | C52: 188831.9378
B53: =B52+1 -> 2025 | C53: 188831.9378
B54: 2026 | C54: 188831.9378
B55: 2027 | C55: 188831.9378
B56: 2028 | C56: 188831.9378
B57: 2029 | C57: 188831.9378
B58: 2030 | C58: 188831.9378
B59: 2031 | C59: 188831.9378
B60: 2032 | C60: 188831.9378
B61: 2033 | C61: 188831.9378
B62: 2034 | C62: 188831.9378
B63: 2035 | C63: 188831.9378
B64: 2036 | C64: 188831.9378
B65: 2037 | C65: 188831.9378
B66: 2038 | C66: 188831.9378
C69: Úrovňový přejezd km | D69: =10+25.9022/1000 -> 10.0259022
C70: Průměrné zdržení všech osob za hodinu [min] | D70: 507.1151625 | E70: smrt | F70: zranění
C71: Nehody (2007-2009 hmotná škoda; 2005 - 2010 smrtelná+zranění) | D71: =5+3 -> 8 | E71: 3
C72: Popis
C73: žst. Praha-Radotín, berounské zhlaví, přejezd v ul. Na Betonce. V souběhu se silniční komunikací je veden chodník po obou stranách. Silná frekvence pěších na vnitroměstské realci.
C75: Úrovňový přejezd km | D75: =11.5+23.4329/1000 -> 11.5234329
C76: Průměrné zdržení všech osob za hodinu [min] | D76: 754.0296552
C77: Nehody (2007-2009 hmotná škoda; 2005 - 2010 smrtelná+zranění) | D77: =2 -> 2
C78: Popis
C79: Přejezd sil. II/115 na hranicích hl. m. Prahy (konec Radotína směr Černošice).
C81: Úrovňový přejezd km | D81: =14.1-15.1999/1000 -> 14.0848001
C82: Průměrné zdržení všech osob za hodinu [min] | D82: 606.9663642
C83: Nehody (2007-2009 hmotná škoda; 2005 - 2010 smrtelná+zranění) | D83: =5+2+1 -> 8 | E83: 2 | F83: 1
C84: Popis
C85: přejezd se sil. II/115 u zast. Černošice. Uspořádání křižovatky a dopravní značení zajišťuje, aby vzidlo jedoucí po přejezdu bylo na hlavní a nedocházelo u něj k odbočení vlevo s nutností dávat přednost protijedoucím vozidlům.
C87: Úrovňový přejezd km | D87: =14.2+9.2459/1000 -> 14.2092459
C88: Průměrné zdržení všech osob za hodinu [min] | D88: 93.661302
C89: Nehody (2007-2009 hmotná škoda; 2005 - 2010 smrtelná+zranění) | D89: =1+1 -> 2 | E89: 1
C90: Popis
C91: přejezd za zast. Černošice, ul. Kazínská.
C93: Úrovňový přejezd km | D93: =15.6-11.4543/1000 -> 15.5885457
C94: Průměrné zdržení všech osob za hodinu [min] | D94: 35.83269825
C95: Nehody (2007-2009 hmotná škoda; 2005 - 2010 smrtelná+zranění) | D95: 1 | E95: 1
C96: Popis
C97: přejezd před zast. Černošice-Mokropsy.
C99: Úrovňový přejezd km | D99: =16+34.4784/1000 -> 16.0344784
C100: Průměrné zdržení všech osob za hodinu [min] | D100: 141.71568
C101: Nehody (2007-2009 hmotná škoda; 2005 - 2010 smrtelná+zranění) | D101: =2+1+1 -> 4 | E101: 1 | F101: 2
C102: Popis
C103: přejezd za zast. Černošice-Mokropsy, sil. III/1159. Potřebné odstupy hranic křižovatek jsou zajištěny úpravou hran příslušných komunikací.
C105: Úrovňový přejezd km | D105: =18.5+50.3571/1000 -> 18.5503571
C106: Průměrné zdržení všech osob za hodinu [min] | D106: 17.172276
C107: Nehody (2007-2009 hmotná škoda; 2005 - 2010 smrtelná+zranění) | D107: 3
C108: Popis
C109: přejezd místní komunikace za zast. Všenory. PZS bylo vybudováno v r.2007 v souladu s požadavkem na vzdálenost výstražníků od osy koleje dle ČSN 73 63 80.
C111: Úrovňový přejezd km | D111: =20-14.3443/1000 -> 19.9856557
C112: Průměrné zdržení všech osob za hodinu [min] | D112: 90.02124
C113: Nehody (2007-2009 hmotná škoda; 2005 - 2010 smrtelná+zranění) | D113: 2 | E113: 2
C114: Popis
C115: Dobřichovice, berounské zhlaví, ul. Všenorská. Prostorové poměry nedovolují zajistit požadavky na odstup hranic křižovatky od nebezpečného pásma přejezdu.
C117: Úrovňový přejezd km | D117: =20.5+16.3464/1000 -> 20.5163464
C118: Průměrné zdržení všech osob za hodinu [min] | D118: 302.458968
C119: Nehody (2007-2009 hmotná škoda; 2005 - 2010 smrtelná+zranění) | D119: =5+1 -> 6 | F119: 1
C120: Popis
C121: Dobřichovice, nájezd na silniční most, sil. III/11510. Již stávající dopravní značení s hlavní vedoucí z mostu přes řeku Berounku do ul. Tyršova zůstane zachováno. Toto uspořádání umožňuje každému vozidlu které se pohybuje po přejezdu tento přejezd bezpečně opustit.
C123: Úrovňový přejezd km | D123: =23.2+2.0659/1000 -> 23.2020659
C124: Průměrné zdržení všech osob za hodinu [min] | D124: 670.6486285
C125: Nehody (2007-2009 hmotná škoda; 2005 - 2010 smrtelná+zranění) | D125: 3 | E125: 2 | F125: 1
C126: Popis
C127: Řevnice, přejezd ve stanici, sil. II/115. Kolejiště stanice je navrženo tak, aby přejezd byl mimo prostor užitečné délky kolejí. Na straně vpravo tratě bude za přejezdem ještě před přilehlou křižovatkou pro směr jízdy na Dobřichovice osazena dopravní značka "zákaz odbočení vlevo". Objízdná trasa bude vedena ul. Pod drahou s napojením do ul. Pražská.
C129: Úrovňový přejezd km | D129: 30.469
C130: Průměrné zdržení všech osob za hodinu [min] | D130: 25.83
C131: Nehody (2007-2009 hmotná škoda; 2005 - 2010 smrtelná+zranění) | D131: 0
C132: Popis
C133: Přejezd lze rovněž ponechat. V rámci UTS bylo navrženo jeho úplné zrušení a převedení silniční dopravy na přejezd v km 29,399.
E134: =E71+E83+E89+E95+E125 -> 9 | F134: =F71+F83+F89+F95+F125 -> 2

Sheet 10 Ekonomická analýza
B2: 10.1. | C2: Ekonomická analýza (CZK) | E2: KF | F2: ='0 Úvod'!G19 -> 2009 | G2: =F2+1 -> 2010 | H2: 2011 | I2: 2012 | J2: 2013 | K2: 2014 | L2: 2015 | M2: 2016 | N2: 2017 | O2: 2018 | P2: 2019 | Q2: 2020 | R2: 2021 | S2: 2022 | T2: 2023
B3: a | D3: Celkem
C4: Celkem provozní náklady železnice - úspora | D4: =SUM(F4:T4,F21:T21) -> 8397125375 | E4: T3.3. | F4: =IF(F2<='0 Úvod'!$G$19+'0 Úvod'!$J$19-1,-'3 Provozní náklady železnice'!E47,0) -> 235984519.2 | G4: =IF(G2<='0 Úvod'!$G$19+'0 Úvod'!$J$19-1,-'3 Provozní náklady železnice'!F47,0) -> 83948347.22 | H4: =IF(H2<='0 Úvod'!$G$19+'0 Úvod'!$J$19-1,-'3 Provozní náklady železnice'!G47,0) -> 103866197 | I4: =IF(I2<='0 Úvod'!$G$19+'0 Úvod'!$J$19-1,-'3 Provozní náklady železnice'!H47,0) -> 1136415794 | J4: =IF(J2<='0 Úvod'!$G$19+'0 Úvod'!$J$19-1,-'3 Provozní náklady železnice'!I47,0) -> 210185668.7 | K4: =IF(K2<='0 Úvod'!$G$19+'0 Úvod'!$J$19-1,-'3 Provozní náklady železnice'!J47,0) -> 233666503.2 | L4: =IF(L2<='0 Úvod'!$G$19+'0 Úvod'!$J$19-1,-'3 Provozní náklady železnice'!K47,0) -> 116939238.9 | M4: =IF(M2<='0 Úvod'!$G$19+'0 Úvod'!$J$19-1,-'3 Provozní náklady železnice'!L47,0) -> 179343938 | N4: =IF(N2<='0 Úvod'!$G$19+'0 Úvod'!$J$19-1,-'3 Provozní náklady železnice'!M47,0) -> 230057509.4 | O4: =IF(O2<='0 Úvod'!$G$19+'0 Úvod'!$J$19-1,-'3 Provozní náklady železnice'!N47,0) -> 274453378.4 | P4: =IF(P2<='0 Úvod'!$G$19+'0 Úvod'!$J$19-1,-'3 Provozní náklady železnice'!O47,0) -> 386112568 | Q4: =IF(Q2<='0 Úvod'!$G$19+'0 Úvod'!$J$19-1,-'3 Provozní náklady železnice'!P47,0) -> 300233574.8 | R4: =IF(R2<='0 Úvod'!$G$19+'0 Úvod'!$J$19-1,-'3 Provozní náklady železnice'!Q47,0) -> 351041488.8 | S4: =IF(S2<='0 Úvod'!$G$19+'0 Úvod'!$J$19-1,-'3 Provozní náklady železnice'!R47,0) -> 406896395.1 | T4: =IF(T2<='0 Úvod'!$G$19+'0 Úvod'!$J$19-1,-'3 Provozní náklady železnice'!S47,0) -> 148432271.5
C5: Celkem úspory v silniční dopravě | D5: =SUM(F5:T5,F22:T22) -> 9114997416 | F5: =IF(F2<='0 Úvod'!$G$19+'0 Úvod'!$J$19-1,'4 Úspory v silniční dopravě'!E31,0) -> 0 | G5: =IF(G2<='0 Úvod'!$G$19+'0 Úvod'!$J$19-1,'4 Úspory v silniční dopravě'!F31,0) -> 0 | H5: =IF(H2<='0 Úvod'!$G$19+'0 Úvod'!$J$19-1,'4 Úspory v silniční dopravě'!G31,0) -> 0 | I5: =IF(I2<='0 Úvod'!$G$19+'0 Úvod'!$J$19-1,'4 Úspory v silniční dopravě'!H31,0) -> 0 | J5: =IF(J2<='0 Úvod'!$G$19+'0 Úvod'!$J$19-1,'4 Úspory v silniční dopravě'!I31,0) -> 0 | K5: =IF(K2<='0 Úvod'!$G$19+'0 Úvod'!$J$19-1,'4 Úspory v silniční dopravě'!J31,0) -> 0 | L5: =IF(L2<='0 Úvod'!$G$19+'0 Úvod'!$J$19-1,'4 Úspory v silniční dopravě'!K31,0) -> -2393994.264 | M5: =IF(M2<='0 Úvod'!$G$19+'0 Úvod'!$J$19-1,'4 Úspory v silniční dopravě'!L31,0) -> 4842296.259 | N5: =IF(N2<='0 Úvod'!$G$19+'0 Úvod'!$J$19-1,'4 Úspory v silniční dopravě'!M31,0) -> 2826169.689 | O5: =IF(O2<='0 Úvod'!$G$19+'0 Úvod'!$J$19-1,'4 Úspory v silniční dopravě'!N31,0) -> 10232962.4 | P5: =IF(P2<='0 Úvod'!$G$19+'0 Úvod'!$J$19-1,'4 Úspory v silniční dopravě'!O31,0) -> 20688791.99 | Q5: =IF(Q2<='0 Úvod'!$G$19+'0 Úvod'!$J$19-1,'4 Úspory v silniční dopravě'!P31,0) -> 30709399.21 | R5: =IF(R2<='0 Úvod'!$G$19+'0 Úvod'!$J$19-1,'4 Úspory v silniční dopravě'!Q31,0) -> 39086485.58 | S5: =IF(S2<='0 Úvod'!$G$19+'0 Úvod'!$J$19-1,'4 Úspory v silniční dopravě'!R31,0) -> 47746989.25 | T5: =IF(T2<='0 Úvod'!$G$19+'0 Úvod'!$J$19-1,'4 Úspory v silniční dopravě'!S31,0) -> 56339177.91
C6: Celkem úspory z cestovních dob | D6: 2.167076955e+10 | F6: =IF(F2<='0 Úvod'!$G$19+'0 Úvod'!$J$19-1,'5 Úspory z cestovních dob'!E58,0) -> 0 | G6: =IF(G2<='0 Úvod'!$G$19+'0 Úvod'!$J$19-1,'5 Úspory z cestovních dob'!F58,0) -> 0 | H6: =IF(H2<='0 Úvod'!$G$19+'0 Úvod'!$J$19-1,'5 Úspory z cestovních dob'!G58,0) -> 0 | I6: =IF(I2<='0 Úvod'!$G$19+'0 Úvod'!$J$19-1,'5 Úspory z cestovních dob'!H58,0) -> 0 | J6: =IF(J2<='0 Úvod'!$G$19+'0 Úvod'!$J$19-1,'5 Úspory z cestovních dob'!I58,0) -> 0 | K6: =IF(K2<='0 Úvod'!$G$19+'0 Úvod'!$J$19-1,'5 Úspory z cestovních dob'!J58,0) -> 0 | L6: =IF(L2<='0 Úvod'!$G$19+'0 Úvod'!$J$19-1,'5 Úspory z cestovních dob'!K58,0) -> 87974726.8 | M6: =IF(M2<='0 Úvod'!$G$19+'0 Úvod'!$J$19-1,'5 Úspory z cestovních dob'!L58,0) -> 95246501.93 | N6: =IF(N2<='0 Úvod'!$G$19+'0 Úvod'!$J$19-1,'5 Úspory z cestovních dob'!M58,0) -> 99751807.92 | O6: =IF(O2<='0 Úvod'!$G$19+'0 Úvod'!$J$19-1,'5 Úspory z cestovních dob'!N58,0) -> 103309630.1 | P6: =IF(P2<='0 Úvod'!$G$19+'0 Úvod'!$J$19-1,'5 Úspory z cestovních dob'!O58,0) -> 287522480.6 | Q6: =IF(Q2<='0 Úvod'!$G$19+'0 Úvod'!$J$19-1,'5 Úspory z cestovních dob'!P58,0) -> 296056824.2 | R6: =IF(R2<='0 Úvod'!$G$19+'0 Úvod'!$J$19-1,'5 Úspory z cestovních dob'!Q58,0) -> 337636502.2 | S6: =IF(S2<='0 Úvod'!$G$19+'0 Úvod'!$J$19-1,'5 Úspory z cestovních dob'!R58,0) -> 349138978.2 | T6: =IF(T2<='0 Úvod'!$G$19+'0 Úvod'!$J$19-1,'5 Úspory z cestovních dob'!S58,0) -> 384765552.9
C7: Celkem externality (vč. emisí ze železniční dopravy) | D7: 1.106802606e+10 | F7: =IF(F2<='0 Úvod'!$G$19+'0 Úvod'!$J$19-1,'6 Externality'!E78+'7 Emise ze železniční dopravy'!E42,0) -> 0 | G7: =IF(G2<='0 Úvod'!$G$19+'0 Úvod'!$J$19-1,'6 Externality'!F78+'7 Emise ze železniční dopravy'!F42,0) -> 0 | H7: =IF(H2<='0 Úvod'!$G$19+'0 Úvod'!$J$19-1,'6 Externality'!G78+'7 Emise ze železniční dopravy'!G42,0) -> 0 | I7: =IF(I2<='0 Úvod'!$G$19+'0 Úvod'!$J$19-1,'6 Externality'!H78+'7 Emise ze železniční dopravy'!H42,0) -> 0 | J7: =IF(J2<='0 Úvod'!$G$19+'0 Úvod'!$J$19-1,'6 Externality'!I78+'7 Emise ze železniční dopravy'!I42,0) -> 0 | K7: =IF(K2<='0 Úvod'!$G$19+'0 Úvod'!$J$19-1,'6 Externality'!J78+'7 Emise ze železniční dopravy'!J42,0) -> 0 | L7: =IF(L2<='0 Úvod'!$G$19+'0 Úvod'!$J$19-1,'6 Externality'!K78+'7 Emise ze železniční dopravy'!K42,0) -> 464141.5033 | M7: =IF(M2<='0 Úvod'!$G$19+'0 Úvod'!$J$19-1,'6 Externality'!L78+'7 Emise ze železniční dopravy'!L42,0) -> 5437609.724 | N7: =IF(N2<='0 Úvod'!$G$19+'0 Úvod'!$J$19-1,'6 Externality'!M78+'7 Emise ze železniční dopravy'!M42,0) -> 1007724.734 | O7: =IF(O2<='0 Úvod'!$G$19+'0 Úvod'!$J$19-1,'6 Externality'!N78+'7 Emise ze železniční dopravy'!N42,0) -> 6453455.278 | P7: =IF(P2<='0 Úvod'!$G$19+'0 Úvod'!$J$19-1,'6 Externality'!O78+'7 Emise ze železniční dopravy'!O42,0) -> 40389798.63 | Q7: =IF(Q2<='0 Úvod'!$G$19+'0 Úvod'!$J$19-1,'6 Externality'!P78+'7 Emise ze železniční dopravy'!P42,0) -> 49945033.28 | R7: =IF(R2<='0 Úvod'!$G$19+'0 Úvod'!$J$19-1,'6 Externality'!Q78+'7 Emise ze železniční dopravy'!Q42,0) -> 58191094.45 | S7: =IF(S2<='0 Úvod'!$G$19+'0 Úvod'!$J$19-1,'6 Externality'!R78+'7 Emise ze železniční dopravy'!R42,0) -> 67051499.25 | T7: =IF(T2<='0 Úvod'!$G$19+'0 Úvod'!$J$19-1,'6 Externality'!S78+'7 Emise ze železniční dopravy'!S42,0) -> 76166551.95
C8: Celkem zvýšení bezpečnosti železniční dopravy | D8: 0 | F8: =IF(F2<='0 Úvod'!$G$19+'0 Úvod'!$J$19-1,'8 Bezpečnost železniční dopravy'!E25,0) -> 0 | G8: =IF(G2<='0 Úvod'!$G$19+'0 Úvod'!$J$19-1,'8 Bezpečnost železniční dopravy'!F25,0) -> 0 | H8: =IF(H2<='0 Úvod'!$G$19+'0 Úvod'!$J$19-1,'8 Bezpečnost železniční dopravy'!G25,0) -> 0 | I8: =IF(I2<='0 Úvod'!$G$19+'0 Úvod'!$J$19-1,'8 Bezpečnost železniční dopravy'!H25,0) -> 0 | J8: =IF(J2<='0 Úvod'!$G$19+'0 Úvod'!$J$19-1,'8 Bezpečnost železniční dopravy'!I25,0) -> 0 | K8: =IF(K2<='0 Úvod'!$G$19+'0 Úvod'!$J$19-1,'8 Bezpečnost železniční dopravy'!J25,0) -> 0 | L8: =IF(L2<='0 Úvod'!$G$19+'0 Úvod'!$J$19-1,'8 Bezpečnost železniční dopravy'!K25,0) -> 0 | M8: =IF(M2<='0 Úvod'!$G$19+'0 Úvod'!$J$19-1,'8 Bezpečnost železniční dopravy'!L25,0) -> 0 | N8: =IF(N2<='0 Úvod'!$G$19+'0 Úvod'!$J$19-1,'8 Bezpečnost železniční dopravy'!M25,0) -> 0 | O8: =IF(O2<='0 Úvod'!$G$19+'0 Úvod'!$J$19-1,'8 Bezpečnost železniční dopravy'!N25,0) -> 0 | P8: =IF(P2<='0 Úvod'!$G$19+'0 Úvod'!$J$19-1,'8 Bezpečnost železniční dopravy'!O25,0) -> 0 | Q8: =IF(Q2<='0 Úvod'!$G$19+'0 Úvod'!$J$19-1,'8 Bezpečnost železniční dopravy'!P25,0) -> 0 | R8: =IF(R2<='0 Úvod'!$G$19+'0 Úvod'!$J$19-1,'8 Bezpečnost železniční dopravy'!Q25,0) -> 0 | S8: =IF(S2<='0 Úvod'!$G$19+'0 Úvod'!$J$19-1,'8 Bezpečnost železniční dopravy'!R25,0) -> 0 | T8: =IF(T2<='0 Úvod'!$G$19+'0 Úvod'!$J$19-1,'8 Bezpečnost železniční dopravy'!S25,0) -> 0
C9: Ostatní přínosy | D9: 2097217091
C10: Celkové příjmy | D10: =SUM(D4:D9) -> 5.234813549e+10 | F10: =SUM(F4:F9) -> 235984519.2 | G10: 83948347.22 | H10: 103866197 | I10: 1136415794 | J10: 210185668.7 | K10: 233666503.2 | L10: 202984113 | M10: 284870346 | N10: 333643211.8 | O10: 394449426.2 | P10: 734713639.2 | Q10: 676944831.5 | R10: 785955571 | S10: 870833861.8 | T10: 665703554.3
C11: Ostatní náklady | D11: =SUM(F11:T11,F28:T28) -> 0
C12: Celkem investiční náklady bez rezervy | D12: =SUM(F12:T12,F29:T29) -> 2.453382656e+10 | E12: 0.93 | F12: ='1 Celkové investiční náklady'!G11*$E$12 -> 1694274542 | G12: ='1 Celkové investiční náklady'!H11*$E$12 -> 2707491525 | H12: ='1 Celkové investiční náklady'!I11*$E$12 -> 2428188403 | I12: ='1 Celkové investiční náklady'!J11*$E$12 -> 1396909857 | J12: ='1 Celkové investiční náklady'!K11*$E$12 -> 609516434.5 | K12: ='1 Celkové investiční náklady'!L11*$E$12 -> 646650059.8 | L12: ='1 Celkové investiční náklady'!M11*$E$12 -> 1251567859 | M12: ='1 Celkové investiční náklady'!N11*$E$12 -> 1161111704 | N12: ='1 Celkové investiční náklady'!O11*$E$12 -> 2521240384 | O12: ='1 Celkové investiční náklady'!P11*$E$12 -> 1979091593 | P12: ='1 Celkové investiční náklady'!Q11*$E$12 -> 2671963319 | Q12: ='1 Celkové investiční náklady'!R11*$E$12 -> 1994127510 | R12: ='1 Celkové investiční náklady'!S11*$E$12 -> 1194452956 | S12: ='1 Celkové investiční náklady'!T11*$E$12 -> 1266102882 | T12: ='1 Celkové investiční náklady'!U11*$E$12 -> 1011137533
C13: Zůstatková hodnota (záporná) | D13: -5.145569947e+10 | F13: =IF(F2='0 Úvod'!$G$19+'0 Úvod'!$J$19-1,-1*'2 Zůstatková hodnota'!$I$8,0) -> 0 | G13: =IF(G2='0 Úvod'!$G$19+'0 Úvod'!$J$19-1,-1*'2 Zůstatková hodnota'!$I$8,0) -> 0 | H13: =IF(H2='0 Úvod'!$G$19+'0 Úvod'!$J$19-1,-1*'2 Zůstatková hodnota'!$I$8,0) -> 0 | I13: =IF(I2='0 Úvod'!$G$19+'0 Úvod'!$J$19-1,-1*'2 Zůstatková hodnota'!$I$8,0) -> 0 | J13: =IF(J2='0 Úvod'!$G$19+'0 Úvod'!$J$19-1,-1*'2 Zůstatková hodnota'!$I$8,0) -> 0 | K13: =IF(K2='0 Úvod'!$G$19+'0 Úvod'!$J$19-1,-1*'2 Zůstatková hodnota'!$I$8,0) -> 0 | L13: =IF(L2='0 Úvod'!$G$19+'0 Úvod'!$J$19-1,-1*'2 Zůstatková hodnota'!$I$8,0) -> 0 | M13: =IF(M2='0 Úvod'!$G$19+'0 Úvod'!$J$19-1,-1*'2 Zůstatková hodnota'!$I$8,0) -> 0 | N13: =IF(N2='0 Úvod'!$G$19+'0 Úvod'!$J$19-1,-1*'2 Zůstatková hodnota'!$I$8,0) -> 0 | O13: =IF(O2='0 Úvod'!$G$19+'0 Úvod'!$J$19-1,-1*'2 Zůstatková hodnota'!$I$8,0) -> 0 | P13: =IF(P2='0 Úvod'!$G$19+'0 Úvod'!$J$19-1,-1*'2 Zůstatková hodnota'!$I$8,0) -> 0 | Q13: =IF(Q2='0 Úvod'!$G$19+'0 Úvod'!$J$19-1,-1*'2 Zůstatková hodnota'!$I$8,0) -> 0 | R13: =IF(R2='0 Úvod'!$G$19+'0 Úvod'!$J$19-1,-1*'2 Zůstatková hodnota'!$I$8,0) -> 0 | S13: =IF(S2='0 Úvod'!$G$19+'0 Úvod'!$J$19-1,-1*'2 Zůstatková hodnota'!$I$8,0) -> 0 | T13: =IF(T2='0 Úvod'!$G$19+'0 Úvod'!$J$19-1,-1*'2 Zůstatková hodnota'!$I$8,0) -> 0
C14: Celkové náklady | D14: =SUM(D11:D13) -> -2.692187291e+10 | F14: =SUM(F11:F13) -> 1694274542 | G14: 2707491525 | H14: 2428188403 | I14: 1396909857 | J14: 609516434.5 | K14: 646650059.8 | L14: 1251567859 | M14: 1161111704 | N14: 2521240384 | O14: 1979091593 | P14: 2671963319 | Q14: 1994127510 | R14: 1194452956 | S14: 1266102882 | T14: 1011137533
C15: Cash Flow | D15: =SUM(F15:T15,F32:T32) -> 7.92700084e+10 | F15: =F10-F14 -> -1458290023 | G15: -2623543178 | H15: -2324322206 | I15: -260494063.6 | J15: -399330765.9 | K15: -412983556.5 | L15: -1048583746 | M15: -876241358.1 | N15: -2187597172 | O15: -1584642166 | P15: -1937249680 | Q15: -1317182678 | R15: -408497385.3 | S15: -395269020.4 | T15: -345433979.1
C16: Diskontní sazba | D16: ='0 Úvod'!D21 -> 0.05 | F16: 1 | G16: =F16/(1+$D$16) -> 0.9523809524 | H16: =G16/(1+$D$16) -> 0.9070294785 | I16: 0.8638375985 | J16: 0.8227024748 | K16: 0.7835261665 | L16: 0.7462153966 | M16: 0.7106813301 | N16: 0.676839362 | O16: 0.6446089162 | P16: 0.6139132535 | Q16: 0.5846792891 | R16: 0.5568374182 | S16: 0.5303213506 | T16: 0.505067953
C17: Diskontní cash flow | D17: =SUM(F17:T17,F34:T34) -> 1.467581987e+10 | F17: =F15*F16 -> -1458290023 | G17: =G15*G16 -> -2498612551 | H17: -2108228758 | I17: -225024566.3 | J17: -328530409.3 | K17: -323583422.9 | L17: -782469336.1 | M17: -622728373.9 | N17: -1480651874 | O17: -1021474470 | P17: -1189303254 | Q17: -770129432 | R17: -227466629.3 | S17: -209619600.8 | T17: -174467632.7
F18: =IF(F2>='0 Úvod'!$G$21,F4,0) -> 0 | G18: =IF(G2>='0 Úvod'!$G$21,G4,0) -> 0 | H18: =IF(H2>='0 Úvod'!$G$21,H4,0) -> 0 | I18: =IF(I2>='0 Úvod'!$G$21,I4,0) -> 0 | J18: =IF(J2>='0 Úvod'!$G$21,J4,0) -> 0 | K18: =IF(K2>='0 Úvod'!$G$21,K4,0) -> 0 | L18: =IF(L2>='0 Úvod'!$G$21,L4,0) -> 0 | M18: =IF(M2>='0 Úvod'!$G$21,M4,0) -> 0 | N18: =IF(N2>='0 Úvod'!$G$21,N4,0) -> 0 | O18: =IF(O2>='0 Úvod'!$G$21,O4,0) -> 0 | P18: =IF(P2>='0 Úvod'!$G$21,P4,0) -> 0 | Q18: =IF(Q2>='0 Úvod'!$G$21,Q4,0) -> 0 | R18: =IF(R2>='0 Úvod'!$G$21,R4,0) -> 0 | S18: =IF(S2>='0 Úvod'!$G$21,S4,0) -> 0 | T18: =IF(T2>='0 Úvod'!$G$21,T4,0) -> 0
B19: =B2 -> 10.1. | C19: =C2 -> Ekonomická analýza (CZK) | E19: KF | F19: =T2+1 -> 2024 | G19: =F19+1 -> 2025 | H19: 2026 | I19: 2027 | J19: 2028 | K19: 2029 | L19: 2030 | M19: 2031 | N19: 2032 | O19: 2033 | P19: 2034 | Q19: 2035 | R19: 2036 | S19: 2037 | T19: 2038
B20: b
C21: =C4 -> Celkem provozní náklady železnice - úspora | F21: =IF(F19<='0 Úvod'!$G$19+'0 Úvod'!$J$19-1,-'3 Provozní náklady železnice'!E56,0) -> 850275935.9 | G21: =IF(G19<='0 Úvod'!$G$19+'0 Úvod'!$J$19-1,-'3 Provozní náklady železnice'!F56,0) -> 582065089.1 | H21: =IF(H19<='0 Úvod'!$G$19+'0 Úvod'!$J$19-1,-'3 Provozní náklady železnice'!G56,0) -> 78401736.88 | I21: =IF(I19<='0 Úvod'!$G$19+'0 Úvod'!$J$19-1,-'3 Provozní náklady železnice'!H56,0) -> 119930566.4 | J21: =IF(J19<='0 Úvod'!$G$19+'0 Úvod'!$J$19-1,-'3 Provozní náklady železnice'!I56,0) -> 110720025.7 | K21: =IF(K19<='0 Úvod'!$G$19+'0 Úvod'!$J$19-1,-'3 Provozní náklady železnice'!J56,0) -> 287941179.5 | L21: =IF(L19<='0 Úvod'!$G$19+'0 Úvod'!$J$19-1,-'3 Provozní náklady železnice'!K56,0) -> 152539301.7 | M21: =IF(M19<='0 Úvod'!$G$19+'0 Úvod'!$J$19-1,-'3 Provozní náklady železnice'!L56,0) -> 199392749 | N21: =IF(N19<='0 Úvod'!$G$19+'0 Úvod'!$J$19-1,-'3 Provozní náklady železnice'!M56,0) -> 294376633.2 | O21: =IF(O19<='0 Úvod'!$G$19+'0 Úvod'!$J$19-1,-'3 Provozní náklady železnice'!N56,0) -> 222567067.4 | P21: =IF(P19<='0 Úvod'!$G$19+'0 Úvod'!$J$19-1,-'3 Provozní náklady železnice'!O56,0) -> 206799619.2 | Q21: =IF(Q19<='0 Úvod'!$G$19+'0 Úvod'!$J$19-1,-'3 Provozní náklady železnice'!P56,0) -> 161752088.9 | R21: =IF(R19<='0 Úvod'!$G$19+'0 Úvod'!$J$19-1,-'3 Provozní náklady železnice'!Q56,0) -> 178540553.9 | S21: =IF(S19<='0 Úvod'!$G$19+'0 Úvod'!$J$19-1,-'3 Provozní náklady železnice'!R56,0) -> 260513087.6 | T21: =IF(T19<='0 Úvod'!$G$19+'0 Úvod'!$J$19-1,-'3 Provozní náklady železnice'!S56,0) -> 293732348.2
C22: Celkem úspory v silniční dopravě | F22: =IF(F19<='0 Úvod'!$G$19+'0 Úvod'!$J$19-1,'4 Úspory v silniční dopravě'!E41,0) -> 455793607.9 | G22: =IF(G19<='0 Úvod'!$G$19+'0 Úvod'!$J$19-1,'4 Úspory v silniční dopravě'!F41,0) -> 536664387.2 | H22: =IF(H19<='0 Úvod'!$G$19+'0 Úvod'!$J$19-1,'4 Úspory v silniční dopravě'!G41,0) -> 562843016.3 | I22: =IF(I19<='0 Úvod'!$G$19+'0 Úvod'!$J$19-1,'4 Úspory v silniční dopravě'!H41,0) -> 570788809.9 | J22: =IF(J19<='0 Úvod'!$G$19+'0 Úvod'!$J$19-1,'4 Úspory v silniční dopravě'!I41,0) -> 581865369.9 | K22: =IF(K19<='0 Úvod'!$G$19+'0 Úvod'!$J$19-1,'4 Úspory v silniční dopravě'!J41,0) -> 590333924.4 | L22: =IF(L19<='0 Úvod'!$G$19+'0 Úvod'!$J$19-1,'4 Úspory v silniční dopravě'!K41,0) -> 597894451.6 | M22: =IF(M19<='0 Úvod'!$G$19+'0 Úvod'!$J$19-1,'4 Úspory v silniční dopravě'!L41,0) -> 604858654.9 | N22: =IF(N19<='0 Úvod'!$G$19+'0 Úvod'!$J$19-1,'4 Úspory v silniční dopravě'!M41,0) -> 611377809.9 | O22: =IF(O19<='0 Úvod'!$G$19+'0 Úvod'!$J$19-1,'4 Úspory v silniční dopravě'!N41,0) -> 617594882.4 | P22: =IF(P19<='0 Úvod'!$G$19+'0 Úvod'!$J$19-1,'4 Úspory v silniční dopravě'!O41,0) -> 623524941.4 | Q22: =IF(Q19<='0 Úvod'!$G$19+'0 Úvod'!$J$19-1,'4 Úspory v silniční dopravě'!P41,0) -> 629220848.7 | R22: =IF(R19<='0 Úvod'!$G$19+'0 Úvod'!$J$19-1,'4 Úspory v silniční dopravě'!Q41,0) -> 635113956.6 | S22: =IF(S19<='0 Úvod'!$G$19+'0 Úvod'!$J$19-1,'4 Úspory v silniční dopravě'!R41,0) -> 640795698.5 | T22: =IF(T19<='0 Úvod'!$G$19+'0 Úvod'!$J$19-1,'4 Úspory v silniční dopravě'!S41,0) -> 646248778.5
C23: Celkem úspory z cestovních dob | F23: =IF(F19<='0 Úvod'!$G$19+'0 Úvod'!$J$19-1,'5 Úspory z cestovních dob'!E65,0) -> 819550490.6 | G23: =IF(G19<='0 Úvod'!$G$19+'0 Úvod'!$J$19-1,'5 Úspory z cestovních dob'!F65,0) -> 991258170.5 | H23: =IF(H19<='0 Úvod'!$G$19+'0 Úvod'!$J$19-1,'5 Úspory z cestovních dob'!G65,0) -> 1089927208 | I23: =IF(I19<='0 Úvod'!$G$19+'0 Úvod'!$J$19-1,'5 Úspory z cestovních dob'!H65,0) -> 1148154671 | J23: =IF(J19<='0 Úvod'!$G$19+'0 Úvod'!$J$19-1,'5 Úspory z cestovních dob'!I65,0) -> 1218556939 | K23: =IF(K19<='0 Úvod'!$G$19+'0 Úvod'!$J$19-1,'5 Úspory z cestovních dob'!J65,0) -> 1289118492 | L23: =IF(L19<='0 Úvod'!$G$19+'0 Úvod'!$J$19-1,'5 Úspory z cestovních dob'!K65,0) -> 1397536204 | M23: =IF(M19<='0 Úvod'!$G$19+'0 Úvod'!$J$19-1,'5 Úspory z cestovních dob'!L65,0) -> 1412771229 | N23: =IF(N19<='0 Úvod'!$G$19+'0 Úvod'!$J$19-1,'5 Úspory z cestovních dob'!M65,0) -> 1427314333 | O23: =IF(O19<='0 Úvod'!$G$19+'0 Úvod'!$J$19-1,'5 Úspory z cestovních dob'!N65,0) -> 1441210681 | P23: =IF(P19<='0 Úvod'!$G$19+'0 Úvod'!$J$19-1,'5 Úspory z cestovních dob'!O65,0) -> 1454451422 | Q23: =IF(Q19<='0 Úvod'!$G$19+'0 Úvod'!$J$19-1,'5 Úspory z cestovních dob'!P65,0) -> 1466870059 | R23: =IF(R19<='0 Úvod'!$G$19+'0 Úvod'!$J$19-1,'5 Úspory z cestovních dob'!Q65,0) -> 1479279487 | S23: =IF(S19<='0 Úvod'!$G$19+'0 Úvod'!$J$19-1,'5 Úspory z cestovních dob'!R65,0) -> 1490957093 | T23: =IF(T19<='0 Úvod'!$G$19+'0 Úvod'!$J$19-1,'5 Úspory z cestovních dob'!S65,0) -> 1502410072
C24: Celkem externality (vč. emisí ze železniční dopravy) | F24: =IF(F19<='0 Úvod'!$G$19+'0 Úvod'!$J$19-1,'6 Externality'!E90+'7 Emise ze železniční dopravy'!E50,0) -> 487887449.7 | G24: =IF(G19<='0 Úvod'!$G$19+'0 Úvod'!$J$19-1,'6 Externality'!F90+'7 Emise ze železniční dopravy'!F50,0) -> 593459742.3 | H24: =IF(H19<='0 Úvod'!$G$19+'0 Úvod'!$J$19-1,'6 Externality'!G90+'7 Emise ze železniční dopravy'!G50,0) -> 636592439.9 | I24: =IF(I19<='0 Úvod'!$G$19+'0 Úvod'!$J$19-1,'6 Externality'!H90+'7 Emise ze železniční dopravy'!H50,0) -> 657549203.6 | J24: =IF(J19<='0 Úvod'!$G$19+'0 Úvod'!$J$19-1,'6 Externality'!I90+'7 Emise ze železniční dopravy'!I50,0) -> 682791158.9 | K24: =IF(K19<='0 Úvod'!$G$19+'0 Úvod'!$J$19-1,'6 Externality'!J90+'7 Emise ze železniční dopravy'!J50,0) -> 705704913.4 | L24: =IF(L19<='0 Úvod'!$G$19+'0 Úvod'!$J$19-1,'6 Externality'!K90+'7 Emise ze železniční dopravy'!K50,0) -> 720907578.5 | M24: =IF(M19<='0 Úvod'!$G$19+'0 Úvod'!$J$19-1,'6 Externality'!L90+'7 Emise ze železniční dopravy'!L50,0) -> 735568944.4 | N24: =IF(N19<='0 Úvod'!$G$19+'0 Úvod'!$J$19-1,'6 Externality'!M90+'7 Emise ze železniční dopravy'!M50,0) -> 749854506.1 | O24: =IF(O19<='0 Úvod'!$G$19+'0 Úvod'!$J$19-1,'6 Externality'!N90+'7 Emise ze železniční dopravy'!N50,0) -> 763926698.4 | P24: =IF(P19<='0 Úvod'!$G$19+'0 Úvod'!$J$19-1,'6 Externality'!O90+'7 Emise ze železniční dopravy'!O50,0) -> 777794023.7 | Q24: =IF(Q19<='0 Úvod'!$G$19+'0 Úvod'!$J$19-1,'6 Externality'!P90+'7 Emise ze železniční dopravy'!P50,0) -> 791513013.1 | R24: =IF(R19<='0 Úvod'!$G$19+'0 Úvod'!$J$19-1,'6 Externality'!Q90+'7 Emise ze železniční dopravy'!Q50,0) -> 805706620.4 | S24: =IF(S19<='0 Úvod'!$G$19+'0 Úvod'!$J$19-1,'6 Externality'!R90+'7 Emise ze železniční dopravy'!R50,0) -> 819839363.8 | T24: =IF(T19<='0 Úvod'!$G$19+'0 Úvod'!$J$19-1,'6 Externality'!S90+'7 Emise ze železniční dopravy'!S50,0) -> 833823490.5
C25: Celkem zvýšení bezpečnosti železniční dopravy | F25: =IF(F19<='0 Úvod'!$G$19+'0 Úvod'!$J$19-1,'8 Bezpečnost železniční dopravy'!E33,0) -> 0 | G25: =IF(G19<='0 Úvod'!$G$19+'0 Úvod'!$J$19-1,'8 Bezpečnost železniční dopravy'!F33,0) -> 0 | H25: =IF(H19<='0 Úvod'!$G$19+'0 Úvod'!$J$19-1,'8 Bezpečnost železniční dopravy'!G33,0) -> 0 | I25: =IF(I19<='0 Úvod'!$G$19+'0 Úvod'!$J$19-1,'8 Bezpečnost železniční dopravy'!H33,0) -> 0 | J25: =IF(J19<='0 Úvod'!$G$19+'0 Úvod'!$J$19-1,'8 Bezpečnost železniční dopravy'!I33,0) -> 0 | K25: =IF(K19<='0 Úvod'!$G$19+'0 Úvod'!$J$19-1,'8 Bezpečnost železniční dopravy'!J33,0) -> 0 | L25: =IF(L19<='0 Úvod'!$G$19+'0 Úvod'!$J$19-1,'8 Bezpečnost železniční dopravy'!K33,0) -> 0 | M25: =IF(M19<='0 Úvod'!$G$19+'0 Úvod'!$J$19-1,'8 Bezpečnost železniční dopravy'!L33,0) -> 0 | N25: =IF(N19<='0 Úvod'!$G$19+'0 Úvod'!$J$19-1,'8 Bezpečnost železniční dopravy'!M33,0) -> 0 | O25: =IF(O19<='0 Úvod'!$G$19+'0 Úvod'!$J$19-1,'8 Bezpečnost železniční dopravy'!N33,0) -> 0 | P25: =IF(P19<='0 Úvod'!$G$19+'0 Úvod'!$J$19-1,'8 Bezpečnost železniční dopravy'!O33,0) -> 0 | Q25: =IF(Q19<='0 Úvod'!$G$19+'0 Úvod'!$J$19-1,'8 Bezpečnost železniční dopravy'!P33,0) -> 0 | R25: =IF(R19<='0 Úvod'!$G$19+'0 Úvod'!$J$19-1,'8 Bezpečnost železniční dopravy'!Q33,0) -> 0 | S25: =IF(S19<='0 Úvod'!$G$19+'0 Úvod'!$J$19-1,'8 Bezpečnost železniční dopravy'!R33,0) -> 0 | T25: =IF(T19<='0 Úvod'!$G$19+'0 Úvod'!$J$19-1,'8 Bezpečnost železniční dopravy'!S33,0) -> 0
C26: Ostatní přínosy | F26: ='9 Ostatní příjmy či náklady'!E33 -> 127450090.7 | G26: ='9 Ostatní příjmy či náklady'!F33 -> 129581470 | H26: ='9 Ostatní příjmy či náklady'!G33 -> 131749630.2 | I26: ='9 Ostatní příjmy či náklady'!H33 -> 133955225 | J26: ='9 Ostatní příjmy či náklady'!I33 -> 136198920.2 | K26: ='9 Ostatní příjmy či náklady'!J33 -> 138481393.5 | L26: ='9 Ostatní příjmy či náklady'!K33 -> 139642364.4 | M26: ='9 Ostatní příjmy či náklady'!L33 -> 140813378 | N26: ='9 Ostatní příjmy či náklady'!M33 -> 141994524 | O26: ='9 Ostatní příjmy či náklady'!N33 -> 143185892.4 | P26: ='9 Ostatní příjmy či náklady'!O33 -> 144387574.6 | Q26: ='9 Ostatní příjmy či náklady'!P33 -> 145599662.3 | R26: ='9 Ostatní příjmy či náklady'!Q33 -> 146822248.3 | S26: ='9 Ostatní příjmy či náklady'!R33 -> 148055426.4 | T26: ='9 Ostatní příjmy či náklady'!S33 -> 149299290.9
C27: Celkové příjmy | F27: =SUM(F21:F26) -> 2740957575 | G27: =SUM(G21:G26) -> 2833028859 | H27: 2499514031 | I27: 2630378475 | J27: 2730132414 | K27: 3011579903 | L27: 3008519900 | M27: 3093404955 | N27: 3224917806 | O27: 3188485221 | P27: 3206957581 | Q27: 3194955672 | R27: 3245462866 | S27: 3360160670 | T27: 3425513980
C28: =C11 -> Ostatní náklady
C29: Celkem investiční náklady bez rezervy | F29: ='1 Celkové investiční náklady'!G26*$E$12 -> 0 | G29: ='1 Celkové investiční náklady'!H26*$E$12 -> 0 | H29: ='1 Celkové investiční náklady'!I26*$E$12 -> 0 | I29: ='1 Celkové investiční náklady'!J26*$E$12 -> 0 | J29: ='1 Celkové investiční náklady'!K26*$E$12 -> 0 | K29: ='1 Celkové investiční náklady'!L26*$E$12 -> 0 | L29: ='1 Celkové investiční náklady'!M26*$E$12 -> 0 | M29: ='1 Celkové investiční náklady'!N26*$E$12 -> 0 | N29: ='1 Celkové investiční náklady'!O26*$E$12 -> 0 | O29: ='1 Celkové investiční náklady'!P26*$E$12 -> 0 | P29: ='1 Celkové investiční náklady'!Q26*$E$12 -> 0 | Q29: ='1 Celkové investiční náklady'!R26*$E$12 -> 0 | R29: ='1 Celkové investiční náklady'!S26*$E$12 -> 0 | S29: ='1 Celkové investiční náklady'!T26*$E$12 -> 0 | T29: ='1 Celkové investiční náklady'!U26*$E$12 -> 0
C30: Zůstatková hodnota (záporná) | F30: =IF(F19='0 Úvod'!$G$19+'0 Úvod'!$J$19-1,-1*'2 Zůstatková hodnota'!$I$8,0) -> 0 | G30: =IF(G19='0 Úvod'!$G$19+'0 Úvod'!$J$19-1,-1*'2 Zůstatková hodnota'!$I$8,0) -> 0 | H30: =IF(H19='0 Úvod'!$G$19+'0 Úvod'!$J$19-1,-1*'2 Zůstatková hodnota'!$I$8,0) -> 0 | I30: =IF(I19='0 Úvod'!$G$19+'0 Úvod'!$J$19-1,-1*'2 Zůstatková hodnota'!$I$8,0) -> 0 | J30: =IF(J19='0 Úvod'!$G$19+'0 Úvod'!$J$19-1,-1*'2 Zůstatková hodnota'!$I$8,0) -> 0 | K30: =IF(K19='0 Úvod'!$G$19+'0 Úvod'!$J$19-1,-1*'2 Zůstatková hodnota'!$I$8,0) -> 0 | L30: =IF(L19='0 Úvod'!$G$19+'0 Úvod'!$J$19-1,-1*'2 Zůstatková hodnota'!$I$8,0) -> 0 | M30: =IF(M19='0 Úvod'!$G$19+'0 Úvod'!$J$19-1,-1*'2 Zůstatková hodnota'!$I$8,0) -> 0 | N30: =IF(N19='0 Úvod'!$G$19+'0 Úvod'!$J$19-1,-1*'2 Zůstatková hodnota'!$I$8,0) -> 0 | O30: =IF(O19='0 Úvod'!$G$19+'0 Úvod'!$J$19-1,-1*'2 Zůstatková hodnota'!$I$8,0) -> 0 | P30: =IF(P19='0 Úvod'!$G$19+'0 Úvod'!$J$19-1,-1*'2 Zůstatková hodnota'!$I$8,0) -> 0 | Q30: =IF(Q19='0 Úvod'!$G$19+'0 Úvod'!$J$19-1,-1*'2 Zůstatková hodnota'!$I$8,0) -> 0 | R30: =IF(R19='0 Úvod'!$G$19+'0 Úvod'!$J$19-1,-1*'2 Zůstatková hodnota'!$I$8,0) -> 0 | S30: =IF(S19='0 Úvod'!$G$19+'0 Úvod'!$J$19-1,-1*'2 Zůstatková hodnota'!$I$8,0) -> 0 | T30: =IF(T19='0 Úvod'!$G$19+'0 Úvod'!$J$19-1,-1*'2 Zůstatková hodnota'!$I$8,0) -> -5.145569947e+10
C31: Celkové náklady | F31: =SUM(F28:F30) -> 0 | G31: =SUM(G28:G30) -> 0 | H31: 0 | I31: 0 | J31: 0 | K31: 0 | L31: 0 | M31: 0 | N31: 0 | O31: 0 | P31: 0 | Q31: 0 | R31: 0 | S31: 0 | T31: -5.145569947e+10
C32: Cash Flow | F32: =F27-F31 -> 2740957575 | G32: 2833028859 | H32: 2499514031 | I32: 2630378475 | J32: 2730132414 | K32: 3011579903 | L32: 3008519900 | M32: 3093404955 | N32: 3224917806 | O32: 3188485221 | P32: 3206957581 | Q32: 3194955672 | R32: 3245462866 | S32: 3360160670 | T32: 5.488121346e+10
C33: Diskontní sazba | F33: =T16*1/(1+$D$16) -> 0.4810170981 | G33: =F33*1/(1+$D$16) -> 0.458111522 | H33: =G33*1/(1+$D$16) -> 0.4362966876 | I33: 0.4155206549 | J33: 0.395733957 | K33: 0.3768894829 | L33: 0.3589423646 | M33: 0.3418498711 | N33: 0.3255713058 | O33: 0.3100679103 | P33: 0.2953027717 | Q33: 0.281240735 | R33: 0.267848319 | S33: 0.2550936371 | T33: 0.2429463211
C34: Diskontní cash flow | F34: =F32*F33 -> 1318447459 | G34: 1297843162 | H34: 1090529692 | I34: 1092976587 | J34: 1080406103 | K34: 1135032792 | L34: 1079885247 | M34: 1057480085 | N34: 1049940701 | O34: 988646949.5 | P34: 947023462.3 | Q34: 898551681.2 | R34: 869291773.1 | S34: 857155606.6 | T34: 1.333318891e+10
F35: =IF(F19>='0 Úvod'!$G$21,F21,0) -> 850275935.9 | G35: =IF(G19>='0 Úvod'!$G$21,G21,0) -> 582065089.1 | H35: =IF(H19>='0 Úvod'!$G$21,H21,0) -> 78401736.88 | I35: =IF(I19>='0 Úvod'!$G$21,I21,0) -> 119930566.4 | J35: =IF(J19>='0 Úvod'!$G$21,J21,0) -> 110720025.7 | K35: =IF(K19>='0 Úvod'!$G$21,K21,0) -> 287941179.5 | L35: =IF(L19>='0 Úvod'!$G$21,L21,0) -> 152539301.7 | M35: =IF(M19>='0 Úvod'!$G$21,M21,0) -> 199392749 | N35: =IF(N19>='0 Úvod'!$G$21,N21,0) -> 294376633.2 | O35: =IF(O19>='0 Úvod'!$G$21,O21,0) -> 222567067.4 | P35: =IF(P19>='0 Úvod'!$G$21,P21,0) -> 206799619.2 | Q35: =IF(Q19>='0 Úvod'!$G$21,Q21,0) -> 161752088.9 | R35: =IF(R19>='0 Úvod'!$G$21,R21,0) -> 178540553.9 | S35: =IF(S19>='0 Úvod'!$G$21,S21,0) -> 260513087.6 | T35: =IF(T19>='0 Úvod'!$G$21,T21,0) -> 293732348.2
B36: Ekonomické vnitřní výnosové procento ERR | F36: =ROUND(IRR((F15:T15,F32:T32),0.05),4) -> 0.0905
B37: Ekonomická čistá současná hodnota ENPV (CZK) | F37: =SUM(F17:T17,F34:T34) -> 1.467581987e+10
B38: Rentabilita nákladů | F38: =(SUMPRODUCT(F10:T10,F16:T16)+SUMPRODUCT(F27:T27,F33:T33)-SUMPRODUCT(F30:T30,F33:T33))/((SUMPRODUCT(F14:T14,F16:T16)+SUMPRODUCT(F31:S31,F33:S33))) -> 1.811493017
B39: Ekonomická čistá současná hodnota ENPV (EUR) | F39: =F37/'0 Úvod'!N19 -> 571933744.2
B42: Komentáře
B44: Mohou být zahrnuty i jiné přínosy a náklady dle konkrétního projektu.
